Workbook

Sheet INÍCIO
A1: FICHA DE AVALIAÇÃO DE DESEMPENHO | K1: 20170802 - Criado por Flávio Salamoni Barros Silva
A2: 1º CICLO
A4: Empregado: | B4: Tício | F4: Início do Exercício: | H4: 2012-12-15 | I4: Matrícula: | J4: 0
A5: Cargo: | B5: Assistente | F5: Lotação: | G5: Atendimento | I5: RG/CPF:
A6: Avaliador: | B6: Caio | F6: Função: | G6: Gerente | I6: Data: | J6: 2017-12-15
A8: INSTRUÇÕES
A9: 1. O objetivo deste instrumento é fornecer subsídios para a avaliação do empregado, servindo de suporte para promoções .
A10: 2. Mencione as principais atividades atribuídas ao empregado avaliado, no campo apropiado.
A11: 3. Avalie de acordo com a classificação que melhor descreve o desempenho do empregado avaliado.
A12: 4. Fundamente cada fator de avalilação, indicando, no campo apropriado, as ocorrências ocorridas no período.
A13: 5. Restrinja-se às observações que digam respeito somente ao espaço de tempo de análise estipulado.
A14: 6. Não faça estimativas futuras, nem leve em consideração análises anteriores, se existentes.
A15: 7. Não deixe nenhum quesito em branco.
A16: 8. Evite rasuras.
A17: 9. Utilize o espço reservado para as observações caso necessite acrescentar alguma informação.
A18: 10. As recomendações para o desenvolvimento do empregado que venham a ser feitas não serão consideradas como compromissos assumidos, mas serão objeto de análise no conjunto de prioridades definidas pelo CAU/RS, cujas conclusões serão comunicadas ao Comitê de Avaliadores.
A22: ATRIBUIÇÕES DO EMPREGADO AVALIADO
A23: (preenchível pelo avaliador)
A30: AVALIAÇÃO DE DESEMPENHO (1º CICLO) | E30: INÍCIO: | F30: 2012-12-15 | G30: TÉRMINO: | H30: =IFERROR(IF(F30="","",DADOS!D26),"") -> 2015-12-15 | I30: Resultados | J30: Conceitos | L30: Outro
A31: 1ª Etapa: 03 (três) meses após o início do exercício. | G31: Data: | H31: =IFERROR(DADOS!D15+L31,"") -> 2013-03-15 | I31: =IFERROR('1ª Etapa'!E201,"") -> 54.6 | J31: =IF(I31="","",IF(I31>mbom,DADOS!$H$7,IF(I31>bom,DADOS!$H$6,IF(I31>reg,DADOS!$H$5,IF(I31>insat,DADOS!$H$4,IF(I31>=0,DADOS!$H$3,"")))))) -> Bom
A32: 2ª Etapa: 06 (seis) meses após o início do exercício. | G32: Data: | H32: =IFERROR(DADOS!D16+L32,"") -> 2013-06-17 | I32: =IFERROR('2ª Etapa'!E201,"") -> 73 | J32: =IF(I32="","",IF(I32>mbom,DADOS!$H$7,IF(I32>bom,DADOS!$H$6,IF(I32>reg,DADOS!$H$5,IF(I32>insat,DADOS!$H$4,IF(I32>=0,DADOS!$H$3,"")))))) -> Muito bom
A33: 3ª Etapa: 09 (nove) meses após o início do exercício. | G33: Data: | H33: =IFERROR(DADOS!D17+L33,"") -> 2013-09-16 | I33: =IFERROR('3ª Etapa'!E201,"") -> 62.4 | J33: =IF(I33="","",IF(I33>mbom,DADOS!$H$7,IF(I33>bom,DADOS!$H$6,IF(I33>reg,DADOS!$H$5,IF(I33>insat,DADOS!$H$4,IF(I33>=0,DADOS!$H$3,"")))))) -> Bom
A34: 4ª Etapa: 12 (doze) meses após o início do exercício. | G34: Data: | H34: =IFERROR(DADOS!D18+L34,"") -> 2013-12-16 | I34: =IFERROR('4ª Etapa'!E201,"") -> 70.6 | J34: =IF(I34="","",IF(I34>mbom,DADOS!$H$7,IF(I34>bom,DADOS!$H$6,IF(I34>reg,DADOS!$H$5,IF(I34>insat,DADOS!$H$4,IF(I34>=0,DADOS!$H$3,"")))))) -> Muito bom | N34: 0.8
A35: 5ª Etapa: 15 (quinze) meses após o início do exercício. | G35: Data: | H35: =IFERROR(DADOS!D19+L35,"") -> 2014-03-17 | I35: =IFERROR('5ª Etapa'!E201,"") -> 68.2 | J35: =IF(I35="","",IF(I35>mbom,DADOS!$H$7,IF(I35>bom,DADOS!$H$6,IF(I35>reg,DADOS!$H$5,IF(I35>insat,DADOS!$H$4,IF(I35>=0,DADOS!$H$3,"")))))) -> Bom | N35: 0.8
A36: 6ª Etapa: 18 (dezoito) meses após o início do exercício. | G36: Data: | H36: =IFERROR(DADOS!D20+L36,"") -> 2014-06-16 | I36: =IFERROR('6ª Etapa'!E201,"") -> 64.2 | J36: =IF(I36="","",IF(I36>mbom,DADOS!$H$7,IF(I36>bom,DADOS!$H$6,IF(I36>reg,DADOS!$H$5,IF(I36>insat,DADOS!$H$4,IF(I36>=0,DADOS!$H$3,"")))))) -> Bom | N36: 1.4
A37: 7ª Etapa: 21 (vinte e um) meses após o início do exercício. | G37: Data: | H37: =IFERROR(DADOS!D21+L37,"") -> 2014-09-15 | I37: =IFERROR('7ª Etapa'!E201,"") -> 75.6 | J37: =IF(I37="","",IF(I37>mbom,DADOS!$H$7,IF(I37>bom,DADOS!$H$6,IF(I37>reg,DADOS!$H$5,IF(I37>insat,DADOS!$H$4,IF(I37>=0,DADOS!$H$3,"")))))) -> Muito bom | N37: 1.4
A38: 8ª Etapa: 24 (vinte e quatro) meses após o início do exercício. | G38: Data: | H38: =IFERROR(DADOS!D22+L38,"") -> 2014-12-15 | I38: =IFERROR('8ª Etapa'!E201,"") -> 61 | J38: =IF(I38="","",IF(I38>mbom,DADOS!$H$7,IF(I38>bom,DADOS!$H$6,IF(I38>reg,DADOS!$H$5,IF(I38>insat,DADOS!$H$4,IF(I38>=0,DADOS!$H$3,"")))))) -> Bom | N38: 1.4
A39: 9ª Etapa: 27 (vinte e sete) meses após o início do exercício. | G39: Data: | H39: =IFERROR(DADOS!D23+L39,"") -> 2015-03-16 | I39: =IFERROR('9ª Etapa'!E201,"") -> 79 | J39: =IF(I39="","",IF(I39>mbom,DADOS!$H$7,IF(I39>bom,DADOS!$H$6,IF(I39>reg,DADOS!$H$5,IF(I39>insat,DADOS!$H$4,IF(I39>=0,DADOS!$H$3,"")))))) -> Muito bom | N39: 1.4
A40: 10ª Etapa: 30 (trinta) meses após o início do exercício. | G40: Data: | H40: =IFERROR(DADOS!D24+L40,"") -> 2015-06-15 | I40: =IFERROR('10ª Etapa'!E201,"") -> 83.8 | J40: =IF(I40="","",IF(I40>mbom,DADOS!$H$7,IF(I40>bom,DADOS!$H$6,IF(I40>reg,DADOS!$H$5,IF(I40>insat,DADOS!$H$4,IF(I40>=0,DADOS!$H$3,"")))))) -> Muito bom | N40: 1.4
A41: 11ª Etapa: 33 (trinta e três) meses após o início do exercício. | G41: Data: | H41: =IFERROR(DADOS!D25+L41,"") -> 2015-09-15 | I41: =IFERROR('11ª Etapa'!E201,"") -> 76.6 | J41: =IF(I41="","",IF(I41>mbom,DADOS!$H$7,IF(I41>bom,DADOS!$H$6,IF(I41>reg,DADOS!$H$5,IF(I41>insat,DADOS!$H$4,IF(I41>=0,DADOS!$H$3,"")))))) -> Muito bom | N41: 1.4
A42: 12ª Etapa: 36 (trinta e seis) meses após o início do exercício. | G42: Data: | H42: =IFERROR(DADOS!D26+L42,"") -> 2015-12-15 | I42: =IFERROR('12ª Etapa'!E201,"") -> 54.8 | J42: =IF(I42="","",IF(I42>mbom,DADOS!$H$7,IF(I42>bom,DADOS!$H$6,IF(I42>reg,DADOS!$H$5,IF(I42>insat,DADOS!$H$4,IF(I42>=0,DADOS!$H$3,"")))))) -> Bom
H43: Média: | I43: =IFERROR(AVERAGE(I31:I42),"") -> 68.65 | J43: =IF(I43="","",IF(I43>mbom,DADOS!$H$7,IF(I43>bom,DADOS!$H$6,IF(I43>reg,DADOS!$H$5,IF(I43>insat,DADOS!$H$4,IF(I43>=0,DADOS!$H$3,"")))))) -> Bom
A45: AVALIAÇÕES
A46: 1. O empregado será avaliado por seu superior imediato ou, quando não aplicável, pelo Presidente ou por pessoa designada por ele.
A48: 2. O padrão atribuído a cada empregado por cada fator será de até 10 (dez) pontos, sendo descontado deste total o número de pontos, conforme a quantidade de ocorrências ou apontamentos nos registros funcionais do empregado, durante a etapa de avaliação.
A50: 3. Em todas as etapas é necessário realizar feedbacks frequentes ao empregado avaliado, objetivando o seu aperfeiçoamento ou a correção de seu comportamente.
A52: 4. Os empregados que obtiverem avaliação de desempenho individual inferior a 50% (cinquenta por cento) da pontuação máxima prevista poderão ser submetidos a processo de capacitação ou de análise da adequação funcional, conforme o caso.
A55: PARECER DO AVALIADOR
A56: (preenchível pelo avaliador no final do ciclo)
B63: Ciente do conteúdo da avaliação.
B64: =IFERROR(CONCATENATE("Porto Alegre, ",data_12c),"") -> Porto Alegre, terça-feira, dia 15 de dezembro de 2015.
C67: AVALIADO | H67: AVALIADOR

Sheet DADOS (hidden)
B1: ='1ª Etapa'!C201 -> TOTAIS: | C1: Insatisfatório
B2: =#REF! ->  | C2: Regular | H2: CONCEITOS
B3: =#REF! ->  | C3: Bom | H3: Insatisfatório | I3: até 29,9 | J3: Desempenho ruim. | M3: 29.9 | R3: =IF(F200="","",IF(D201>mbom,$H$7,IF(D201>bom,$H$6,IF(D201>reg,$H$5,IF(D201>insat,$H$4,IF(D201>=0,$H$3,"")))))) -> 
B4: =#REF! ->  | C4: Excelente | H4: Regular | I4: 30 a 49,9 | J4: Desempenho abaixo da média. | M4: 49.9
B5: =#REF! ->  | H5: Bom | I5: 50 a 69,9 | J5: Desempenho satisfaz. | M5: 69.9
B6: =#REF! ->  | H6: Muito bom | I6: 70 a 89,9 | J6: Desempenho acima da média. | M6: 89.9
B7: =#REF! ->  | H7: Excelente | I7: 90 a 100 | J7: Desempenho exemplar.
B8: =#REF! -> 
B9: =#REF! -> 
B12: SIM
B14: data_N | D14: data_Nc | G14: datas das avaliações
A15: 3 | B15: =IF(INÍCIO!$F$30="","",EDATE(INÍCIO!$F$30,A15)) -> 2013-03-15 | C15: =WEEKDAY(B15) -> 6 | D15: =IF(C15=1,B15+1,IF(C15=7,B15+2,B15)) -> 2013-03-15 | E15: =WEEKDAY(D15) -> 6 | G15: =IF('1ª Etapa'!J6="","",'1ª Etapa'!J6) -> 2014-06-16 | H15: =WEEKDAY(G15) -> 2 | I15: =DAY(G15) -> 16 | J15: =MONTH(G15) -> 6 | K15: =YEAR(G15) -> 2014 | L15: =IFERROR(CONCATENATE("dia ",I15," de ",INDEX($C$60:$C$71,MATCH(J15,$B$60:$B$71,0))," de ",K15,"."),"") -> dia 16 de junho de 2014.
A16: 6 | B16: =IF(INÍCIO!$F$30="","",EDATE(INÍCIO!$F$30,A16)) -> 2013-06-15 | C16: 7 | D16: =IF(C16=1,B16+1,IF(C16=7,B16+2,B16)) -> 2013-06-17 | E16: 2 | G16: =IF('2ª Etapa'!J6="","",'2ª Etapa'!J6) -> 2017-05-15 | H16: =WEEKDAY(G16) -> 2 | I16: =DAY(G16) -> 15 | J16: =MONTH(G16) -> 5 | K16: =YEAR(G16) -> 2017 | L16: =IFERROR(CONCATENATE("dia ",I16," de ",INDEX($C$60:$C$71,MATCH(J16,$B$60:$B$71,0))," de ",K16,"."),"") -> dia 15 de maio de 2017.
A17: 9 | B17: =IF(INÍCIO!$F$30="","",EDATE(INÍCIO!$F$30,A17)) -> 2013-09-15 | C17: 1 | D17: 2013-09-16 | E17: 2 | G17: =IF('3ª Etapa'!J6="","",'3ª Etapa'!J6) -> 2017-04-01 | H17: 7 | I17: 1 | J17: 4 | K17: 2017 | L17: dia 1 de abril de 2017.
A18: 12 | B18: =IF(INÍCIO!$F$30="","",EDATE(INÍCIO!$F$30,A18)) -> 2013-12-15 | C18: 1 | D18: 2013-12-16 | E18: 2 | G18: =IF('4ª Etapa'!J6="","",'4ª Etapa'!J6) -> 2018-06-13 | H18: 4 | I18: 13 | J18: 6 | K18: 2018 | L18: dia 13 de junho de 2018.
A19: 15 | B19: =IF(INÍCIO!$F$30="","",EDATE(INÍCIO!$F$30,A19)) -> 2014-03-15 | C19: 7 | D19: 2014-03-17 | E19: 2 | G19: =IF('5ª Etapa'!J6="","",'5ª Etapa'!J6) -> 2017-05-01 | H19: 2 | I19: 1 | J19: 5 | K19: 2017 | L19: dia 1 de maio de 2017.
A20: 18 | B20: =IF(INÍCIO!$F$30="","",EDATE(INÍCIO!$F$30,A20)) -> 2014-06-15 | C20: =WEEKDAY(B20) -> 1 | D20: =IF(C20=1,B20+1,IF(C20=7,B20+2,B20)) -> 2014-06-16 | E20: =WEEKDAY(D20) -> 2 | G20: =IF('6ª Etapa'!J6="","",'6ª Etapa'!J6) -> 2017-06-13 | H20: 3 | I20: 13 | J20: 6 | K20: 2017 | L20: dia 13 de junho de 2017.
A21: 21 | B21: =IF(INÍCIO!$F$30="","",EDATE(INÍCIO!$F$30,A21)) -> 2014-09-15 | C21: 2 | D21: 2014-09-15 | E21: 2 | G21: =IF('7ª Etapa'!#REF!="","",'7ª Etapa'!#REF!) -> 
A22: 24 | B22: =IF(INÍCIO!$F$30="","",EDATE(INÍCIO!$F$30,A22)) -> 2014-12-15 | C22: 2 | D22: 2014-12-15 | E22: 2 | G22: =IF('8ª Etapa'!J6="","",'8ª Etapa'!J6) -> 2017-06-13 | H22: 3 | I22: 13 | J22: 6 | K22: 2017 | L22: dia 13 de junho de 2017.
A23: 27 | B23: =IF(INÍCIO!$F$30="","",EDATE(INÍCIO!$F$30,A23)) -> 2015-03-15 | C23: 1 | D23: 2015-03-16 | E23: 2 | G23: =IF('9ª Etapa'!J6="","",'9ª Etapa'!J6) -> 2017-06-13 | H23: 3 | I23: 13 | J23: 6 | K23: 2017 | L23: dia 13 de junho de 2017.
A24: 30 | B24: =IF(INÍCIO!$F$30="","",EDATE(INÍCIO!$F$30,A24)) -> 2015-06-15 | C24: 2 | D24: 2015-06-15 | E24: 2 | G24: =IF('10ª Etapa'!J6="","",'10ª Etapa'!J6) -> 2017-06-13 | H24: 3 | I24: 13 | J24: 6 | K24: 2017 | L24: dia 13 de junho de 2017.
A25: 33 | B25: =IF(INÍCIO!$F$30="","",EDATE(INÍCIO!$F$30,A25)) -> 2015-09-15 | C25: 3 | D25: 2015-09-15 | E25: 3 | G25: =IF('11ª Etapa'!J6="","",'11ª Etapa'!J6) -> 2017-06-13 | H25: 3 | I25: 13 | J25: 6 | K25: 2017 | L25: dia 13 de junho de 2017.
A26: 36 | B26: =IF(INÍCIO!$F$30="","",EDATE(INÍCIO!$F$30,A26)) -> 2015-12-15 | C26: 3 | D26: 2015-12-15 | E26: 3 | G26: =IF('12ª Etapa'!J6="","",'12ª Etapa'!J6) -> 2017-06-13 | H26: 3 | I26: 13 | J26: 6 | K26: 2017 | L26: dia 13 de junho de 2017.
B29: outros
B30: 1
B31: 2
B32: 3
B33: 4
B34: 5
B35: 6
B36: 7
B38: =WEEKDAY(data_1) -> 6 | C38: =DAY(data_1) -> 15 | D38: =MONTH(data_1) -> 3 | E38: =YEAR(data_1) -> 2013 | F38: =CONCATENATE(INDEX($C$54:$C$58,MATCH(B38,$B$54:$B$58,0)),", dia ",C38," de ",INDEX($C$60:$C$71,MATCH(D38,$B$60:$B$71,0))," de ",E38,".") -> sexta-feira, dia 15 de março de 2013.
B39: =WEEKDAY(data_2) -> 2 | C39: =DAY(data_2) -> 17 | D39: =MONTH(data_2) -> 6 | E39: =YEAR(data_2) -> 2013 | F39: =CONCATENATE(INDEX($C$54:$C$58,MATCH(B39,$B$54:$B$58,0)),", dia ",C39," de ",INDEX($C$60:$C$71,MATCH(D39,$B$60:$B$71,0))," de ",E39,".") -> segunda-feira, dia 17 de junho de 2013.
B40: =WEEKDAY(data_3) -> 2 | C40: =DAY(data_3) -> 16 | D40: =MONTH(data_3) -> 9 | E40: =YEAR(data_3) -> 2013 | F40: segunda-feira, dia 16 de setembro de 2013.
B41: =WEEKDAY(data_4) -> 2 | C41: =DAY(data_4) -> 16 | D41: =MONTH(data_4) -> 12 | E41: =YEAR(data_4) -> 2013 | F41: segunda-feira, dia 16 de dezembro de 2013.
B42: =WEEKDAY(data_5) -> 2 | C42: =DAY(data_5) -> 17 | D42: =MONTH(data_5) -> 3 | E42: =YEAR(data_5) -> 2014 | F42: segunda-feira, dia 17 de março de 2014.
B43: =WEEKDAY(data_6) -> 2 | C43: =DAY(data_6) -> 16 | D43: =MONTH(data_6) -> 6 | E43: =YEAR(data_6) -> 2014 | F43: segunda-feira, dia 16 de junho de 2014.
B44: =WEEKDAY(data_7) -> 2 | C44: =DAY(data_7) -> 15 | D44: =MONTH(data_7) -> 9 | E44: =YEAR(data_7) -> 2014 | F44: segunda-feira, dia 15 de setembro de 2014.
B45: =WEEKDAY(data_8) -> 2 | C45: =DAY(data_8) -> 15 | D45: =MONTH(data_8) -> 12 | E45: =YEAR(data_8) -> 2014 | F45: segunda-feira, dia 15 de dezembro de 2014.
B46: =WEEKDAY(data_9) -> 2 | C46: =DAY(data_9) -> 16 | D46: =MONTH(data_9) -> 3 | E46: =YEAR(data_9) -> 2015 | F46: segunda-feira, dia 16 de março de 2015.
B47: =WEEKDAY(data_10) -> 2 | C47: =DAY(data_10) -> 15 | D47: =MONTH(data_10) -> 6 | E47: =YEAR(data_10) -> 2015 | F47: segunda-feira, dia 15 de junho de 2015.
B48: =WEEKDAY(data_11) -> 3 | C48: =DAY(data_11) -> 15 | D48: =MONTH(data_11) -> 9 | E48: =YEAR(data_11) -> 2015 | F48: terça-feira, dia 15 de setembro de 2015.
B49: =WEEKDAY(data_12) -> 3 | C49: =DAY(data_12) -> 15 | D49: =MONTH(data_12) -> 12 | E49: =YEAR(data_12) -> 2015 | F49: terça-feira, dia 15 de dezembro de 2015.
B54: 2 | C54: segunda-feira
B55: 3 | C55: terça-feira
B56: 4 | C56: quarta-feira
B57: 5 | C57: quinta-feira
B58: 6 | C58: sexta-feira
B60: 1 | C60: janeiro
B61: 2 | C61: fevereiro
B62: 3 | C62: março
B63: 4 | C63: abril
B64: 5 | C64: maio
B65: 6 | C65: junho
B66: 7 | C66: julho
B67: 8 | C67: agosto
B68: 9 | C68: setembro
B69: 10 | C69: outubro
B70: 11 | C70: novembro
B71: 12 | C71: dezembro
B73: 1ª etapa | D73: 2ª etapa | F73: 3ª Etapa | H73: 4ª Etapa | J73: 5ª Etapa | L73: 6ª Etapa | N73: 7ª Etapa | P73: 8ª Etapa | R73: úª Etapa
A74: disc | B74: =SUM(IF('1ª Etapa'!#REF!="sim",4,IF('1ª Etapa'!#REF!="sim",3,IF('1ª Etapa'!#REF!="sim",2,IF('1ª Etapa'!#REF!="sim",1,0))))) ->  | D74: =SUM(IF(#REF!="sim",4,IF(#REF!="sim",3,IF(#REF!="sim",2,IF(#REF!="sim",1,0))))) ->  | F74: =SUM(IF(#REF!="sim",4,IF(#REF!="sim",3,IF(#REF!="sim",2,IF(#REF!="sim",1,0))))) ->  | H74: =SUM(IF(#REF!="sim",4,IF(#REF!="sim",3,IF(#REF!="sim",2,IF(#REF!="sim",1,0))))) ->  | J74: =SUM(IF(#REF!="sim",4,IF(#REF!="sim",3,IF(#REF!="sim",2,IF(#REF!="sim",1,0))))) ->  | L74: =SUM(IF(#REF!="sim",4,IF(#REF!="sim",3,IF(#REF!="sim",2,IF(#REF!="sim",1,0))))) ->  | N74: =SUM(IF(#REF!="sim",4,IF(#REF!="sim",3,IF(#REF!="sim",2,IF(#REF!="sim",1,0))))) ->  | P74: =SUM(IF(#REF!="sim",4,IF(#REF!="sim",3,IF(#REF!="sim",2,IF(#REF!="sim",1,0))))) ->  | R74: =SUM(IF(#REF!="sim",4,IF(#REF!="sim",3,IF(#REF!="sim",2,IF(#REF!="sim",1,0))))) -> 
B75: =SUM(IF('1ª Etapa'!#REF!="sim",4,IF('1ª Etapa'!#REF!="sim",3,IF('1ª Etapa'!#REF!="sim",2,IF('1ª Etapa'!#REF!="sim",1,0))))) ->  | C75: =SUM(D1_1ª+D2_1ª) ->  | D75: =SUM(IF(#REF!="sim",4,IF(#REF!="sim",3,IF(#REF!="sim",2,IF(#REF!="sim",1,0))))) ->  | E75: =D74+D75 ->  | F75: =SUM(IF(#REF!="sim",4,IF(#REF!="sim",3,IF(#REF!="sim",2,IF(#REF!="sim",1,0))))) ->  | G75: =F74+F75 ->  | H75: =SUM(IF(#REF!="sim",4,IF(#REF!="sim",3,IF(#REF!="sim",2,IF(#REF!="sim",1,0))))) ->  | I75: =H74+H75 ->  | J75: =SUM(IF(#REF!="sim",4,IF(#REF!="sim",3,IF(#REF!="sim",2,IF(#REF!="sim",1,0))))) ->  | K75: =J74+J75 ->  | L75: =SUM(IF(#REF!="sim",4,IF(#REF!="sim",3,IF(#REF!="sim",2,IF(#REF!="sim",1,0))))) ->  | M75: =L74+L75 ->  | N75: =SUM(IF(#REF!="sim",4,IF(#REF!="sim",3,IF(#REF!="sim",2,IF(#REF!="sim",1,0))))) ->  | O75: =N74+N75 ->  | P75: =SUM(IF(#REF!="sim",4,IF(#REF!="sim",3,IF(#REF!="sim",2,IF(#REF!="sim",1,0))))) ->  | Q75: =P74+P75 ->  | R75: =SUM(IF(#REF!="sim",4,IF(#REF!="sim",3,IF(#REF!="sim",2,IF(#REF!="sim",1,0))))) ->  | S75: =R74+R75 -> 
A76: efi | B76: =SUM(IF('1ª Etapa'!#REF!="sim",4,IF('1ª Etapa'!#REF!="sim",3,IF('1ª Etapa'!#REF!="sim",2,IF('1ª Etapa'!#REF!="sim",1,0))))) ->  | D76: =SUM(IF(#REF!="sim",4,IF(#REF!="sim",3,IF(#REF!="sim",2,IF(#REF!="sim",1,0))))) ->  | F76: =SUM(IF(#REF!="sim",4,IF(#REF!="sim",3,IF(#REF!="sim",2,IF(#REF!="sim",1,0))))) ->  | H76: =SUM(IF(#REF!="sim",4,IF(#REF!="sim",3,IF(#REF!="sim",2,IF(#REF!="sim",1,0))))) ->  | J76: =SUM(IF(#REF!="sim",4,IF(#REF!="sim",3,IF(#REF!="sim",2,IF(#REF!="sim",1,0))))) ->  | L76: =SUM(IF(#REF!="sim",4,IF(#REF!="sim",3,IF(#REF!="sim",2,IF(#REF!="sim",1,0))))) ->  | N76: =SUM(IF(#REF!="sim",4,IF(#REF!="sim",3,IF(#REF!="sim",2,IF(#REF!="sim",1,0))))) ->  | P76: =SUM(IF(#REF!="sim",4,IF(#REF!="sim",3,IF(#REF!="sim",2,IF(#REF!="sim",1,0))))) ->  | R76: =SUM(IF(#REF!="sim",4,IF(#REF!="sim",3,IF(#REF!="sim",2,IF(#REF!="sim",1,0))))) -> 
B77: =SUM(IF('1ª Etapa'!#REF!="sim",4,IF('1ª Etapa'!#REF!="sim",3,IF('1ª Etapa'!#REF!="sim",2,IF('1ª Etapa'!#REF!="sim",1,0))))) ->  | C77: =E1_1ª+E2_1ª ->  | D77: =SUM(IF(#REF!="sim",4,IF(#REF!="sim",3,IF(#REF!="sim",2,IF(#REF!="sim",1,0))))) ->  | E77: =D76+D77 ->  | F77: =SUM(IF(#REF!="sim",4,IF(#REF!="sim",3,IF(#REF!="sim",2,IF(#REF!="sim",1,0))))) ->  | G77: =F76+F77 ->  | H77: =SUM(IF(#REF!="sim",4,IF(#REF!="sim",3,IF(#REF!="sim",2,IF(#REF!="sim",1,0))))) ->  | I77: =H76+H77 ->  | J77: =SUM(IF(#REF!="sim",4,IF(#REF!="sim",3,IF(#REF!="sim",2,IF(#REF!="sim",1,0))))) ->  | K77: =J76+J77 ->  | L77: =SUM(IF(#REF!="sim",4,IF(#REF!="sim",3,IF(#REF!="sim",2,IF(#REF!="sim",1,0))))) ->  | M77: =L76+L77 ->  | N77: =SUM(IF(#REF!="sim",4,IF(#REF!="sim",3,IF(#REF!="sim",2,IF(#REF!="sim",1,0))))) ->  | O77: =N76+N77 ->  | P77: =SUM(IF(#REF!="sim",4,IF(#REF!="sim",3,IF(#REF!="sim",2,IF(#REF!="sim",1,0))))) ->  | Q77: =P76+P77 ->  | R77: =SUM(IF(#REF!="sim",4,IF(#REF!="sim",3,IF(#REF!="sim",2,IF(#REF!="sim",1,0))))) ->  | S77: =R76+R77 -> 
A78: resp | B78: =SUM(IF('1ª Etapa'!#REF!="sim",4,IF('1ª Etapa'!#REF!="sim",3,IF('1ª Etapa'!#REF!="sim",2,IF('1ª Etapa'!#REF!="sim",1,0))))) ->  | D78: =SUM(IF(#REF!="sim",4,IF(#REF!="sim",3,IF(#REF!="sim",2,IF(#REF!="sim",1,0))))) ->  | F78: =SUM(IF(#REF!="sim",4,IF(#REF!="sim",3,IF(#REF!="sim",2,IF(#REF!="sim",1,0))))) ->  | H78: =SUM(IF(#REF!="sim",4,IF(#REF!="sim",3,IF(#REF!="sim",2,IF(#REF!="sim",1,0))))) ->  | J78: =SUM(IF(#REF!="sim",4,IF(#REF!="sim",3,IF(#REF!="sim",2,IF(#REF!="sim",1,0))))) ->  | L78: =SUM(IF(#REF!="sim",4,IF(#REF!="sim",3,IF(#REF!="sim",2,IF(#REF!="sim",1,0))))) ->  | N78: =SUM(IF(#REF!="sim",4,IF(#REF!="sim",3,IF(#REF!="sim",2,IF(#REF!="sim",1,0))))) ->  | P78: =SUM(IF(#REF!="sim",4,IF(#REF!="sim",3,IF(#REF!="sim",2,IF(#REF!="sim",1,0))))) ->  | R78: =SUM(IF(#REF!="sim",4,IF(#REF!="sim",3,IF(#REF!="sim",2,IF(#REF!="sim",1,0))))) -> 
B79: =SUM(IF('1ª Etapa'!#REF!="sim",4,IF('1ª Etapa'!#REF!="sim",3,IF('1ª Etapa'!#REF!="sim",2,IF('1ª Etapa'!#REF!="sim",1,0))))) ->  | C79: =responsabilidade1+responsabilidade2 ->  | D79: =SUM(IF(#REF!="sim",4,IF(#REF!="sim",3,IF(#REF!="sim",2,IF(#REF!="sim",1,0))))) ->  | E79: =D79+D78 ->  | F79: =SUM(IF(#REF!="sim",4,IF(#REF!="sim",3,IF(#REF!="sim",2,IF(#REF!="sim",1,0))))) ->  | G79: =F79+F78 ->  | H79: =SUM(IF(#REF!="sim",4,IF(#REF!="sim",3,IF(#REF!="sim",2,IF(#REF!="sim",1,0))))) ->  | I79: =H79+H78 ->  | J79: =SUM(IF(#REF!="sim",4,IF(#REF!="sim",3,IF(#REF!="sim",2,IF(#REF!="sim",1,0))))) ->  | K79: =J79+J78 ->  | L79: =SUM(IF(#REF!="sim",4,IF(#REF!="sim",3,IF(#REF!="sim",2,IF(#REF!="sim",1,0))))) ->  | M79: =L79+L78 ->  | N79: =SUM(IF(#REF!="sim",4,IF(#REF!="sim",3,IF(#REF!="sim",2,IF(#REF!="sim",1,0))))) ->  | O79: =N79+N78 ->  | P79: =SUM(IF(#REF!="sim",4,IF(#REF!="sim",3,IF(#REF!="sim",2,IF(#REF!="sim",1,0))))) ->  | Q79: =P79+P78 ->  | R79: =SUM(IF(#REF!="sim",4,IF(#REF!="sim",3,IF(#REF!="sim",2,IF(#REF!="sim",1,0))))) ->  | S79: =R79+R78 -> 
A80: prod | B80: =SUM(IF('1ª Etapa'!#REF!="sim",4,IF('1ª Etapa'!#REF!="sim",3,IF('1ª Etapa'!#REF!="sim",2,IF('1ª Etapa'!#REF!="sim",1,0))))) ->  | D80: =SUM(IF(#REF!="sim",4,IF(#REF!="sim",3,IF(#REF!="sim",2,IF(#REF!="sim",1,0))))) ->  | F80: =SUM(IF(#REF!="sim",4,IF(#REF!="sim",3,IF(#REF!="sim",2,IF(#REF!="sim",1,0))))) ->  | H80: =SUM(IF(#REF!="sim",4,IF(#REF!="sim",3,IF(#REF!="sim",2,IF(#REF!="sim",1,0))))) ->  | J80: =SUM(IF(#REF!="sim",4,IF(#REF!="sim",3,IF(#REF!="sim",2,IF(#REF!="sim",1,0))))) ->  | L80: =SUM(IF(#REF!="sim",4,IF(#REF!="sim",3,IF(#REF!="sim",2,IF(#REF!="sim",1,0))))) ->  | N80: =SUM(IF(#REF!="sim",4,IF(#REF!="sim",3,IF(#REF!="sim",2,IF(#REF!="sim",1,0))))) ->  | P80: =SUM(IF(#REF!="sim",4,IF(#REF!="sim",3,IF(#REF!="sim",2,IF(#REF!="sim",1,0))))) ->  | R80: =SUM(IF(#REF!="sim",4,IF(#REF!="sim",3,IF(#REF!="sim",2,IF(#REF!="sim",1,0))))) -> 
B81: =SUM(IF('1ª Etapa'!#REF!="sim",4,IF('1ª Etapa'!#REF!="sim",3,IF('1ª Etapa'!#REF!="sim",2,IF('1ª Etapa'!#REF!="sim",1,0))))) ->  | C81: =P1_1ª+P2_1ª ->  | D81: =SUM(IF(#REF!="sim",4,IF(#REF!="sim",3,IF(#REF!="sim",2,IF(#REF!="sim",1,0))))) ->  | E81: =D80+D81 ->  | F81: =SUM(IF(#REF!="sim",4,IF(#REF!="sim",3,IF(#REF!="sim",2,IF(#REF!="sim",1,0))))) ->  | G81: =F80+F81 ->  | H81: =SUM(IF(#REF!="sim",4,IF(#REF!="sim",3,IF(#REF!="sim",2,IF(#REF!="sim",1,0))))) ->  | I81: =H80+H81 ->  | J81: =SUM(IF(#REF!="sim",4,IF(#REF!="sim",3,IF(#REF!="sim",2,IF(#REF!="sim",1,0))))) ->  | K81: =J80+J81 ->  | L81: =SUM(IF(#REF!="sim",4,IF(#REF!="sim",3,IF(#REF!="sim",2,IF(#REF!="sim",1,0))))) ->  | M81: =L80+L81 ->  | N81: =SUM(IF(#REF!="sim",4,IF(#REF!="sim",3,IF(#REF!="sim",2,IF(#REF!="sim",1,0))))) ->  | O81: =N80+N81 ->  | P81: =SUM(IF(#REF!="sim",4,IF(#REF!="sim",3,IF(#REF!="sim",2,IF(#REF!="sim",1,0))))) ->  | Q81: =P80+P81 ->  | R81: =SUM(IF(#REF!="sim",4,IF(#REF!="sim",3,IF(#REF!="sim",2,IF(#REF!="sim",1,0))))) ->  | S81: =R80+R81 -> 
A82: ass | B82: =SUM(IF('1ª Etapa'!#REF!="sim",4,IF('1ª Etapa'!#REF!="sim",3,IF('1ª Etapa'!#REF!="sim",2,IF('1ª Etapa'!#REF!="sim",1,0))))) ->  | D82: =SUM(IF(#REF!="sim",4,IF(#REF!="sim",3,IF(#REF!="sim",2,IF(#REF!="sim",1,0))))) ->  | F82: =SUM(IF(#REF!="sim",4,IF(#REF!="sim",3,IF(#REF!="sim",2,IF(#REF!="sim",1,0))))) ->  | H82: =SUM(IF(#REF!="sim",4,IF(#REF!="sim",3,IF(#REF!="sim",2,IF(#REF!="sim",1,0))))) ->  | J82: =SUM(IF(#REF!="sim",4,IF(#REF!="sim",3,IF(#REF!="sim",2,IF(#REF!="sim",1,0))))) ->  | L82: =SUM(IF(#REF!="sim",4,IF(#REF!="sim",3,IF(#REF!="sim",2,IF(#REF!="sim",1,0))))) ->  | N82: =SUM(IF(#REF!="sim",4,IF(#REF!="sim",3,IF(#REF!="sim",2,IF(#REF!="sim",1,0))))) ->  | P82: =SUM(IF(#REF!="sim",4,IF(#REF!="sim",3,IF(#REF!="sim",2,IF(#REF!="sim",1,0))))) ->  | R82: =SUM(IF(#REF!="sim",4,IF(#REF!="sim",3,IF(#REF!="sim",2,IF(#REF!="sim",1,0))))) -> 
B83: =SUM(IF('1ª Etapa'!#REF!="sim",4,IF('1ª Etapa'!#REF!="sim",3,IF('1ª Etapa'!#REF!="sim",2,IF('1ª Etapa'!#REF!="sim",1,0))))) ->  | C83: =ass1_1ª+ass2_1ª ->  | D83: =SUM(IF(#REF!="sim",4,IF(#REF!="sim",3,IF(#REF!="sim",2,IF(#REF!="sim",1,0))))) ->  | E83: =D82+D83 ->  | F83: =SUM(IF(#REF!="sim",4,IF(#REF!="sim",3,IF(#REF!="sim",2,IF(#REF!="sim",1,0))))) ->  | G83: =F82+F83 ->  | H83: =SUM(IF(#REF!="sim",4,IF(#REF!="sim",3,IF(#REF!="sim",2,IF(#REF!="sim",1,0))))) ->  | I83: =H82+H83 ->  | J83: =SUM(IF(#REF!="sim",4,IF(#REF!="sim",3,IF(#REF!="sim",2,IF(#REF!="sim",1,0))))) ->  | K83: =J82+J83 ->  | L83: =SUM(IF(#REF!="sim",4,IF(#REF!="sim",3,IF(#REF!="sim",2,IF(#REF!="sim",1,0))))) ->  | M83: =L82+L83 ->  | N83: =SUM(IF(#REF!="sim",4,IF(#REF!="sim",3,IF(#REF!="sim",2,IF(#REF!="sim",1,0))))) ->  | O83: =N82+N83 ->  | P83: =SUM(IF(#REF!="sim",4,IF(#REF!="sim",3,IF(#REF!="sim",2,IF(#REF!="sim",1,0))))) ->  | Q83: =P82+P83 ->  | R83: =SUM(IF(#REF!="sim",4,IF(#REF!="sim",3,IF(#REF!="sim",2,IF(#REF!="sim",1,0))))) ->  | S83: =R82+R83 -> 
B85: 1ª ETAPA | C85: 2ª ETAPA | D85: 3ª ETAPA | E85: 4ª ETAPA | F85: 5ª ETAPA | G85: 6ª ETAPA | H85: 7ª ETAPA | I85: 8ª ETAPA | J85: ÚLTIMA ETAPA | M85: 1ª ETAPA | N85: 2ª ETAPA | O85: 3ª ETAPA | P85: 4ª ETAPA | Q85: 5ª ETAPA | R85: 6ª ETAPA | S85: 7ª ETAPA | T85: 8ª ETAPA | U85: ÚLTIMA ETAPA
A86: DISCIPLINA | B86: =D1_TOTAL ->  | C86: =DISCIPLINA2ª ->  | D86: =G75 ->  | E86: =I75 ->  | F86: =K75 ->  | G86: =M75 ->  | H86: =O75 ->  | I86: =Q75 ->  | J86: =S75 ->  | L86: DISCIPLINA | M86: =B86 ->  | N86: =C86 ->  | V86: ASSIDUIDADE
B87: 1ª ETAPA | C87: 2ª ETAPA | D87: 3ª ETAPA | E87: 4ª ETAPA | F87: 5ª ETAPA | G87: 6ª ETAPA | H87: 7ª ETAPA | I87: 8ª ETAPA | J87: ÚLTIMA ETAPA | L87: EFICIÊNCIA | M87: =B88 ->  | N87: =C88 ->  | V87: PONTUALIDADE
A88: EFICIÊNCIA | B88: =E1_TOTAL ->  | C88: =EFICIÊNCIA2ª ->  | D88: =G77 ->  | E88: =I77 ->  | F88: =K77 ->  | G88: =M77 ->  | H88: =O77 ->  | I88: =Q77 ->  | J88: =S77 ->  | L88: RESPONSABILIDADE | M88: =B90 ->  | N88: =C90 ->  | V88: DISCIPLINA E SUBORDINAÇÃO
B89: 1ª ETAPA | C89: 2ª ETAPA | D89: 3ª ETAPA | E89: 4ª ETAPA | F89: 5ª ETAPA | G89: 6ª ETAPA | H89: 7ª ETAPA | I89: 8ª ETAPA | J89: ÚLTIMA ETAPA | L89: PRODUTIVIDADE | M89: =B92 ->  | N89: =C92 ->  | V89: QUALIDADE E PRODUTIVIDADE
A90: RESPONSABILIDADE | B90: =res_total ->  | C90: =RESPONSABILIDADE2ª ->  | D90: =G79 ->  | E90: =I79 ->  | F90: =K79 ->  | G90: =M79 ->  | H90: =O79 ->  | I90: =Q79 ->  | J90: =S79 ->  | L90: ASSIDUIDADE | M90: =B94 ->  | N90: =C94 ->  | V90: HABILIDADE E CONHECIMENTO
B91: 1ª ETAPA | C91: 2ª ETAPA | D91: 3ª ETAPA | E91: 4ª ETAPA | F91: 5ª ETAPA | G91: 6ª ETAPA | H91: 7ª ETAPA | I91: 8ª ETAPA | J91: ÚLTIMA ETAPA | V91: INICIATIVA E CRIATIVIDADE
A92: PRODUTIVIDADE | B92: =P1_TOTAL ->  | C92: =PRODUTIVIDADE2ª ->  | D92: =G81 ->  | E92: =I81 ->  | F92: =K81 ->  | G92: =M81 ->  | H92: =O81 ->  | I92: =Q81 ->  | J92: =S81 ->  | V92: RESPONSABILIDADE
B93: 1ª ETAPA | C93: 2ª ETAPA | D93: 3ª ETAPA | E93: 4ª ETAPA | F93: 5ª ETAPA | G93: 6ª ETAPA | H93: 7ª ETAPA | I93: 8ª ETAPA | J93: ÚLTIMA ETAPA | V93: COOPERAÇÃO E COLABORAÇÃO
A94: ASSIDUIDADE | B94: =a1_total ->  | C94: =ASSIDUIDADE2ª ->  | D94: =G83 ->  | E94: =I83 ->  | F94: =K83 ->  | G94: =M83 ->  | H94: =O83 ->  | I94: =Q83 ->  | J94: =S83 ->  | V94: INTERCOMUNICAÇÃO
V95: ATUALIZAÇÃO
E101: 1ª | F101: 2ª | G101: 3ª | H101: 4ª | I101: 5ª | J101: 6ª | K101: 7ª | L101: 8ª | M101: última
D102: 40
D103: 35
D104: 30
D105: 25
D106: 20
D107: 15
D108: 10
D109: 5
D110: 0
E112: DESEMPENHO GERAL | H112: DESEMPENHO INDIVIDUAL
D113: 1ª etapa | E113: =INÍCIO!I31 -> 54.6 | G113: ASSIDUIDADE | H113: =O143 -> 80
D114: 2ª etapa | E114: =INÍCIO!I32 -> 73 | G114: PONTUALIDADE | H114: 80
D115: 3ª etapa | E115: =INÍCIO!I33 -> 62.4 | G115: DISCIPLINA | H115: 56
D116: 4ª etapa | E116: =INÍCIO!I34 -> 70.6 | G116: INICIATIVA | H116: 102
D117: 5ª etapa | E117: =INÍCIO!I35 -> 68.2 | G117: PRODUTIVIDADE | H117: 103
D118: 6ª etapa | E118: =INÍCIO!I36 -> 64.2 | G118: RESPONSABILIDADE | H118: 87
D119: 7ª etapa | E119: =INÍCIO!I37 -> 75.6 | G119: COMPORTAMENTO | H119: 74
D120: 8ª etapa | E120: =INÍCIO!I38 -> 61 | G120: DESENVOLVIMENTO | H120: 75
D121: 9ª etapa | E121: =INÍCIO!I39 -> 79
D122: 10ª etapa | E122: =INÍCIO!I40 -> 83.8
D123: 11ª etapa | E123: =INÍCIO!I41 -> 76.6
D124: 12ª etapa | E124: =INÍCIO!I42 -> 54.8
B131: DESEMPENHO ESPECÍFICO | C131: 1ª etapa | D131: 2ª etapa | E131: 3ª Etapa | F131: 4ª Etapa | G131: 5ª Etapa | H131: 6ª Etapa | I131: 7ª Etapa | J131: 8ª Etapa | K131: 9ª Etapa | L131: 10ª Etapa | M131: 11ª Etapa | N131: 12ª Etapa
B132: ASSIDUIDADE | C132: ='1ª Etapa'!E193 -> 0 | D132: ='2ª Etapa'!D193 -> 0.8 | E132: ='3ª Etapa'!D193 -> 0.8 | F132: ='4ª Etapa'!D193 -> 0.8 | G132: ='5ª Etapa'!D193 -> 0.8 | H132: ='6ª Etapa'!D193 -> 0.8 | I132: ='7ª Etapa'!D193 -> 0.8 | J132: ='8ª Etapa'!D193 -> 0.8 | K132: ='9ª Etapa'!D193 -> 0.8 | L132: ='10ª Etapa'!D193 -> 0.8 | M132: ='11ª Etapa'!D193 -> 0.8 | N132: ='12ª Etapa'!D193 -> 0.8
B133: PONTUALIDADE | C133: ='1ª Etapa'!E194 -> 5.6 | D133: ='2ª Etapa'!D194 -> 0.8 | E133: ='3ª Etapa'!D194 -> 0.8 | F133: ='4ª Etapa'!D194 -> 0.8 | G133: ='5ª Etapa'!D194 -> 0.8 | H133: ='6ª Etapa'!D194 -> 0.8 | I133: ='7ª Etapa'!D194 -> 0.8 | J133: ='8ª Etapa'!D194 -> 0.8 | K133: ='9ª Etapa'!D194 -> 0.8 | L133: ='10ª Etapa'!D194 -> 0.8 | M133: ='11ª Etapa'!D194 -> 0.8 | N133: ='12ª Etapa'!D194 -> 0.8
B134: DISCIPLINA | C134: ='1ª Etapa'!E195 -> 9.8 | D134: ='2ª Etapa'!D195 -> 1.4 | E134: ='3ª Etapa'!D195 -> 1.4 | F134: ='4ª Etapa'!D195 -> 1.4 | G134: ='5ª Etapa'!D195 -> 1.4 | H134: ='6ª Etapa'!D195 -> 1.4 | I134: ='7ª Etapa'!D195 -> 1.4 | J134: ='8ª Etapa'!D195 -> 1.4 | K134: ='9ª Etapa'!D195 -> 1.4 | L134: ='10ª Etapa'!D195 -> 1.4 | M134: ='11ª Etapa'!D195 -> 1.4 | N134: ='12ª Etapa'!D195 -> 1.4
B135: INICIATIVA | C135: ='1ª Etapa'!E196 -> 0 | D135: ='2ª Etapa'!D196 -> 1.4 | E135: ='3ª Etapa'!D196 -> 1.4 | F135: ='4ª Etapa'!D196 -> 1.4 | G135: ='5ª Etapa'!D196 -> 1.4 | H135: ='6ª Etapa'!D196 -> 1.4 | I135: ='7ª Etapa'!D196 -> 1.4 | J135: ='8ª Etapa'!D196 -> 1.4 | K135: ='9ª Etapa'!D196 -> 1.4 | L135: ='10ª Etapa'!D196 -> 1.4 | M135: ='11ª Etapa'!D196 -> 1.4 | N135: ='12ª Etapa'!D196 -> 1.4
B136: PRODUTIVIDADE | C136: ='1ª Etapa'!E197 -> 12.6 | D136: ='2ª Etapa'!D197 -> 1.4 | E136: ='3ª Etapa'!D197 -> 1.4 | F136: ='4ª Etapa'!D197 -> 1.4 | G136: ='5ª Etapa'!D197 -> 1.4 | H136: ='6ª Etapa'!D197 -> 1.4 | I136: ='7ª Etapa'!D197 -> 1.4 | J136: ='8ª Etapa'!D197 -> 1.4 | K136: ='9ª Etapa'!D197 -> 1.4 | L136: ='10ª Etapa'!D197 -> 1.4 | M136: ='11ª Etapa'!D197 -> 1.4 | N136: ='12ª Etapa'!D197 -> 1.4
B137: RESPONSABILIDADE | C137: ='1ª Etapa'!E198 -> 9.8 | D137: ='2ª Etapa'!D198 -> 1.4 | E137: ='3ª Etapa'!D198 -> 1.4 | F137: ='4ª Etapa'!D198 -> 1.4 | G137: ='5ª Etapa'!D198 -> 1.4 | H137: ='6ª Etapa'!D198 -> 1.4 | I137: ='7ª Etapa'!D198 -> 1.4 | J137: ='8ª Etapa'!D198 -> 1.4 | K137: ='9ª Etapa'!D198 -> 1.4 | L137: ='10ª Etapa'!D198 -> 1.4 | M137: ='11ª Etapa'!D198 -> 1.4 | N137: ='12ª Etapa'!D198 -> 1.4
B138: COMPORTAMENTO | C138: ='1ª Etapa'!E199 -> 9.8 | D138: ='2ª Etapa'!D199 -> 1.4 | E138: ='3ª Etapa'!D199 -> 1.4 | F138: ='4ª Etapa'!D199 -> 1.4 | G138: ='5ª Etapa'!D199 -> 1.4 | H138: ='6ª Etapa'!D199 -> 1.4 | I138: ='7ª Etapa'!D199 -> 1.4 | J138: ='8ª Etapa'!D199 -> 1.4 | K138: ='9ª Etapa'!D199 -> 1.4 | L138: ='10ª Etapa'!D199 -> 1.4 | M138: ='11ª Etapa'!D199 -> 1.4 | N138: ='12ª Etapa'!D199 -> 1.4
B139: DESENVOLVIMENTO | C139: ='1ª Etapa'!E200 -> 7 | D139: ='2ª Etapa'!D200 -> 1.4 | E139: ='3ª Etapa'!D200 -> 1.4 | F139: ='4ª Etapa'!D200 -> 1.4 | G139: ='5ª Etapa'!D200 -> 1.4 | H139: ='6ª Etapa'!D200 -> 1.4 | I139: ='7ª Etapa'!D200 -> 1.4 | J139: ='8ª Etapa'!D200 -> 1.4 | K139: ='9ª Etapa'!D200 -> 1.4 | L139: ='10ª Etapa'!D200 -> 1.4 | M139: ='11ª Etapa'!D200 -> 1.4 | N139: ='12ª Etapa'!D200 -> 1.4
B140: NOTA | C140: ='1ª Etapa'!E201 -> 54.6 | D140: ='2ª Etapa'!D201 -> 10 | E140: ='3ª Etapa'!D201 -> 10 | F140: ='4ª Etapa'!D201 -> 10 | G140: ='5ª Etapa'!D201 -> 10 | H140: ='6ª Etapa'!D201 -> 10 | I140: ='7ª Etapa'!D201 -> 10 | J140: ='8ª Etapa'!D201 -> 10 | K140: ='9ª Etapa'!D201 -> 10 | L140: ='10ª Etapa'!D201 -> 10 | M140: ='11ª Etapa'!D201 -> 10 | N140: ='12ª Etapa'!D201 -> 10
B142: PONTUAÇÃO | C142: 1ª etapa | D142: 2ª etapa | E142: 3ª Etapa | F142: 4ª Etapa | G142: 5ª Etapa | H142: 6ª Etapa | I142: 7ª Etapa | J142: 8ª Etapa | K142: 9ª Etapa | L142: 10ª Etapa | M142: 11ª Etapa | N142: 12ª Etapa | O142: total
B143: ASSIDUIDADE | C143: ='1ª Etapa'!C193 -> 0 | D143: ='2ª Etapa'!C193 -> 9 | E143: ='3ª Etapa'!C193 -> 10 | F143: ='4ª Etapa'!C193 -> 5 | G143: ='5ª Etapa'!C193 -> 5 | H143: ='6ª Etapa'!C193 -> 9 | I143: ='7ª Etapa'!C193 -> 5 | J143: ='8ª Etapa'!C193 -> 10 | K143: ='9ª Etapa'!C193 -> 3 | L143: ='10ª Etapa'!C193 -> 10 | M143: ='11ª Etapa'!C193 -> 5 | N143: ='12ª Etapa'!C193 -> 9 | O143: =SUM(C143:N143) -> 80
B144: PONTUALIDADE | C144: ='1ª Etapa'!C194 -> 7 | D144: ='2ª Etapa'!C194 -> 7 | E144: ='3ª Etapa'!C194 -> 5 | F144: ='4ª Etapa'!C194 -> 1 | G144: ='5ª Etapa'!C194 -> 5 | H144: ='6ª Etapa'!C194 -> 10 | I144: ='7ª Etapa'!C194 -> 9 | J144: ='8ª Etapa'!C194 -> 5 | K144: ='9ª Etapa'!C194 -> 10 | L144: ='10ª Etapa'!C194 -> 9 | M144: ='11ª Etapa'!C194 -> 5 | N144: ='12ª Etapa'!C194 -> 7 | O144: 80
B145: DISCIPLINA | C145: ='1ª Etapa'!C195 -> 7 | D145: ='2ª Etapa'!C195 -> 7 | E145: ='3ª Etapa'!C195 -> 3 | F145: ='4ª Etapa'!C195 -> 0 | G145: ='5ª Etapa'!C195 -> 10 | H145: ='6ª Etapa'!C195 -> 7 | I145: ='7ª Etapa'!C195 -> 1 | J145: ='8ª Etapa'!C195 -> 1 | K145: ='9ª Etapa'!C195 -> 3 | L145: ='10ª Etapa'!C195 -> 10 | M145: ='11ª Etapa'!C195 -> 7 | N145: ='12ª Etapa'!C195 -> 0 | O145: 56
B146: INICIATIVA | C146: ='1ª Etapa'!C196 -> 0 | D146: ='2ª Etapa'!C196 -> 10 | E146: ='3ª Etapa'!C196 -> 5 | F146: ='4ª Etapa'!C196 -> 9 | G146: ='5ª Etapa'!C196 -> 10 | H146: ='6ª Etapa'!C196 -> 10 | I146: ='7ª Etapa'!C196 -> 10 | J146: ='8ª Etapa'!C196 -> 10 | K146: ='9ª Etapa'!C196 -> 10 | L146: ='10ª Etapa'!C196 -> 9 | M146: ='11ª Etapa'!C196 -> 9 | N146: ='12ª Etapa'!C196 -> 10 | O146: 102
B147: PRODUTIVIDADE | C147: ='1ª Etapa'!C197 -> 9 | D147: ='2ª Etapa'!C197 -> 9 | E147: ='3ª Etapa'!C197 -> 7 | F147: ='4ª Etapa'!C197 -> 10 | G147: ='5ª Etapa'!C197 -> 10 | H147: ='6ª Etapa'!C197 -> 7 | I147: ='7ª Etapa'!C197 -> 10 | J147: ='8ª Etapa'!C197 -> 7 | K147: ='9ª Etapa'!C197 -> 10 | L147: ='10ª Etapa'!C197 -> 7 | M147: ='11ª Etapa'!C197 -> 10 | N147: ='12ª Etapa'!C197 -> 7 | O147: 103
B148: RESPONSABILIDADE | C148: ='1ª Etapa'!C198 -> 7 | D148: ='2ª Etapa'!C198 -> 7 | E148: ='3ª Etapa'!C198 -> 5 | F148: ='4ª Etapa'!C198 -> 9 | G148: ='5ª Etapa'!C198 -> 5 | H148: ='6ª Etapa'!C198 -> 5 | I148: ='7ª Etapa'!C198 -> 9 | J148: ='8ª Etapa'!C198 -> 7 | K148: ='9ª Etapa'!C198 -> 10 | L148: ='10ª Etapa'!C198 -> 9 | M148: ='11ª Etapa'!C198 -> 9 | N148: ='12ª Etapa'!C198 -> 5 | O148: 87
B149: COMPORTAMENTO | C149: ='1ª Etapa'!C199 -> 7 | D149: ='2ª Etapa'!C199 -> 5 | E149: ='3ª Etapa'!C199 -> 9 | F149: ='4ª Etapa'!C199 -> 9 | G149: ='5ª Etapa'!C199 -> 1 | H149: ='6ª Etapa'!C199 -> 3 | I149: ='7ª Etapa'!C199 -> 9 | J149: ='8ª Etapa'!C199 -> 5 | K149: ='9ª Etapa'!C199 -> 7 | L149: ='10ª Etapa'!C199 -> 7 | M149: ='11ª Etapa'!C199 -> 7 | N149: ='12ª Etapa'!C199 -> 5 | O149: 74
B150: DESENVOLVIMENTO | C150: ='1ª Etapa'!C200 -> 5 | D150: ='2ª Etapa'!C200 -> 5 | E150: ='3ª Etapa'!C200 -> 7 | F150: ='4ª Etapa'!C200 -> 10 | G150: ='5ª Etapa'!C200 -> 7 | H150: ='6ª Etapa'!C200 -> 3 | I150: ='7ª Etapa'!C200 -> 7 | J150: ='8ª Etapa'!C200 -> 5 | K150: ='9ª Etapa'!C200 -> 9 | L150: ='10ª Etapa'!C200 -> 7 | M150: ='11ª Etapa'!C200 -> 7 | N150: ='12ª Etapa'!C200 -> 3 | O150: 75
B151: NOTA
B155: DESEMPENHO ESPECÍFICO | C155: 1ª etapa | D155: 2ª etapa | E155: 3ª Etapa | F155: 4ª Etapa | G155: 5ª Etapa | H155: 6ª Etapa | I155: 7ª Etapa | J155: 8ª Etapa | K155: 9ª Etapa | L155: 10ª Etapa | M155: 11ª Etapa | N155: 12ª Etapa
B156: ASSIDUIDADE | C156: =C143 -> 0 | D156: =D143 -> 9 | E156: 10 | F156: 5 | G156: 5 | H156: 9 | I156: 5 | J156: 10 | K156: 3 | L156: 10 | M156: 5 | N156: 9
B157: DESEMPENHO ESPECÍFICO | C157: 1ª etapa | D157: 2ª etapa | E157: 3ª Etapa | F157: 4ª Etapa | G157: 5ª Etapa | H157: 6ª Etapa | I157: 7ª Etapa | J157: 8ª Etapa | K157: 9ª Etapa | L157: 10ª Etapa | M157: 11ª Etapa | N157: 12ª Etapa
B158: PONTUALIDADE | C158: =C144 -> 7 | D158: =D144 -> 7 | E158: 5 | F158: 1 | G158: 5 | H158: 10 | I158: 9 | J158: 5 | K158: 10 | L158: 9 | M158: 5 | N158: 7
B159: DESEMPENHO ESPECÍFICO | C159: 1ª etapa | D159: 2ª etapa | E159: 3ª Etapa | F159: 4ª Etapa | G159: 5ª Etapa | H159: 6ª Etapa | I159: 7ª Etapa | J159: 8ª Etapa | K159: 9ª Etapa | L159: 10ª Etapa | M159: 11ª Etapa | N159: 12ª Etapa
B160: DISCIPLINA | C160: =C145 -> 7 | D160: =D145 -> 7 | E160: 3 | F160: 0 | G160: 10 | H160: 7 | I160: 1 | J160: 1 | K160: 3 | L160: 10 | M160: 7 | N160: 0
B161: DESEMPENHO ESPECÍFICO | C161: 1ª etapa | D161: 2ª etapa | E161: 3ª Etapa | F161: 4ª Etapa | G161: 5ª Etapa | H161: 6ª Etapa | I161: 7ª Etapa | J161: 8ª Etapa | K161: 9ª Etapa | L161: 10ª Etapa | M161: 11ª Etapa | N161: 12ª Etapa
B162: INICIATIVA | C162: =C146 -> 0 | D162: =D146 -> 10 | E162: 5 | F162: 9 | G162: 10 | H162: 10 | I162: 10 | J162: 10 | K162: 10 | L162: 9 | M162: 9 | N162: 10
B163: DESEMPENHO ESPECÍFICO | C163: 1ª etapa | D163: 2ª etapa | E163: 3ª Etapa | F163: 4ª Etapa | G163: 5ª Etapa | H163: 6ª Etapa | I163: 7ª Etapa | J163: 8ª Etapa | K163: 9ª Etapa | L163: 10ª Etapa | M163: 11ª Etapa | N163: 12ª Etapa
B164: PRODUTIVIDADE | C164: =C147 -> 9 | D164: =D147 -> 9 | E164: 7 | F164: 10 | G164: 10 | H164: 7 | I164: 10 | J164: 7 | K164: 10 | L164: 7 | M164: 10 | N164: 7
B165: DESEMPENHO ESPECÍFICO | C165: 1ª etapa | D165: 2ª etapa | E165: 3ª Etapa | F165: 4ª Etapa | G165: 5ª Etapa | H165: 6ª Etapa | I165: 7ª Etapa | J165: 8ª Etapa | K165: 9ª Etapa | L165: 10ª Etapa | M165: 11ª Etapa | N165: 12ª Etapa
B166: RESPONSABILIDADE | C166: =C148 -> 7 | D166: =D148 -> 7 | E166: 5 | F166: 9 | G166: 5 | H166: 5 | I166: 9 | J166: 7 | K166: 10 | L166: 9 | M166: 9 | N166: 5
B167: DESEMPENHO ESPECÍFICO | C167: 1ª etapa | D167: 2ª etapa | E167: 3ª Etapa | F167: 4ª Etapa | G167: 5ª Etapa | H167: 6ª Etapa | I167: 7ª Etapa | J167: 8ª Etapa | K167: 9ª Etapa | L167: 10ª Etapa | M167: 11ª Etapa | N167: 12ª Etapa
B168: COMPORTAMENTO | C168: =C149 -> 7 | D168: =D149 -> 5 | E168: 9 | F168: 9 | G168: 1 | H168: 3 | I168: 9 | J168: 5 | K168: 7 | L168: 7 | M168: 7 | N168: 5
B169: DESEMPENHO ESPECÍFICO | C169: 1ª etapa | D169: 2ª etapa | E169: 3ª Etapa | F169: 4ª Etapa | G169: 5ª Etapa | H169: 6ª Etapa | I169: 7ª Etapa | J169: 8ª Etapa | K169: 9ª Etapa | L169: 10ª Etapa | M169: 11ª Etapa | N169: 12ª Etapa
B170: DESENVOLVIMENTO | C170: =C150 -> 5 | D170: =D150 -> 5 | E170: 7 | F170: 10 | G170: 7 | H170: 3 | I170: 7 | J170: 5 | K170: 9 | L170: 7 | M170: 7 | N170: 3
B176: pontuação fatores | C176: lista_bom
B177: 10
B178: 9 | C178: Atende
B179: 7 | C179: Não atende
B180: 5
B181: 3
B182: 1
B183: 0
A185: ASS | B185: Graduação_assiduidade | D185: ASS_O1 | E185: ASS_O2 | F185: ASS_O3 | G185: ASS_O4 | H185: ASS_O5 | I185: ASS_O6 | J185: ASS_O7 | K185: ASS_O8 | L185: ASS_O9 | M185: ASS_O10 | N185: ASS_O11 | O185: ASS_O12
B186: Sem ocorrências | D186: =ASS_O1 -> A partir de 6 ocorrências | E186: =ASS_O2 -> 1 ocorrência | F186: =ASS_O3 -> Sem ocorrências | G186: =ASS_O4 -> 3 ocorrências | H186: =ASS_O5 -> 3 ocorrências | I186: =ASS_O6 -> 1 ocorrência | J186: =ASS_O7 -> 3 ocorrências | K186: =ASS_O8 -> Sem ocorrências | L186: =ASS_O9 -> 4 ocorrências | M186: =ASS_O10 -> Sem ocorrências | N186: =ASS_O11 -> 3 ocorrências | O186: =ASS_O12 -> 1 ocorrência
B187: 1 ocorrência | D187: ASS_P1 | E187: ASS_P2 | F187: ASS_P3 | G187: ASS_P4 | H187: ASS_P5 | I187: ASS_P6 | J187: ASS_P7 | K187: ASS_P8 | L187: ASS_P9 | M187: ASS_P10 | N187: ASS_P11 | O187: ASS_P12
B188: 2 ocorrências | D188: =ASS_P1 -> 0 | E188: =ASS_P2 -> 9 | F188: =ASS_P3 -> 10 | G188: =ASS_P4 -> 5 | H188: =ASS_P5 -> 5 | I188: =ASS_P6 -> 9 | J188: =ASS_P7 -> 5 | K188: =ASS_P8 -> 10 | L188: =ASS_P9 -> 3 | M188: =ASS_P10 -> 10 | N188: =ASS_P11 -> 5 | O188: =ASS_P12 -> 9
B189: 3 ocorrências
B190: 4 ocorrências
B191: 5 ocorrências
B192: A partir de 6 ocorrências
A194: PON | B194: graduação_pontualidade | D194: PON_O1 | E194: PON_O2 | F194: PON_O3 | G194: PON_O4 | H194: PON_O5 | I194: PON_O6 | J194: PON_O7 | K194: PON_O8 | L194: PON_O9 | M194: PON_O10 | N194: PON_O11 | O194: PON_O12
B195: Sem ocorrências | D195: =PON_O1 -> De 31 minutos até 120 minutos | E195: =PON_O2 -> De 31 minutos até 120 minutos | F195: =PON_O3 -> De 121 minutos até 240 minutos | G195: =PON_O4 -> De 481 minutos até 600 minutos | H195: =PON_O5 -> De 121 minutos até 240 minutos | I195: =PON_O6 -> Sem ocorrências | J195: =PON_O7 -> Até 30 minutos | K195: =PON_O8 -> De 121 minutos até 240 minutos | L195: =PON_O9 -> Sem ocorrências | M195: =PON_O10 -> Até 30 minutos | N195: =PON_O11 -> De 121 minutos até 240 minutos | O195: =PON_O12 -> De 31 minutos até 120 minutos
B196: Até 30 minutos | D196: PON_P1 | E196: PON_P2 | F196: PON_P3 | G196: PON_P4 | H196: PON_P5 | I196: PON_P6 | J196: PON_P7 | K196: PON_P8 | L196: PON_P9 | M196: PON_P10 | N196: PON_P11 | O196: PON_P12
B197: De 31 minutos até 120 minutos | D197: =PON_P1 -> 7 | E197: =PON_P2 -> 7 | F197: =PON_P3 -> 5 | G197: =PON_P4 -> 1 | H197: =PON_P5 -> 5 | I197: =PON_P6 -> 10 | J197: =PON_P7 -> 9 | K197: =PON_P8 -> 5 | L197: =PON_P9 -> 10 | M197: =PON_P10 -> 9 | N197: =PON_P11 -> 5 | O197: =PON_P12 -> 7
B198: De 121 minutos até 240 minutos
B199: De 241 minutos até 480 minutos
B200: De 481 minutos até 600 minutos
B201: Superior a 600 minutos
A203: DIS | B203: graduação_disciplina | C203: ocorrências_disciplina | D203: Dis_o1 | E203: Dis_o2 | F203: Dis_o3 | G203: Dis_o4 | H203: Dis_o5 | I203: Dis_o6 | J203: Dis_o7 | K203: Dis_o8 | L203: Dis_o9 | M203: Dis_o10 | N203: Dis_o11 | O203: Dis_o12
B204: Sem ocorrências | C204: 0 | D204: =SUM('1ª Etapa'!J38:J51) -> 2 | E204: =SUM('2ª Etapa'!J38:J51) -> 2 | F204: =SUM('3ª Etapa'!J38:J51) -> 7 | G204: =SUM('4ª Etapa'!J38:J51) -> 12 | H204: =SUM('5ª Etapa'!J38:J51) -> 0 | I204: =SUM('6ª Etapa'!J38:J51) -> 2 | J204: =SUM('7ª Etapa'!J38:J51) -> 8 | K204: =SUM('8ª Etapa'!J38:J51) -> 9 | L204: =SUM('9ª Etapa'!J38:J51) -> 6 | M204: =SUM('10ª Etapa'!J38:J51) -> 0 | N204: =SUM('11ª Etapa'!J38:J51) -> 2 | O204: =SUM('12ª Etapa'!J38:J51) -> 11
B205: 1 ocorrência | C205: 1 | D205: DIS_P1 | E205: DIS_P2 | F205: DIS_P3 | G205: DIS_P4 | H205: DIS_P5 | I205: DIS_P6 | J205: DIS_P7 | K205: DIS_P8 | L205: DIS_P9 | M205: DIS_P10 | N205: DIS_P11 | O205: DIS_P12
B206: De 2 a 3 ocorrências | C206: 2 | D206: =DIS_P1 -> 7 | E206: =DIS_P2 -> 7 | F206: =DIS_P3 -> 3 | G206: =DIS_P4 -> 0 | H206: =DIS_P5 -> 10 | I206: =DIS_P6 -> 7 | J206: =DIS_P7 -> 1 | K206: =DIS_P8 -> 1 | L206: =DIS_P9 -> 3 | M206: =DIS_P10 -> 10 | N206: =DIS_P11 -> 7 | O206: =DIS_P12 -> 0
B207: De 4 a 5 ocorrências | C207: 4
B208: De 6 a 7 ocorrências | C208: 6
B209: De 8 a 9 ocorrências | C209: 8
B210: A partir de 10 ocorrências | C210: 10
A212: INI | B212: graduação_iniciativa | C212: ocorrências_iniciativa | D212: Ini_o1 | E212: Ini_o2 | F212: Ini_o3 | G212: Ini_o4 | H212: Ini_o5 | I212: Ini_o6 | J212: Ini_o7 | K212: Ini_o8 | L212: Ini_o9 | M212: Ini_o10 | N212: Ini_o11 | O212: Ini_o12
B213: Atende às expectativas em todos os fatores | C213: 0 | D213: =COUNTIF(INI_Q1,"Não atende") -> 6 | E213: =COUNTIF(INI_Q2,"Não atende") -> 0 | F213: =COUNTIF(INI_Q3,"Não atende") -> 3 | G213: =COUNTIF(INI_Q4,"Não atende") -> 1 | H213: =COUNTIF(INI_Q5,"Não atende") -> 0 | I213: =COUNTIF(INI_Q6,"Não atende") -> 0 | J213: =COUNTIF('7ª Etapa'!J66:J77,"Não atende") -> 0 | K213: =COUNTIF('8ª Etapa'!J66:J77,"Não atende") -> 0 | L213: =COUNTIF('9ª Etapa'!J66:J77,"Não atende") -> 0 | M213: =COUNTIF('10ª Etapa'!J66:J77,"Não atende") -> 1 | N213: =COUNTIF('11ª Etapa'!J66:J77,"Não atende") -> 1 | O213: =COUNTIF('12ª Etapa'!J66:J77,"Não atende") -> 0
B214: Atende às expectativas em 5 fatores | C214: 1 | D214: INI_P1 | E214: INI_P2 | F214: INI_P3 | G214: INI_P4 | H214: INI_P5 | I214: INI_P6 | J214: INI_P7 | K214: INI_P8 | L214: INI_P9 | M214: INI_P10 | N214: INI_P11 | O214: INI_P12
B215: Atende às expectativas em 4 fatores | C215: 2 | D215: =INI_P1 -> 0 | E215: =INI_P2 -> 10 | F215: =INI_P3 -> 5 | G215: =INI_P4 -> 9 | H215: =INI_P5 -> 10 | I215: =INI_P6 -> 10 | J215: =INI_P7 -> 10 | K215: =INI_P8 -> 10 | L215: =INI_P9 -> 10 | M215: =INI_P10 -> 9 | N215: =INI_P11 -> 9 | O215: =INI_P12 -> 10
B216: Atende às expectativas em 3 fatores | C216: 3
B217: Atende às expectativas em 2 fatores | C217: 4
B218: Atende às expectativas em 1 | C218: 5
B219: Não atende às expectativas | C219: 6
A221: PRO | B221: graduação_produtividade | C221: ocorrências_produtividade | D221: PRO_O1 | E221: PRO_O2 | F221: PRO_O3 | G221: PRO_O4 | H221: PRO_O5 | I221: PRO_O6 | J221: PRO_O7 | K221: PRO_O8 | L221: PRO_O9 | M221: PRO_O10 | N221: PRO_O11 | O221: PRO_O12
B222: Atende às expectativas em todos os fatores | C222: 0 | D222: =COUNTIF('1ª Etapa'!J91:J102,"Não atende") -> 1 | E222: =COUNTIF('2ª Etapa'!J91:J102,"Não atende") -> 1 | F222: =COUNTIF('3ª Etapa'!J91:J102,"Não atende") -> 2 | G222: =COUNTIF('4ª Etapa'!J91:J102,"Não atende") -> 0 | H222: =COUNTIF('5ª Etapa'!J91:J102,"Não atende") -> 0 | I222: =COUNTIF('6ª Etapa'!J91:J102,"Não atende") -> 2 | J222: =COUNTIF('7ª Etapa'!J91:J102,"Não atende") -> 0 | K222: =COUNTIF('8ª Etapa'!J91:J102,"Não atende") -> 2 | L222: =COUNTIF('9ª Etapa'!J91:J102,"Não atende") -> 0 | M222: =COUNTIF('10ª Etapa'!J91:J102,"Não atende") -> 2 | N222: =COUNTIF('11ª Etapa'!J91:J102,"Não atende") -> 0 | O222: =COUNTIF('12ª Etapa'!J91:J102,"Não atende") -> 2
B223: Atende às expectativas em 5 fatores | C223: 1 | D223: PRO_P1 | E223: PRO_P2 | F223: PRO_P3 | G223: PRO_P4 | H223: PRO_P5 | I223: PRO_P6 | J223: PRO_P7 | K223: PRO_P8 | L223: PRO_P9 | M223: PRO_P10 | N223: PRO_P11 | O223: PRO_P12
B224: Atende às expectativas em 4 fatores | C224: 2 | D224: =PRO_P1 -> 9 | E224: =PRO_P2 -> 9 | F224: =PRO_P3 -> 7 | G224: =PRO_P4 -> 10 | H224: =PRO_P5 -> 10 | I224: =PRO_P6 -> 7 | J224: =PRO_P7 -> 10 | K224: =PRO_P8 -> 7 | L224: =PRO_P9 -> 10 | M224: =PRO_P10 -> 7 | N224: =PRO_P11 -> 10 | O224: =PRO_P12 -> 7
B225: Atende às expectativas em 3 fatores | C225: 3
B226: Atende às expectativas em 2 fatores | C226: 4
B227: Atende às expectativas em 1 | C227: 5
B228: Não atende às expectativas | C228: 6
A230: RES | B230: graduação_responsabilidade | C230: ocorrências_responsabilidade | D230: RES_O1 | E230: RES_O2 | F230: RES_O3 | G230: RES_O4 | H230: RES_O5 | I230: RES_O6 | J230: RES_O7 | K230: RES_O8 | L230: RES_O9 | M230: RES_O10 | N230: RES_O11 | O230: RES_O12
B231: Atende às expectativas em todos os fatores | C231: 0 | D231: =COUNTIF('1ª Etapa'!J117:J128,"Não atende") -> 2 | E231: =COUNTIF('2ª Etapa'!J117:J128,"Não atende") -> 2 | F231: =COUNTIF('3ª Etapa'!J117:J128,"Não atende") -> 3 | G231: =COUNTIF('4ª Etapa'!J117:J128,"Não atende") -> 1 | H231: =COUNTIF('5ª Etapa'!J117:J128,"Não atende") -> 3 | I231: =COUNTIF('6ª Etapa'!J117:J128,"Não atende") -> 3 | J231: =COUNTIF('7ª Etapa'!J117:J128,"Não atende") -> 1 | K231: =COUNTIF('8ª Etapa'!J117:J128,"Não atende") -> 2 | L231: =COUNTIF('9ª Etapa'!J117:J128,"Não atende") -> 0 | M231: =COUNTIF('10ª Etapa'!J117:J128,"Não atende") -> 1 | N231: =COUNTIF('11ª Etapa'!J117:J128,"Não atende") -> 1 | O231: =COUNTIF('12ª Etapa'!J117:J128,"Não atende") -> 3
B232: Atende às expectativas em 5 fatores | C232: 1 | D232: RES_P1 | E232: RES_P2 | F232: RES_P3 | G232: RES_P4 | H232: RES_P5 | I232: RES_P6 | J232: RES_P7 | K232: RES_P8 | L232: RES_P9 | M232: RES_P10 | N232: RES_P11 | O232: RES_P12
B233: Atende às expectativas em 4 fatores | C233: 2 | D233: =RES_P1 -> 7 | E233: =RES_P2 -> 7 | F233: =RES_P3 -> 5 | G233: =RES_P4 -> 9 | H233: =RES_P5 -> 5 | I233: =RES_P6 -> 5 | J233: =RES_P7 -> 9 | K233: =RES_P8 -> 7 | L233: =RES_P9 -> 10 | M233: =RES_P10 -> 9 | N233: =RES_P11 -> 9 | O233: =RES_P12 -> 5
B234: Atende às expectativas em 3 fatores | C234: 3
B235: Atende às expectativas em 2 fatores | C235: 4
B236: Atende às expectativas em 1 | C236: 5
B237: Não atende às expectativas | C237: 6
A239: COM | B239: graduação_comportamento | C239: ocorrências_comportamento | D239: COM_O1 | E239: COM_O2 | F239: COM_O3 | G239: COM_O4 | H239: COM_O5 | I239: COM_O6 | J239: COM_O7 | K239: COM_O8 | L239: COM_O9 | M239: COM_O10 | N239: COM_O11 | O239: COM_O12
B240: Atende às expectativas em todos os fatores | C240: 0 | D240: =COUNTIF('1ª Etapa'!J143:J154,"Não atende") -> 2 | E240: =COUNTIF('2ª Etapa'!J143:J154,"Não atende") -> 3 | F240: =COUNTIF('3ª Etapa'!J143:J154,"Não atende") -> 1 | G240: =COUNTIF('4ª Etapa'!J143:J154,"Não atende") -> 1 | H240: =COUNTIF('5ª Etapa'!J143:J154,"Não atende") -> 5 | I240: =COUNTIF('6ª Etapa'!J143:J154,"Não atende") -> 4 | J240: =COUNTIF('7ª Etapa'!J143:J154,"Não atende") -> 1 | K240: =COUNTIF('8ª Etapa'!J143:J154,"Não atende") -> 3 | L240: =COUNTIF('9ª Etapa'!J143:J154,"Não atende") -> 2 | M240: =COUNTIF('10ª Etapa'!J143:J154,"Não atende") -> 2 | N240: =COUNTIF('11ª Etapa'!J143:J154,"Não atende") -> 2 | O240: =COUNTIF('12ª Etapa'!J143:J154,"Não atende") -> 3
B241: Atende às expectativas em 5 fatores | C241: 1 | D241: COM_P1 | E241: COM_P2 | F241: COM_P3 | G241: COM_P4 | H241: COM_P5 | I241: COM_P6 | J241: COM_P7 | K241: COM_P8 | L241: COM_P9 | M241: COM_P10 | N241: COM_P11 | O241: COM_P12
... 13 more rows

Sheet 1ª Etapa
A1: FICHA DE AVALIAÇÃO DE DESEMPENHO
A2: =IFERROR(CONCATENATE("1ª ETAPA: de ",DAY(L2),"/",MONTH(L2),"/",YEAR(L2)," a ",DAY(M2),"/",MONTH(M2),"/",YEAR(M2)),"") -> 1ª ETAPA: de 15/12/2012 a 15/3/2013 | L2: =EXERCÍCIO -> 2012-12-15 | M2: =data_1 -> 2013-03-15
A4: Empregado: | B4: =IF(nome_empregado="","",nome_empregado) -> Tício | F4: Início do Exercício: | H4: =IF(EXERCÍCIO="","",EXERCÍCIO) -> 2012-12-15 | I4: Matrícula: | J4: =IF(matrícula="","",matrícula) -> 0
A5: Cargo: | B5: =IF(CARGO="","",CARGO) -> Assistente | F5: Lotação: | I5: RG/CPF: | J5: =IF(rg="","",rg) -> 
A6: Avaliador: | F6: Função: | I6: Data: | J6: 2014-06-16
A8: FATORES DE DESEMPENHO
A10: ASSIDUIDADE | B10: Refere-se à frequência com que o Empregado comparece ao Trabalho. A ausência injustificada do local de trabalho acarretará redução da nota, sendo que serão computadas como ocorrências neste quesito as faltas superiores a 60 (sessenta) minutos, ocorridas num mesmo dia, conforme critérios estabelecidos:
B14: Relatório de ocorrências:
F20: Quantidade de ocorrências: | I20: Pontuação:
F21: A partir de 6 ocorrências | I21: =IFERROR(IF(J6="","",INDEX(FATORES_PONT,MATCH(F21,Graduação_assiduidade,))),"") -> 0
A23: PONTUALIDADE | B23: Refere-se ao cumprimento do horário de trabalho estabelecido. Serão computados como ocorrência neste quesito os atrasos ou saídas antecipadas não superiores a 60 (sessenta) minutos, ocorridas num mesmo dia, sem justificativa e fora do previsto na CLT, conforme critérios estabelecidos:
B26: Relatório de ocorrências:
F32: Quantidade de ocorrências: | I32: Pontuação:
F33: De 31 minutos até 120 minutos | I33: =IFERROR(IF(J6="","",INDEX(FATORES_PONT,MATCH(F33,graduação_pontualidade,))),"") -> 7
A35: DISCIPLINA | B35: Refere-se ao cumprimento de normas internas do Conselho, como Regulamento de Pessoal, e respeito à hierarquia. São consideradas ocorrências:
B37: Situações: | J37: Quantidade:
B38: a) Alteração do horário de intervalo de almoço sem autorização prévia ou posterior justificativa aceita pelo superior imediato;
B40: b) Descumprimento do intervalo intrajornada mínimo de 60 minutos para os empregados com carga diária superior a 6 horas ou de 15 minutos para os empregados com carga diária entre 4 e 6 horas; | J40: 0
B42: c) Realização de horas extras sem autorização prévia ou posterior justificativa do superior imediato; | J42: 0
B44: d) Realização de compensação de jornada sem autorização prévia; | J44: 0
B46: e) Ausência da sede do Conselho, durante o expediente, sem comunicação ao superior imediato ou a outra pessoa de mesma hierarquia; | J46: 2
B48: f) Ocorrência de descumprimento do Regulamento de Pessoal; | J48: 0
B50: g) Ocorrência de descumprimento de orientações da chefia imediata ou desrespeito à hierarquia; | J50: 0
B53: Relatório de ocorrências:
E59: Graduação: | I59: Pontuação:
E60: =IF(COUNTA(DIS_Q1)=0,"",INDEX(graduação_disciplina,MATCH(DIS_O1,ocorrências_disciplina,1))) -> De 2 a 3 ocorrências | I60: =IFERROR(IF(J6="","",INDEX(FATORES_PONT,MATCH(E60,graduação_disciplina,))),"") -> 7
A62: INICIATIVA | B62: Refere-se ao comportamento proativo, com adoção de providências em situações não definidas pelo superior ou não previstas no(s) manual(is) de normas e procedimentos. São atitudes consideradas para a avaliação:
B65: Ocorrências: | J65: Avaliação:
B66: a) Busca atividades para ocupação do tempo, se houver momentos de baixa demanda; | J66: Não atende
B68: b) Quando necessário, identifica atividades prioritárias com resolução pendente, atendendo ou auxiliando no atendimento dessas questõe | J68: Não atende
B70: c) Contribui para a melhoria do trabalho, identificando problemas existentes e potenciais, apresentando ideias e propondo sugestões; | J70: Não atende
B72: d) É participativo e demostra interesse e engajamento nas atividades de reuniões, capacitações, eventos, entre outros; | J72: Não atende
B74: e) Demonstra iniciativa para resolver imprevistos, buscando soluções em situações adversas; | J74: Não atende
B76: f) Demonstra receptividade e adaptabilidade frente à implantação de mudanças; | J76: Não atende
B79: Relatório de ocorrências:
E85: Graduação: | I85: Pontuação:
E86: =IF(COUNTA(INI_Q1)=0,"",INDEX(graduação_iniciativa,MATCH(INI_O1,ocorrências_iniciativa,))) -> Não atende às expectativas | I86: =IFERROR(IF(J6="","",INDEX(FATORES_PONT,MATCH(E86,graduação_iniciativa,))),"") -> 0
A88: PRODUTIVIDADE | B88: Refere-se à análise do volume e qualidade de trabalho conforme resultados esperados para o cargo. São atitudes consideradas para a avaliação:
B90: Atitudes: | J90: Avaliação:
B91: a) Realiza um volume de trabalho compatível com o esperado, considerando o histórico habitual; | J91: Atende
B93: b) Apresenta um trabalho com qualidade satisfatória, evitando retrabalhos; | J93: Atende
B95: c) Cumpre os prazos estabelecidos, entregando as tarefas sob a sua responsabilidade no tempo previsto, evitando acúmulos nas demandas; | J95: Atende
B97: d) Estrutura e sistematiza as atividades para melhor utilização dos recursos. Estabelece prioridades e organiza suas atividades; | J97: Atende
B99: e) Desempenha os procedimentos e atividades com eficiência e técnicas adequadas; | J99: Não atende
B101: f) Executa suas tarefas com foco e equilíbrio, evitando distrações e dispersões; | J101: Atende
B104: Relatório de ocorrências:
E110: Graduação: | I110: Pontuação:
E111: =IF(COUNTA(PRO_Q1)=0,"",INDEX(graduação_produtividade,MATCH(PRO_O1,ocorrências_produtividade,))) -> Atende às expectativas em 5 fatores | I111: =IFERROR(IF(J6="","",INDEX(FATORES_PONT,MATCH(E111,graduação_produtividade,))),"") -> 9
A113: RESPONSABILIDADE | B113: Refere-se à análise quanto ao comprometimento com as tarefas delegadas, o grau de segurança que transmite aos superiores e zelo pelos recursos disponibilizados. São atitudes consideradas para a avaliação:
B116: Atitudes: | J116: Avaliação:
B117: a) Colabora com a conservação do patrimônio público e utilização dos materiais; | J117: Atende
B119: b) Diante de questões além de sua competência, realiza o encaminhamento interno necessário, possibilitando continuidade no atendimento e na resolução adequados; | J119: Atende
B121: c) Avisa ao superior sobre situações adversas relacionadas ao andamento do trabalho. | J121: Não atende
B123: d) Demonstra organização e planejamento no cumprimento de suas atividades; | J123: Não atende
B125: e) Apresenta autonomia nas decisões relativas às funções desenvolvidas, demonstrando comprometimento com o trabalho; | J125: Atende
B127: f) Transmite segurança no desempenho de suas funções, cumprindo suas tarefas de acordo com as instruções recebidas; | J127: Atende
B130: Relatório de ocorrências:
E136: Graduação: | I136: Pontuação:
E137: =IF(COUNTA(RES_Q1)=0,"",INDEX(graduação_responsabilidade,MATCH(RES_O1,ocorrências_responsabilidade,))) -> Atende às expectativas em 4 fatores | I137: =IFERROR(IF(J6="","",INDEX(FATORES_PONT,MATCH(E137,graduação_responsabilidade,))),"") -> 7
A139: COMPORTAMENTO | B139: Refere-se à postura e sigilo sobre assuntos reservados e confidenciais , ao comportamento e conhecimento disciplinar e ético. São atitudes consideradas para a avaliação:
B142: Atitudes: | J142: Avaliação:
B143: a) Trata informações e documentos com o grau de reserva ou sigilo necessários; | J143: Atende
B145: b) Atua com ética e profissionalismo, demonstrando postura equilibrada e adequada ao ambiente de trabalho; | J145: Não atende
B147: c) É receptivo em relação aos apontamentos e sugestões de melhoria feitas acerca de sua postura e desempenho do trabalho; | J147: Atende
B149: d) Trata a todos de forma solícita, gentil e respeitosa; | J149: Atende
B151: e) Difunde conhecimentos, ideias, soluções e boas práticas; | J151: Não atende
B153: f) Contribui para um melhor ambiente de trabalho, apresentando um bom relacionamento interpessoal e harmonia na convivência com os diversos perfis profissionais e pessoais, e em situações adversas. | J153: Atende
B156: Relatório de ocorrências:
E162: Graduação: | I162: Pontuação:
E163: =IF(COUNTA(COM_Q1)=0,"",INDEX(graduação_comportamento,MATCH(COM_O1,ocorrências_comportamento,))) -> Atende às expectativas em 4 fatores | I163: =IFERROR(IF(J6="","",INDEX(FATORES_PONT,MATCH(E163,graduação_comportamento,))),"") -> 7
A165: DESENVOLVIMENTO | B165: Refere-se à análise quanto a potencialidade para aprendizagem e aplicação do conhecimento. São atitudes consideradas para a avaliação:
B167: Atitudes: | J167: Avaliação:
B168: a) Tem domínio sobre as atividades, normativas, procedimentos e processos da área em que atua, assegurando corretas orientações para a sua equipe e sociedade; | J168: Atende
B170: b) Demonstra interesse em absorver novos conhecimentos e no treinamento para novas tarefas, procedimentos e processos; | J170: Atende
B172: c) Comunica-se de forma clara e eficiente, atentando para a qualidade da linguagem e da informação transmitida; | J172: Não atende
B174: d) Busca aperfeiçoamento no exercício de suas atribuições, atualizando-se continuamente no que diz respeito aos dispositivos legais e habilidades específicas necessários ao desenvolvimento de suas atividades; | J174: Atende
B176: e) Demonstra senso crítico em relação às tarefas de rotina, buscando o aperfeiçoamento técnico e lógico dos procedimentos realizados; | J176: Não atende
B178: f) Desempenha suas atividades com atenção, demonstrando conhecimento e memória de trabalho. | J178: Não atende
B181: Relatório de ocorrências:
E187: Graduação: | I187: Pontuação:
E188: =IF(COUNTA(DES_Q1)=0,"",INDEX(GRADUAÇÃ0_DESENVOLVIMENTO,MATCH(DES_O1,ocorrências_DESENVOLVIMENTO,))) -> Atende às expectativas em 3 fatores | I188: =IFERROR(IF(J6="","",INDEX(FATORES_PONT,MATCH(E188,GRADUAÇÃ0_DESENVOLVIMENTO,))),"") -> 5
A190: GRADUAÇÕES
A192: FATORES | C192: PONTUAÇÃO | D192: PESO | E192: NOTA | G192: CONCEITOS
A193: ASSIDUIDADE | C193: =I21 -> 0 | D193: 0.8 | E193: =IFERROR(C193*D193,"") -> 0 | G193: Insatisfatório | H193: até 29,9 | I193: Desempenho ruim.
A194: PONTUALIDADE | C194: =I33 -> 7 | D194: 0.8 | E194: 5.6 | G194: Regular | H194: 30 a 49,9 | I194: Desempenho abaixo da média.
A195: DISCIPLINA | C195: =I60 -> 7 | D195: 1.4 | E195: 9.8 | G195: Bom | H195: 50 a 69,9 | I195: Desempenho satisfaz.
A196: INICIATIVA | C196: =I86 -> 0 | D196: 1.4 | E196: 0 | G196: Muito bom | H196: 70 a 89,9 | I196: Desempenho acima da média.
A197: PRODUTIVIDADE | C197: =I111 -> 9 | D197: 1.4 | E197: 12.6 | G197: Excelente | H197: 90 a 100 | I197: Desempenho exemplar.
A198: RESPONSABILIDADE | C198: =I137 -> 7 | D198: 1.4 | E198: 9.8
A199: COMPORTAMENTO | C199: =I163 -> 7 | D199: 1.4 | E199: 9.8 | G199: Resultado: | I199: Conceito:
A200: DESENVOLVIMENTO | C200: =I188 -> 5 | D200: 1.4 | E200: 7 | G200: =E201 -> 54.6 | I200: =IF(G200="","",IF(E201>mbom,G197,IF(E201>bom,G196,IF(E201>reg,G195,IF(E201>insat,G194,IF(E201>=0,G193,"")))))) -> Bom
C201: TOTAIS: | D201: =IF(SUM(D193:D200)=0,"",SUM(D193:D200)) -> 10 | E201: =IF(SUM(E193:E200)=0,"",SUM(E193:E200)) -> 54.6
A203: PARECER DO AVALIADOR
B215: Ciente do conteúdo da avaliação.
B216: =IFERROR(CONCATENATE("Porto Alegre, ",dataav_1),"") -> Porto Alegre, dia 16 de junho de 2014.
C220: =IF(nome_empregado="","",nome_empregado) -> Tício | H220: =IF(B6="","",B6) -> 
C221: AVALIADO | H221: AVALIADOR

Sheet 2ª Etapa
A1: FICHA DE AVALIAÇÃO DE DESEMPENHO
A2: =IFERROR(CONCATENATE("2ª ETAPA: de ",DAY(L2),"/",MONTH(L2),"/",YEAR(L2)," a ",DAY(M2),"/",MONTH(M2),"/",YEAR(M2)),"") -> 2ª ETAPA: de 16/3/2013 a 17/6/2013 | L2: =data_1+1 -> 2013-03-16 | M2: =data_2 -> 2013-06-17
A4: Empregado: | B4: =IF(nome_empregado="","",nome_empregado) -> Tício | F4: Início do Exercício: | H4: =IF(EXERCÍCIO="","",EXERCÍCIO) -> 2012-12-15 | I4: Matrícula: | J4: =IF(matrícula="","",matrícula) -> 0
A5: Cargo: | B5: =IF(CARGO="","",CARGO) -> Assistente | F5: Lotação: | I5: RG/CPF: | J5: =IF(rg="","",rg) -> 
A6: Avaliador: | F6: Função: | I6: Data: | J6: 2017-05-15
A8: FATORES DE DESEMPENHO
A10: ASSIDUIDADE | B10: Refere-se à frequência com que o Empregado comparece ao Trabalho. A ausência injustificada do local de trabalho acarretará redução da nota, sendo que serão computadas como ocorrências neste quesito as faltas superiores a 60 (sessenta) minutos, ocorridas num mesmo dia, conforme critérios estabelecidos:
B14: Relatório de ocorrências:
F20: Quantidade de ocorrências: | I20: Pontuação:
F21: 1 ocorrência | I21: =IFERROR(IF(J6="","",INDEX(FATORES_PONT,MATCH(F21,Graduação_assiduidade,))),"") -> 9
A23: PONTUALIDADE | B23: Refere-se ao cumprimento do horário de trabalho estabelecido. Serão computados como ocorrência neste quesito os atrasos ou saídas antecipadas não superiores a 60 (sessenta) minutos, ocorridas num mesmo dia, sem justificativa e fora do previsto na CLT, conforme critérios estabelecidos:
B26: Relatório de ocorrências:
F32: Quantidade de ocorrências: | I32: Pontuação:
F33: De 31 minutos até 120 minutos | I33: =IFERROR(IF(J6="","",INDEX(FATORES_PONT,MATCH(F33,graduação_pontualidade,))),"") -> 7
A35: DISCIPLINA | B35: Refere-se ao cumprimento de normas internas do Conselho, como Regulamento de Pessoal, e respeito à hierarquia. São consideradas ocorrências:
B37: Situações: | J37: Quantidade:
B38: a) Alteração do horário de intervalo de almoço sem autorização prévia ou posterior justificativa aceita pelo superior imediato; | J38: 0
B40: b) Descumprimento do intervalo intrajornada mínimo de 60 minutos para os empregados com carga diária superior a 6 horas ou de 15 minutos para os empregados com carga diária entre 4 e 6 horas;
B42: c) Realização de horas extras sem autorização prévia ou posterior justificativa do superior imediato; | J42: 0
B44: d) Realização de compensação de jornada sem autorização prévia; | J44: 0
B46: e) Ausência da sede do Conselho, durante o expediente, sem comunicação ao superior imediato ou a outra pessoa de mesma hierarquia; | J46: 0
B48: f) Ocorrência de descumprimento do Regulamento de Pessoal; | J48: 2
B50: g) Ocorrência de descumprimento de orientações da chefia imediata ou desrespeito à hierarquia; | J50: 0
B53: Relatório de ocorrências:
E59: Graduação: | I59: Pontuação:
E60: =IF(COUNTA(DIS_Q2)=0,"",INDEX(graduação_disciplina,MATCH(DIS_O2,ocorrências_disciplina,1))) -> De 2 a 3 ocorrências | I60: =IFERROR(IF(J6="","",INDEX(FATORES_PONT,MATCH(E60,graduação_disciplina,))),"") -> 7
A62: INICIATIVA | B62: Refere-se ao comportamento proativo, com adoção de providências em situações não definidas pelo superior ou não previstas no(s) manual(is) de normas e procedimentos. São atitudes consideradas para a avaliação:
B65: Ocorrências: | J65: Avaliação:
B66: a) Busca atividades para ocupação do tempo, se houver momentos de baixa demanda; | J66: Atende
B68: b) Quando necessário, identifica atividades prioritárias com resolução pendente, atendendo ou auxiliando no atendimento dessas questõe | J68: Atende
B70: c) Contribui para a melhoria do trabalho, identificando problemas existentes e potenciais, apresentando ideias e propondo sugestões; | J70: Atende
B72: d) É participativo e demostra interesse e engajamento nas atividades de reuniões, capacitações, eventos, entre outros; | J72: Atende
B74: e) Demonstra iniciativa para resolver imprevistos, buscando soluções em situações adversas; | J74: Atende
B76: f) Demonstra receptividade e adaptabilidade frente à implantação de mudanças; | J76: Atende
B79: Relatório de ocorrências:
E85: Graduação: | I85: Pontuação:
E86: =IF(COUNTA(INI_Q2)=0,"",INDEX(graduação_iniciativa,MATCH(INI_O2,ocorrências_iniciativa,))) -> Atende às expectativas em todos os fatores | I86: =IFERROR(IF(J6="","",INDEX(FATORES_PONT,MATCH(E86,graduação_iniciativa,-11))),"") -> 10
A88: PRODUTIVIDADE | B88: Refere-se à análise do volume e qualidade de trabalho conforme resultados esperados para o cargo. São atitudes consideradas para a avaliação:
B90: Atitudes: | J90: Avaliação:
B91: a) Realiza um volume de trabalho compatível com o esperado, considerando o histórico habitual; | J91: Atende
B93: b) Apresenta um trabalho com qualidade satisfatória, evitando retrabalhos; | J93: Não atende
B95: c) Cumpre os prazos estabelecidos, entregando as tarefas sob a sua responsabilidade no tempo previsto, evitando acúmulos nas demandas; | J95: Atende
B97: d) Estrutura e sistematiza as atividades para melhor utilização dos recursos. Estabelece prioridades e organiza suas atividades; | J97: Atende
B99: e) Desempenha os procedimentos e atividades com eficiência e técnicas adequadas; | J99: Atende
B101: f) Executa suas tarefas com foco e equilíbrio, evitando distrações e dispersões; | J101: Atende
B104: Relatório de ocorrências:
E110: Graduação: | I110: Pontuação:
E111: =IF(COUNTA(PRO_Q2)=0,"",INDEX(graduação_produtividade,MATCH(PRO_O2,ocorrências_produtividade,))) -> Atende às expectativas em 5 fatores | I111: =IFERROR(IF(J6="","",INDEX(FATORES_PONT,MATCH(E111,graduação_produtividade,))),"") -> 9
A113: RESPONSABILIDADE | B113: Refere-se à análise quanto ao comprometimento com as tarefas delegadas, o grau de segurança que transmite aos superiores e zelo pelos recursos disponibilizados. São atitudes consideradas para a avaliação:
B116: Atitudes: | J116: Avaliação:
B117: a) Colabora com a conservação do patrimônio público e utilização dos materiais; | J117: Atende
B119: b) Diante de questões além de sua competência, realiza o encaminhamento interno necessário, possibilitando continuidade no atendimento e na resolução adequados; | J119: Atende
B121: c) Avisa ao superior sobre situações adversas relacionadas ao andamento do trabalho. | J121: Não atende
B123: d) Demonstra organização e planejamento no cumprimento de suas atividades; | J123: Não atende
B125: e) Apresenta autonomia nas decisões relativas às funções desenvolvidas, demonstrando comprometimento com o trabalho; | J125: Atende
B127: f) Transmite segurança no desempenho de suas funções, cumprindo suas tarefas de acordo com as instruções recebidas; | J127: Atende
B130: Relatório de ocorrências:
E136: Graduação: | I136: Pontuação:
E137: =IF(COUNTA(RES_Q2)=0,"",INDEX(graduação_responsabilidade,MATCH(RES_O2,ocorrências_responsabilidade,))) -> Atende às expectativas em 4 fatores | I137: =IFERROR(IF(J6="","",INDEX(FATORES_PONT,MATCH(E137,graduação_responsabilidade,))),"") -> 7
A139: COMPORTAMENTO | B139: Refere-se à postura e sigilo sobre assuntos reservados e confidenciais , ao comportamento e conhecimento disciplinar e ético. São atitudes consideradas para a avaliação:
B142: Atitudes: | J142: Avaliação:
B143: a) Trata informações e documentos com o grau de reserva ou sigilo necessários; | J143: Atende
B145: b) Atua com ética e profissionalismo, demonstrando postura equilibrada e adequada ao ambiente de trabalho. | J145: Atende
B147: c) É receptivo em relação aos apontamentos e sugestões de melhoria feitas acerca de sua postura e desempenho do trabalho; | J147: Não atende
B149: d) Trata a todos de forma solícita, gentil e respeitosa; | J149: Atende
B151: e) Difunde conhecimentos, ideias, soluções e boas práticas; | J151: Não atende
B153: f) Contribui para um melhor ambiente de trabalho, apresentando um bom relacionamento interpessoal e harmonia na convivência com os diversos perfis profissionais e pessoais, e em situações adversas. | J153: Não atende
B156: Relatório de ocorrências:
E162: Graduação: | I162: Pontuação:
E163: =IF(COUNTA(COM_Q2)=0,"",INDEX(graduação_comportamento,MATCH(COM_O2,ocorrências_comportamento,))) -> Atende às expectativas em 3 fatores | I163: =IFERROR(IF(J6="","",INDEX(FATORES_PONT,MATCH(E163,graduação_comportamento,))),"") -> 5
A165: DESENVOLVIMENTO | B165: Refere-se à análise quanto a potencialidade para aprendizagem e aplicação do conhecimento. São atitudes consideradas para a avaliação:
B167: Atitudes: | J167: Avaliação:
B168: a) Tem domínio sobre as atividades, normativas, procedimentos e processos da área em que atua, assegurando corretas orientações para a sua equipe e sociedade; | J168: Atende
B170: b) Demonstra interesse em absorver novos conhecimentos e no treinamento para novas tarefas, procedimentos e processos; | J170: Atende
B172: c) Comunica-se de forma clara e eficiente, atentando para a qualidade da linguagem e da informação transmitida; | J172: Não atende
B174: d) Busca aperfeiçoamento no exercício de suas atribuições, atualizando-se continuamente no que diz respeito aos dispositivos legais e habilidades específicas necessários ao desenvolvimento de suas atividades; | J174: Atende
B176: e) Demonstra senso crítico em relação às tarefas de rotina, buscando o aperfeiçoamento técnico e lógico dos procedimentos realizados; | J176: Não atende
B178: f) Desempenha suas atividades com atenção, demonstrando conhecimento e memória de trabalho. | J178: Não atende
B181: Relatório de ocorrências:
E187: Graduação: | I187: Pontuação:
E188: =IF(COUNTA(DES_Q2)=0,"",INDEX(GRADUAÇÃ0_DESENVOLVIMENTO,MATCH(DES_O2,ocorrências_DESENVOLVIMENTO,))) -> Atende às expectativas em 3 fatores | I188: =IFERROR(IF(J6="","",INDEX(FATORES_PONT,MATCH(E188,GRADUAÇÃ0_DESENVOLVIMENTO,))),"") -> 5
A190: GRADUAÇÕES
A192: FATORES | C192: PONTUAÇÃO | D192: PESO | E192: NOTA | G192: CONCEITOS
A193: ASSIDUIDADE | C193: =I21 -> 9 | D193: 0.8 | E193: =IFERROR(C193*D193,"") -> 7.2 | G193: Insatisfatório | H193: até 29,9 | I193: Desempenho ruim.
A194: PONTUALIDADE | C194: =I33 -> 7 | D194: 0.8 | E194: 5.6 | G194: Regular | H194: 30 a 49,9 | I194: Desempenho abaixo da média.
A195: DISCIPLINA | C195: =I60 -> 7 | D195: 1.4 | E195: 9.8 | G195: Bom | H195: 50 a 69,9 | I195: Desempenho satisfaz.
A196: INICIATIVA | C196: =I86 -> 10 | D196: 1.4 | E196: 14 | G196: Muito bom | H196: 70 a 89,9 | I196: Desempenho acima da média.
A197: PRODUTIVIDADE | C197: =I111 -> 9 | D197: 1.4 | E197: 12.6 | G197: Excelente | H197: 90 a 100 | I197: Desempenho exemplar.
A198: RESPONSABILIDADE | C198: =I137 -> 7 | D198: 1.4 | E198: 9.8
A199: COMPORTAMENTO | C199: =I163 -> 5 | D199: 1.4 | E199: 7 | G199: Resultado: | I199: Conceito:
A200: DESENVOLVIMENTO | C200: =I188 -> 5 | D200: 1.4 | E200: 7 | G200: =E201 -> 73 | I200: =IF(G200="","",IF(E201>mbom,G197,IF(E201>bom,G196,IF(E201>reg,G195,IF(E201>insat,G194,IF(E201>=0,G193,"")))))) -> Muito bom
C201: TOTAIS: | D201: =IF(SUM(D193:D200)=0,"",SUM(D193:D200)) -> 10 | E201: =IF(SUM(E193:E200)=0,"",SUM(E193:E200)) -> 73
A203: PARECER DO AVALIADOR
B215: Ciente do conteúdo da avaliação.
B216: =IFERROR(CONCATENATE("Porto Alegre, ",dataav_2),"") -> Porto Alegre, dia 15 de maio de 2017.
C220: =IF(nome_empregado="","",nome_empregado) -> Tício | H220: =IF(B6="","",B6) -> 
C221: AVALIADO | H221: AVALIADOR

Sheet 3ª Etapa
A1: FICHA DE AVALIAÇÃO DE DESEMPENHO
A2: =IFERROR(CONCATENATE("3ª ETAPA: de ",DAY(L2),"/",MONTH(L2),"/",YEAR(L2)," a ",DAY(M2),"/",MONTH(M2),"/",YEAR(M2)),"") -> 3ª ETAPA: de 18/6/2013 a 16/9/2013 | L2: =data_2+1 -> 2013-06-18 | M2: =data_3 -> 2013-09-16
A4: Empregado: | B4: =IF(nome_empregado="","",nome_empregado) -> Tício | F4: Início do Exercício: | H4: =IF(EXERCÍCIO="","",EXERCÍCIO) -> 2012-12-15 | I4: Matrícula: | J4: =IF(matrícula="","",matrícula) -> 0
A5: Cargo: | B5: =IF(CARGO="","",CARGO) -> Assistente | F5: Lotação: | I5: RG/CPF: | J5: =IF(rg="","",rg) -> 
A6: Avaliador: | F6: Função: | I6: Data: | J6: 2017-04-01
A8: FATORES DE DESEMPENHO
A10: ASSIDUIDADE | B10: Refere-se à frequência com que o Empregado comparece ao Trabalho. A ausência injustificada do local de trabalho acarretará redução da nota, sendo que serão computadas como ocorrências neste quesito as faltas superiores a 60 (sessenta) minutos, ocorridas num mesmo dia, conforme critérios estabelecidos:
B14: Relatório de ocorrências:
F20: Quantidade de ocorrências: | I20: Pontuação:
F21: Sem ocorrências | I21: =IFERROR(IF(J6="","",INDEX(FATORES_PONT,MATCH(F21,Graduação_assiduidade,))),"") -> 10
A23: PONTUALIDADE | B23: Refere-se ao cumprimento do horário de trabalho estabelecido. Serão computados como ocorrência neste quesito os atrasos ou saídas antecipadas não superiores a 60 (sessenta) minutos, ocorridas num mesmo dia, sem justificativa e fora do previsto na CLT, conforme critérios estabelecidos:
B26: Relatório de ocorrências:
F32: Quantidade de ocorrências: | I32: Pontuação:
F33: De 121 minutos até 240 minutos | I33: =IFERROR(IF(J6="","",INDEX(FATORES_PONT,MATCH(F33,graduação_pontualidade,))),"") -> 5
A35: DISCIPLINA | B35: Refere-se ao cumprimento de normas internas do Conselho, como Regulamento de Pessoal, e respeito à hierarquia. São consideradas ocorrências:
B37: Situações: | J37: Quantidade:
B38: a) Alteração do horário de intervalo de almoço sem autorização prévia ou posterior justificativa aceita pelo superior imediato; | J38: 1
B40: b) Descumprimento do intervalo intrajornada mínimo de 60 minutos para os empregados com carga diária superior a 6 horas ou de 15 minutos para os empregados com carga diária entre 4 e 6 horas; | J40: 1
B42: c) Realização de horas extras sem autorização prévia ou posterior justificativa do superior imediato; | J42: 1
B44: d) Realização de compensação de jornada sem autorização prévia; | J44: 1
B46: e) Ausência da sede do Conselho, durante o expediente, sem comunicação ao superior imediato ou a outra pessoa de mesma hierarquia; | J46: 1
B48: f) Ocorrência de descumprimento do Regulamento de Pessoal; | J48: 1
B50: g) Ocorrência de descumprimento de orientações da chefia imediata ou desrespeito à hierarquia; | J50: 1
B53: Relatório de ocorrências:
E59: Graduação: | I59: Pontuação:
E60: =IF(COUNTA(DIS_Q3)=0,"",INDEX(graduação_disciplina,MATCH(DIS_O3,ocorrências_disciplina,1))) -> De 6 a 7 ocorrências | I60: =IFERROR(IF(J6="","",INDEX(FATORES_PONT,MATCH(E60,graduação_disciplina,))),"") -> 3
A62: INICIATIVA | B62: Refere-se ao comportamento proativo, com adoção de providências em situações não definidas pelo superior ou não previstas no(s) manual(is) de normas e procedimentos. São atitudes consideradas para a avaliação:
B65: Ocorrências: | J65: Avaliação:
B66: a) Busca atividades para ocupação do tempo, se houver momentos de baixa demanda; | J66: Atende
B68: b) Quando necessário, identifica atividades prioritárias com resolução pendente, atendendo ou auxiliando no atendimento dessas questõe | J68: Atende
B70: c) Contribui para a melhoria do trabalho, identificando problemas existentes e potenciais, apresentando ideias e propondo sugestões; | J70: Não atende
B72: d) É participativo e demostra interesse e engajamento nas atividades de reuniões, capacitações, eventos, entre outros; | J72: Não atende
B74: e) Demonstra iniciativa para resolver imprevistos, buscando soluções em situações adversas; | J74: Não atende
B76: f) Demonstra receptividade e adaptabilidade frente à implantação de mudanças; | J76: Atende
B79: Relatório de ocorrências:
E85: Graduação: | I85: Pontuação:
E86: =IF(COUNTA(INI_Q3)=0,"",INDEX(graduação_iniciativa,MATCH(INI_O3,ocorrências_iniciativa,))) -> Atende às expectativas em 3 fatores | I86: =IFERROR(IF(J6="","",INDEX(FATORES_PONT,MATCH(E86,graduação_iniciativa,))),"") -> 5
A88: PRODUTIVIDADE | B88: Refere-se à análise do volume e qualidade de trabalho conforme resultados esperados para o cargo. São atitudes consideradas para a avaliação:
B90: Atitudes: | J90: Avaliação:
B91: a) Realiza um volume de trabalho compatível com o esperado, considerando o histórico habitual; | J91: Atende
B93: b) Apresenta um trabalho com qualidade satisfatória, evitando retrabalhos; | J93: Não atende
B95: c) Cumpre os prazos estabelecidos, entregando as tarefas sob a sua responsabilidade no tempo previsto, evitando acúmulos nas demandas; | J95: Não atende
B97: d) Estrutura e sistematiza as atividades para melhor utilização dos recursos. Estabelece prioridades e organiza suas atividades; | J97: Atende
B99: e) Desempenha os procedimentos e atividades com eficiência e técnicas adequadas; | J99: Atende
B101: f) Executa suas tarefas com foco e equilíbrio, evitando distrações e dispersões; | J101: Atende
B104: Relatório de ocorrências:
E110: Graduação: | I110: Pontuação:
E111: =IF(COUNTA(PRO_Q3)=0,"",INDEX(graduação_produtividade,MATCH(PRO_O3,ocorrências_produtividade,))) -> Atende às expectativas em 4 fatores | I111: =IFERROR(IF(J6="","",INDEX(FATORES_PONT,MATCH(E111,graduação_produtividade,))),"") -> 7
A113: RESPONSABILIDADE | B113: Refere-se à análise quanto ao comprometimento com as tarefas delegadas, o grau de segurança que transmite aos superiores e zelo pelos recursos disponibilizados. São atitudes consideradas para a avaliação:
B116: Atitudes: | J116: Avaliação:
B117: a) Colabora com a conservação do patrimônio público e utilização dos materiais; | J117: Atende
B119: b) Diante de questões além de sua competência, realiza o encaminhamento interno necessário, possibilitando continuidade no atendimento e na resolução adequados; | J119: Atende
B121: c) Avisa ao superior sobre situações adversas relacionadas ao andamento do trabalho. | J121: Não atende
B123: d) Demonstra organização e planejamento no cumprimento de suas atividades; | J123: Não atende
B125: e) Apresenta autonomia nas decisões relativas às funções desenvolvidas, demonstrando comprometimento com o trabalho; | J125: Atende
B127: f) Transmite segurança no desempenho de suas funções, cumprindo suas tarefas de acordo com as instruções recebidas; | J127: Não atende
B130: Relatório de ocorrências:
E136: Graduação: | I136: Pontuação:
E137: =IF(COUNTA(RES_Q3)=0,"",INDEX(graduação_responsabilidade,MATCH(RES_O3,ocorrências_responsabilidade,))) -> Atende às expectativas em 3 fatores | I137: =IFERROR(IF(J6="","",INDEX(FATORES_PONT,MATCH(E137,graduação_responsabilidade,))),"") -> 5
A139: COMPORTAMENTO | B139: Refere-se à postura e sigilo sobre assuntos reservados e confidenciais , ao comportamento e conhecimento disciplinar e ético. São atitudes consideradas para a avaliação:
B142: Atitudes: | J142: Avaliação:
B143: a) Trata informações e documentos com o grau de reserva ou sigilo necessários; | J143: Atende
B145: b) Atua com ética e profissionalismo, demonstrando postura equilibrada e adequada ao ambiente de trabalho. | J145: Atende
B147: c) É receptivo em relação aos apontamentos e sugestões de melhoria feitas acerca de sua postura e desempenho do trabalho; | J147: Atende
B149: d) Trata a todos de forma solícita, gentil e respeitosa; | J149: Atende
B151: e) Difunde conhecimentos, ideias, soluções e boas práticas; | J151: Atende
B153: f) Contribui para um melhor ambiente de trabalho, apresentando um bom relacionamento interpessoal e harmonia na convivência com os diversos perfis profissionais e pessoais, e em situações adversas. | J153: Não atende
B156: Relatório de ocorrências:
E162: Graduação: | I162: Pontuação:
E163: =IF(COUNTA(COM_Q3)=0,"",INDEX(graduação_comportamento,MATCH(COM_O3,ocorrências_comportamento,))) -> Atende às expectativas em 5 fatores | I163: =IFERROR(IF(J6="","",INDEX(FATORES_PONT,MATCH(E163,graduação_comportamento,))),"") -> 9
A165: DESENVOLVIMENTO | B165: Refere-se à análise quanto a potencialidade para aprendizagem e aplicação do conhecimento. São atitudes consideradas para a avaliação:
B167: Atitudes: | J167: Avaliação:
B168: a) Tem domínio sobre as atividades, normativas, procedimentos e processos da área em que atua, assegurando corretas orientações para a sua equipe e sociedade; | J168: Atende
B170: b) Demonstra interesse em absorver novos conhecimentos e no treinamento para novas tarefas, procedimentos e processos; | J170: Atende
B172: c) Comunica-se de forma clara e eficiente, atentando para a qualidade da linguagem e da informação transmitida; | J172: Atende
B174: d) Busca aperfeiçoamento no exercício de suas atribuições, atualizando-se continuamente no que diz respeito aos dispositivos legais e habilidades específicas necessários ao desenvolvimento de suas atividades; | J174: Atende
B176: e) Demonstra senso crítico em relação às tarefas de rotina, buscando o aperfeiçoamento técnico e lógico dos procedimentos realizados; | J176: Não atende
B178: f) Desempenha suas atividades com atenção, demonstrando conhecimento e memória de trabalho. | J178: Não atende
B181: Relatório de ocorrências:
E187: Graduação: | I187: Pontuação:
E188: =IF(COUNTA(DES_Q3)=0,"",INDEX(GRADUAÇÃ0_DESENVOLVIMENTO,MATCH(DES_O3,ocorrências_DESENVOLVIMENTO,))) -> Atende às expectativas em 4 fatores | I188: =IFERROR(IF(J6="","",INDEX(FATORES_PONT,MATCH(E188,GRADUAÇÃ0_DESENVOLVIMENTO,))),"") -> 7
A190: GRADUAÇÕES
A192: FATORES | C192: PONTUAÇÃO | D192: PESO | E192: NOTA | G192: CONCEITOS
A193: ASSIDUIDADE | C193: =I21 -> 10 | D193: 0.8 | E193: =IFERROR(C193*D193,"") -> 8 | G193: Insatisfatório | H193: até 29,9 | I193: Desempenho ruim.
A194: PONTUALIDADE | C194: =I33 -> 5 | D194: 0.8 | E194: 4 | G194: Regular | H194: 30 a 49,9 | I194: Desempenho abaixo da média.
A195: DISCIPLINA | C195: =I60 -> 3 | D195: 1.4 | E195: 4.2 | G195: Bom | H195: 50 a 69,9 | I195: Desempenho satisfaz.
A196: INICIATIVA | C196: =I86 -> 5 | D196: 1.4 | E196: 7 | G196: Muito bom | H196: 70 a 89,9 | I196: Desempenho acima da média.
A197: PRODUTIVIDADE | C197: =I111 -> 7 | D197: 1.4 | E197: 9.8 | G197: Excelente | H197: 90 a 100 | I197: Desempenho exemplar.
A198: RESPONSABILIDADE | C198: =I137 -> 5 | D198: 1.4 | E198: 7
A199: COMPORTAMENTO | C199: =I163 -> 9 | D199: 1.4 | E199: 12.6 | G199: Resultado: | I199: Conceito:
A200: DESENVOLVIMENTO | C200: =I188 -> 7 | D200: 1.4 | E200: 9.8 | G200: =E201 -> 62.4 | I200: =IF(G200="","",IF(E201>mbom,G197,IF(E201>bom,G196,IF(E201>reg,G195,IF(E201>insat,G194,IF(E201>=0,G193,"")))))) -> Bom
C201: TOTAIS: | D201: =IF(SUM(D193:D200)=0,"",SUM(D193:D200)) -> 10 | E201: =IF(SUM(E193:E200)=0,"",SUM(E193:E200)) -> 62.4
A203: PARECER DO AVALIADOR
B215: Ciente do conteúdo da avaliação.
B216: =IFERROR(CONCATENATE("Porto Alegre, ",dataav_3),"") -> Porto Alegre, dia 1 de abril de 2017.
C220: =IF(nome_empregado="","",nome_empregado) -> Tício | H220: =IF(B6="","",B6) -> 
C221: AVALIADO | H221: AVALIADOR

Sheet 4ª Etapa
A1: FICHA DE AVALIAÇÃO DE DESEMPENHO
A2: =IFERROR(CONCATENATE("4ª ETAPA: de ",DAY(L2),"/",MONTH(L2),"/",YEAR(L2)," a ",DAY(M2),"/",MONTH(M2),"/",YEAR(M2)),"") -> 4ª ETAPA: de 17/9/2013 a 16/12/2013 | L2: =data_3+1 -> 2013-09-17 | M2: =data_4 -> 2013-12-16
A4: Empregado: | B4: =IF(nome_empregado="","",nome_empregado) -> Tício | F4: Início do Exercício: | H4: =IF(EXERCÍCIO="","",EXERCÍCIO) -> 2012-12-15 | I4: Matrícula: | J4: =IF(matrícula="","",matrícula) -> 0
A5: Cargo: | B5: =IF(CARGO="","",CARGO) -> Assistente | F5: Lotação: | I5: RG/CPF: | J5: =IF(rg="","",rg) -> 
A6: Avaliador: | F6: Função: | I6: Data: | J6: 2018-06-13
A8: FATORES DE DESEMPENHO
A10: ASSIDUIDADE | B10: Refere-se à frequência com que o Empregado comparece ao Trabalho. A ausência injustificada do local de trabalho acarretará redução da nota, sendo que serão computadas como ocorrências neste quesito as faltas superiores a 60 (sessenta) minutos, ocorridas num mesmo dia, conforme critérios estabelecidos:
B14: Relatório de ocorrências:
F20: Quantidade de ocorrências: | I20: Pontuação:
F21: 3 ocorrências | I21: =IFERROR(IF(J6="","",INDEX(FATORES_PONT,MATCH(F21,Graduação_assiduidade,))),"") -> 5
A23: PONTUALIDADE | B23: Refere-se ao cumprimento do horário de trabalho estabelecido. Serão computados como ocorrência neste quesito os atrasos ou saídas antecipadas não superiores a 60 (sessenta) minutos, ocorridas num mesmo dia, sem justificativa e fora do previsto na CLT, conforme critérios estabelecidos:
B26: Relatório de ocorrências:
F32: Quantidade de ocorrências: | I32: Pontuação:
F33: De 481 minutos até 600 minutos | I33: =IFERROR(IF(J6="","",INDEX(FATORES_PONT,MATCH(F33,graduação_pontualidade,))),"") -> 1
A35: DISCIPLINA | B35: Refere-se ao cumprimento de normas internas do Conselho, como Regulamento de Pessoal, e respeito à hierarquia. São consideradas ocorrências:
B37: Situações: | J37: Quantidade:
B38: a) Alteração do horário de intervalo de almoço sem autorização prévia ou posterior justificativa aceita pelo superior imediato; | J38: 1
B40: b) Descumprimento do intervalo intrajornada mínimo de 60 minutos para os empregados com carga diária superior a 6 horas ou de 15 minutos para os empregados com carga diária entre 4 e 6 horas; | J40: 1
B42: c) Realização de horas extras sem autorização prévia ou posterior justificativa do superior imediato; | J42: 6
B44: d) Realização de compensação de jornada sem autorização prévia; | J44: 1
B46: e) Ausência da sede do Conselho, durante o expediente, sem comunicação ao superior imediato ou a outra pessoa de mesma hierarquia; | J46: 1
B48: f) Ocorrência de descumprimento do Regulamento de Pessoal; | J48: 1
B50: g) Ocorrência de descumprimento de orientações da chefia imediata ou desrespeito à hierarquia; | J50: 1
B53: Relatório de ocorrências:
E59: Graduação: | I59: Pontuação:
E60: =IF(COUNTA(DIS_Q4)=0,"",INDEX(graduação_disciplina,MATCH(DIS_O4,ocorrências_disciplina,1))) -> A partir de 10 ocorrências | I60: =IFERROR(IF(J6="","",INDEX(FATORES_PONT,MATCH(E60,graduação_disciplina,))),"") -> 0
A62: INICIATIVA | B62: Refere-se ao comportamento proativo, com adoção de providências em situações não definidas pelo superior ou não previstas no(s) manual(is) de normas e procedimentos. São atitudes consideradas para a avaliação:
B65: Ocorrências: | J65: Avaliação:
B66: a) Busca atividades para ocupação do tempo, se houver momentos de baixa demanda; | J66: Atende
B68: b) Quando necessário, identifica atividades prioritárias com resolução pendente, atendendo ou auxiliando no atendimento dessas questõe | J68: Não atende
B70: c) Contribui para a melhoria do trabalho, identificando problemas existentes e potenciais, apresentando ideias e propondo sugestões; | J70: Atende
B72: d) É participativo e demostra interesse e engajamento nas atividades de reuniões, capacitações, eventos, entre outros; | J72: Atende
B74: e) Demonstra iniciativa para resolver imprevistos, buscando soluções em situações adversas; | J74: Atende
B76: f) Demonstra receptividade e adaptabilidade frente à implantação de mudanças; | J76: Atende
B79: Relatório de ocorrências:
E85: Graduação: | I85: Pontuação:
E86: =IF(COUNTA(INI_Q4)=0,"",INDEX(graduação_iniciativa,MATCH(INI_O4,ocorrências_iniciativa,))) -> Atende às expectativas em 5 fatores | I86: =IFERROR(IF(J6="","",INDEX(FATORES_PONT,MATCH(E86,graduação_iniciativa,))),"") -> 9
A88: PRODUTIVIDADE | B88: Refere-se à análise do volume e qualidade de trabalho conforme resultados esperados para o cargo. São atitudes consideradas para a avaliação:
B90: Atitudes: | J90: Avaliação:
B91: a) Realiza um volume de trabalho compatível com o esperado, considerando o histórico habitual; | J91: Atende
B93: b) Apresenta um trabalho com qualidade satisfatória, evitando retrabalhos; | J93: Atende
B95: c) Cumpre os prazos estabelecidos, entregando as tarefas sob a sua responsabilidade no tempo previsto, evitando acúmulos nas demandas; | J95: Atende
B97: d) Estrutura e sistematiza as atividades para melhor utilização dos recursos. Estabelece prioridades e organiza suas atividades; | J97: Atende
B99: e) Desempenha os procedimentos e atividades com eficiência e técnicas adequadas; | J99: Atende
B101: f) Executa suas tarefas com foco e equilíbrio, evitando distrações e dispersões; | J101: Atende
B104: Relatório de ocorrências:
E110: Graduação: | I110: Pontuação:
E111: =IF(COUNTA(PRO_Q4)=0,"",INDEX(graduação_produtividade,MATCH(PRO_O4,ocorrências_produtividade,))) -> Atende às expectativas em todos os fatores | I111: =IFERROR(IF(J6="","",INDEX(FATORES_PONT,MATCH(E111,graduação_produtividade,))),"") -> 10
A113: RESPONSABILIDADE | B113: Refere-se à análise quanto ao comprometimento com as tarefas delegadas, o grau de segurança que transmite aos superiores e zelo pelos recursos disponibilizados. São atitudes consideradas para a avaliação:
B116: Atitudes: | J116: Avaliação:
B117: a) Colabora com a conservação do patrimônio público e utilização dos materiais; | J117: Atende
B119: b) Diante de questões além de sua competência, realiza o encaminhamento interno necessário, possibilitando continuidade no atendimento e na resolução adequados; | J119: Atende
B121: c) Avisa ao superior sobre situações adversas relacionadas ao andamento do trabalho. | J121: Atende
B123: d) Demonstra organização e planejamento no cumprimento de suas atividades; | J123: Não atende
B125: e) Apresenta autonomia nas decisões relativas às funções desenvolvidas, demonstrando comprometimento com o trabalho; | J125: Atende
B127: f) Transmite segurança no desempenho de suas funções, cumprindo suas tarefas de acordo com as instruções recebidas; | J127: Atende
B130: Relatório de ocorrências:
E136: Graduação: | I136: Pontuação:
E137: =IF(COUNTA(RES_Q4)=0,"",INDEX(graduação_responsabilidade,MATCH(RES_O4,ocorrências_responsabilidade,))) -> Atende às expectativas em 5 fatores | I137: =IFERROR(IF(J6="","",INDEX(FATORES_PONT,MATCH(E137,graduação_responsabilidade,))),"") -> 9
A139: COMPORTAMENTO | B139: Refere-se à postura e sigilo sobre assuntos reservados e confidenciais , ao comportamento e conhecimento disciplinar e ético. São atitudes consideradas para a avaliação:
B142: Atitudes: | J142: Avaliação:
B143: a) Trata informações e documentos com o grau de reserva ou sigilo necessários; | J143: Atende
B145: b) Atua com ética e profissionalismo, demonstrando postura equilibrada e adequada ao ambiente de trabalho. | J145: Atende
B147: c) É receptivo em relação aos apontamentos e sugestões de melhoria feitas acerca de sua postura e desempenho do trabalho; | J147: Atende
B149: d) Trata a todos de forma solícita, gentil e respeitosa; | J149: Atende
B151: e) Difunde conhecimentos, ideias, soluções e boas práticas; | J151: Atende
B153: f) Contribui para um melhor ambiente de trabalho, apresentando um bom relacionamento interpessoal e harmonia na convivência com os diversos perfis profissionais e pessoais, e em situações adversas. | J153: Não atende
B156: Relatório de ocorrências:
E162: Graduação: | I162: Pontuação:
E163: =IF(COUNTA(COM_Q4)=0,"",INDEX(graduação_comportamento,MATCH(COM_O4,ocorrências_comportamento,))) -> Atende às expectativas em 5 fatores | I163: =IFERROR(IF(J6="","",INDEX(FATORES_PONT,MATCH(E163,graduação_comportamento,))),"") -> 9
A165: DESENVOLVIMENTO | B165: Refere-se à análise quanto a potencialidade para aprendizagem e aplicação do conhecimento. São atitudes consideradas para a avaliação:
B167: Atitudes: | J167: Avaliação:
B168: a) Tem domínio sobre as atividades, normativas, procedimentos e processos da área em que atua, assegurando corretas orientações para a sua equipe e sociedade; | J168: Atende
B170: b) Demonstra interesse em absorver novos conhecimentos e no treinamento para novas tarefas, procedimentos e processos; | J170: Atende
B172: c) Comunica-se de forma clara e eficiente, atentando para a qualidade da linguagem e da informação transmitida; | J172: Atende
B174: d) Busca aperfeiçoamento no exercício de suas atribuições, atualizando-se continuamente no que diz respeito aos dispositivos legais e habilidades específicas necessários ao desenvolvimento de suas atividades; | J174: Atende
B176: e) Demonstra senso crítico em relação às tarefas de rotina, buscando o aperfeiçoamento técnico e lógico dos procedimentos realizados; | J176: Atende
B178: f) Desempenha suas atividades com atenção, demonstrando conhecimento e memória de trabalho. | J178: Atende
B181: Relatório de ocorrências:
E187: Graduação: | I187: Pontuação:
E188: =IF(COUNTA(DES_Q4)=0,"",INDEX(GRADUAÇÃ0_DESENVOLVIMENTO,MATCH(DES_O4,ocorrências_DESENVOLVIMENTO,))) -> Atende às expectativas em todos os fatores | I188: =IFERROR(IF(J6="","",INDEX(FATORES_PONT,MATCH(E188,GRADUAÇÃ0_DESENVOLVIMENTO,))),"") -> 10
A190: GRADUAÇÕES
A192: FATORES | C192: PONTUAÇÃO | D192: PESO | E192: NOTA | G192: CONCEITOS
A193: ASSIDUIDADE | C193: =I21 -> 5 | D193: 0.8 | E193: =IFERROR(C193*D193,"") -> 4 | G193: Insatisfatório | H193: até 29,9 | I193: Desempenho ruim.
A194: PONTUALIDADE | C194: =I33 -> 1 | D194: 0.8 | E194: 0.8 | G194: Regular | H194: 30 a 49,9 | I194: Desempenho abaixo da média.
A195: DISCIPLINA | C195: =I60 -> 0 | D195: 1.4 | E195: 0 | G195: Bom | H195: 50 a 69,9 | I195: Desempenho satisfaz.
A196: INICIATIVA | C196: =I86 -> 9 | D196: 1.4 | E196: 12.6 | G196: Muito bom | H196: 70 a 89,9 | I196: Desempenho acima da média.
A197: PRODUTIVIDADE | C197: =I111 -> 10 | D197: 1.4 | E197: 14 | G197: Excelente | H197: 90 a 100 | I197: Desempenho exemplar.
A198: RESPONSABILIDADE | C198: =I137 -> 9 | D198: 1.4 | E198: 12.6
A199: COMPORTAMENTO | C199: =I163 -> 9 | D199: 1.4 | E199: 12.6 | G199: Resultado: | I199: Conceito:
A200: DESENVOLVIMENTO | C200: =I188 -> 10 | D200: 1.4 | E200: 14 | G200: =E201 -> 70.6 | I200: =IF(G200="","",IF(E201>mbom,G197,IF(E201>bom,G196,IF(E201>reg,G195,IF(E201>insat,G194,IF(E201>=0,G193,"")))))) -> Muito bom
C201: TOTAIS: | D201: =IF(SUM(D193:D200)=0,"",SUM(D193:D200)) -> 10 | E201: =IF(SUM(E193:E200)=0,"",SUM(E193:E200)) -> 70.6
A203: PARECER DO AVALIADOR
B215: Ciente do conteúdo da avaliação.
B216: =IFERROR(CONCATENATE("Porto Alegre, ",dataav_4),"") -> Porto Alegre, dia 13 de junho de 2018.
C220: =IF(nome_empregado="","",nome_empregado) -> Tício | H220: =IF(B6="","",B6) -> 
C221: AVALIADO | H221: AVALIADOR

Sheet 5ª Etapa
A1: FICHA DE AVALIAÇÃO DE DESEMPENHO
A2: =IFERROR(CONCATENATE("5ª ETAPA: de ",DAY(L2),"/",MONTH(L2),"/",YEAR(L2)," a ",DAY(M2),"/",MONTH(M2),"/",YEAR(M2)),"") -> 5ª ETAPA: de 17/12/2013 a 17/3/2014 | L2: =data_4+1 -> 2013-12-17 | M2: =data_5 -> 2014-03-17
A4: Empregado: | B4: =IF(nome_empregado="","",nome_empregado) -> Tício | F4: Início do Exercício: | H4: =IF(EXERCÍCIO="","",EXERCÍCIO) -> 2012-12-15 | I4: Matrícula: | J4: =IF(matrícula="","",matrícula) -> 0
A5: Cargo: | B5: =IF(CARGO="","",CARGO) -> Assistente | F5: Lotação: | I5: RG/CPF: | J5: =IF(rg="","",rg) -> 
A6: Avaliador: | F6: Função: | I6: Data: | J6: 2017-05-01
A8: FATORES DE DESEMPENHO
A10: ASSIDUIDADE | B10: Refere-se à frequência com que o Empregado comparece ao Trabalho. A ausência injustificada do local de trabalho acarretará redução da nota, sendo que serão computadas como ocorrências neste quesito as faltas superiores a 60 (sessenta) minutos, ocorridas num mesmo dia, conforme critérios estabelecidos:
B14: Relatório de ocorrências:
F20: Quantidade de ocorrências: | I20: Pontuação:
F21: 3 ocorrências | I21: =IFERROR(IF(J6="","",INDEX(FATORES_PONT,MATCH(F21,Graduação_assiduidade,))),"") -> 5
A23: PONTUALIDADE | B23: Refere-se ao cumprimento do horário de trabalho estabelecido. Serão computados como ocorrência neste quesito os atrasos ou saídas antecipadas não superiores a 60 (sessenta) minutos, ocorridas num mesmo dia, sem justificativa e fora do previsto na CLT, conforme critérios estabelecidos:
B26: Relatório de ocorrências:
F32: Quantidade de ocorrências: | I32: Pontuação:
F33: De 121 minutos até 240 minutos | I33: =IFERROR(IF(J6="","",INDEX(FATORES_PONT,MATCH(F33,graduação_pontualidade,))),"") -> 5
A35: DISCIPLINA | B35: Refere-se ao cumprimento de normas internas do Conselho, como Regulamento de Pessoal, e respeito à hierarquia. São consideradas ocorrências:
B37: Situações: | J37: Quantidade:
B38: a) Alteração do horário de intervalo de almoço sem autorização prévia ou posterior justificativa aceita pelo superior imediato; | J38: 0
B40: b) Descumprimento do intervalo intrajornada mínimo de 60 minutos para os empregados com carga diária superior a 6 horas ou de 15 minutos para os empregados com carga diária entre 4 e 6 horas;
B42: c) Realização de horas extras sem autorização prévia ou posterior justificativa do superior imediato;
B44: d) Realização de compensação de jornada sem autorização prévia;
B46: e) Ausência da sede do Conselho, durante o expediente, sem comunicação ao superior imediato ou a outra pessoa de mesma hierarquia;
B48: f) Ocorrência de descumprimento do Regulamento de Pessoal;
B50: g) Ocorrência de descumprimento de orientações da chefia imediata ou desrespeito à hierarquia;
B53: Relatório de ocorrências:
E59: Graduação: | I59: Pontuação:
E60: =IF(COUNTA(DIS_Q5)=0,"",INDEX(graduação_disciplina,MATCH(DIS_O5,ocorrências_disciplina,1))) -> Sem ocorrências | I60: =IFERROR(IF(J6="","",INDEX(FATORES_PONT,MATCH(E60,graduação_disciplina,))),"") -> 10
A62: INICIATIVA | B62: Refere-se ao comportamento proativo, com adoção de providências em situações não definidas pelo superior ou não previstas no(s) manual(is) de normas e procedimentos. São atitudes consideradas para a avaliação:
B65: Ocorrências: | J65: Avaliação:
B66: a) Busca atividades para ocupação do tempo, se houver momentos de baixa demanda; | J66: Atende
B68: b) Quando necessário, identifica atividades prioritárias com resolução pendente, atendendo ou auxiliando no atendimento dessas questõe | J68: Atende
B70: c) Contribui para a melhoria do trabalho, identificando problemas existentes e potenciais, apresentando ideias e propondo sugestões; | J70: Atende
B72: d) É participativo e demostra interesse e engajamento nas atividades de reuniões, capacitações, eventos, entre outros; | J72: Atende
B74: e) Demonstra iniciativa para resolver imprevistos, buscando soluções em situações adversas; | J74: Atende
B76: f) Demonstra receptividade e adaptabilidade frente à implantação de mudanças; | J76: Atende
B79: Relatório de ocorrências:
E85: Graduação: | I85: Pontuação:
E86: =IF(COUNTA(INI_Q5)=0,"",INDEX(graduação_iniciativa,MATCH(INI_O5,ocorrências_iniciativa,))) -> Atende às expectativas em todos os fatores | I86: =IFERROR(IF(J6="","",INDEX(FATORES_PONT,MATCH(E86,graduação_iniciativa,))),"") -> 10
A88: PRODUTIVIDADE | B88: Refere-se à análise do volume e qualidade de trabalho conforme resultados esperados para o cargo. São atitudes consideradas para a avaliação:
B90: Atitudes: | J90: Avaliação:
B91: a) Realiza um volume de trabalho compatível com o esperado, considerando o histórico habitual; | J91: Atende
B93: b) Apresenta um trabalho com qualidade satisfatória, evitando retrabalhos; | J93: Atende
B95: c) Cumpre os prazos estabelecidos, entregando as tarefas sob a sua responsabilidade no tempo previsto, evitando acúmulos nas demandas; | J95: Atende
B97: d) Estrutura e sistematiza as atividades para melhor utilização dos recursos. Estabelece prioridades e organiza suas atividades; | J97: Atende
B99: e) Desempenha os procedimentos e atividades com eficiência e técnicas adequadas; | J99: Atende
B101: f) Executa suas tarefas com foco e equilíbrio, evitando distrações e dispersões; | J101: Atende
B104: Relatório de ocorrências:
E110: Graduação: | I110: Pontuação:
E111: =IF(COUNTA(PRO_Q5)=0,"",INDEX(graduação_produtividade,MATCH(PRO_O5,ocorrências_produtividade,))) -> Atende às expectativas em todos os fatores | I111: =IFERROR(IF(J6="","",INDEX(FATORES_PONT,MATCH(E111,graduação_produtividade,))),"") -> 10
A113: RESPONSABILIDADE | B113: Refere-se à análise quanto ao comprometimento com as tarefas delegadas, o grau de segurança que transmite aos superiores e zelo pelos recursos disponibilizados. São atitudes consideradas para a avaliação:
B116: Atitudes: | J116: Avaliação:
B117: a) Colabora com a conservação do patrimônio público e utilização dos materiais; | J117: Atende
B119: b) Diante de questões além de sua competência, realiza o encaminhamento interno necessário, possibilitando continuidade no atendimento e na resolução adequados; | J119: Não atende
B121: c) Avisa ao superior sobre situações adversas relacionadas ao andamento do trabalho. | J121: Não atende
B123: d) Demonstra organização e planejamento no cumprimento de suas atividades; | J123: Não atende
B125: e) Apresenta autonomia nas decisões relativas às funções desenvolvidas, demonstrando comprometimento com o trabalho; | J125: Atende
B127: f) Transmite segurança no desempenho de suas funções, cumprindo suas tarefas de acordo com as instruções recebidas; | J127: Atende
B130: Relatório de ocorrências:
E136: Graduação: | I136: Pontuação:
E137: =IF(COUNTA(RES_Q5)=0,"",INDEX(graduação_responsabilidade,MATCH(RES_O5,ocorrências_responsabilidade,))) -> Atende às expectativas em 3 fatores | I137: =IFERROR(IF(J6="","",INDEX(FATORES_PONT,MATCH(E137,graduação_responsabilidade,))),"") -> 5
A139: COMPORTAMENTO | B139: Refere-se à postura e sigilo sobre assuntos reservados e confidenciais , ao comportamento e conhecimento disciplinar e ético. São atitudes consideradas para a avaliação:
B142: Atitudes: | J142: Avaliação:
B143: a) Trata informações e documentos com o grau de reserva ou sigilo necessários; | J143: Atende
B145: b) Atua com ética e profissionalismo, demonstrando postura equilibrada e adequada ao ambiente de trabalho. | J145: Não atende
B147: c) É receptivo em relação aos apontamentos e sugestões de melhoria feitas acerca de sua postura e desempenho do trabalho; | J147: Não atende
B149: d) Trata a todos de forma solícita, gentil e respeitosa; | J149: Não atende
B151: e) Difunde conhecimentos, ideias, soluções e boas práticas; | J151: Não atende
B153: f) Contribui para um melhor ambiente de trabalho, apresentando um bom relacionamento interpessoal e harmonia na convivência com os diversos perfis profissionais e pessoais, e em situações adversas. | J153: Não atende
B156: Relatório de ocorrências:
E162: Graduação: | I162: Pontuação:
E163: =IF(COUNTA(COM_Q5)=0,"",INDEX(graduação_comportamento,MATCH(COM_O5,ocorrências_comportamento,))) -> Atende às expectativas em 1 | I163: =IFERROR(IF(J6="","",INDEX(FATORES_PONT,MATCH(E163,graduação_comportamento,))),"") -> 1
A165: DESENVOLVIMENTO | B165: Refere-se à análise quanto a potencialidade para aprendizagem e aplicação do conhecimento. São atitudes consideradas para a avaliação:
B167: Atitudes: | J167: Avaliação:
B168: a) Tem domínio sobre as atividades, normativas, procedimentos e processos da área em que atua, assegurando corretas orientações para a sua equipe e sociedade; | J168: Atende
B170: b) Demonstra interesse em absorver novos conhecimentos e no treinamento para novas tarefas, procedimentos e processos; | J170: Atende
B172: c) Comunica-se de forma clara e eficiente, atentando para a qualidade da linguagem e da informação transmitida; | J172: Atende
B174: d) Busca aperfeiçoamento no exercício de suas atribuições, atualizando-se continuamente no que diz respeito aos dispositivos legais e habilidades específicas necessários ao desenvolvimento de suas atividades; | J174: Atende
B176: e) Demonstra senso crítico em relação às tarefas de rotina, buscando o aperfeiçoamento técnico e lógico dos procedimentos realizados; | J176: Não atende
B178: f) Desempenha suas atividades com atenção, demonstrando conhecimento e memória de trabalho. | J178: Não atende
B181: Relatório de ocorrências:
E187: Graduação: | I187: Pontuação:
E188: =IF(COUNTA(DES_Q5)=0,"",INDEX(GRADUAÇÃ0_DESENVOLVIMENTO,MATCH(DES_O5,ocorrências_DESENVOLVIMENTO,))) -> Atende às expectativas em 4 fatores | I188: =IFERROR(IF(J6="","",INDEX(FATORES_PONT,MATCH(E188,GRADUAÇÃ0_DESENVOLVIMENTO,))),"") -> 7
A190: GRADUAÇÕES
A192: FATORES | C192: PONTUAÇÃO | D192: PESO | E192: NOTA | G192: CONCEITOS
A193: ASSIDUIDADE | C193: =I21 -> 5 | D193: 0.8 | E193: =IFERROR(C193*D193,"") -> 4 | G193: Insatisfatório | H193: até 29,9 | I193: Desempenho ruim.
A194: PONTUALIDADE | C194: =I33 -> 5 | D194: 0.8 | E194: 4 | G194: Regular | H194: 30 a 49,9 | I194: Desempenho abaixo da média.
A195: DISCIPLINA | C195: =I60 -> 10 | D195: 1.4 | E195: 14 | G195: Bom | H195: 50 a 69,9 | I195: Desempenho satisfaz.
A196: INICIATIVA | C196: =I86 -> 10 | D196: 1.4 | E196: 14 | G196: Muito bom | H196: 70 a 89,9 | I196: Desempenho acima da média.
A197: PRODUTIVIDADE | C197: =I111 -> 10 | D197: 1.4 | E197: 14 | G197: Excelente | H197: 90 a 100 | I197: Desempenho exemplar.
A198: RESPONSABILIDADE | C198: =I137 -> 5 | D198: 1.4 | E198: 7
A199: COMPORTAMENTO | C199: =I163 -> 1 | D199: 1.4 | E199: 1.4 | G199: Resultado: | I199: Conceito:
A200: DESENVOLVIMENTO | C200: =I188 -> 7 | D200: 1.4 | E200: 9.8 | G200: =E201 -> 68.2 | I200: =IF(G200="","",IF(E201>mbom,G197,IF(E201>bom,G196,IF(E201>reg,G195,IF(E201>insat,G194,IF(E201>=0,G193,"")))))) -> Bom
C201: TOTAIS: | D201: =IF(SUM(D193:D200)=0,"",SUM(D193:D200)) -> 10 | E201: =IF(SUM(E193:E200)=0,"",SUM(E193:E200)) -> 68.2
A203: PARECER DO AVALIADOR
B215: Ciente do conteúdo da avaliação.
B216: =IFERROR(CONCATENATE("Porto Alegre, ",dataav_5),"") -> Porto Alegre, dia 1 de maio de 2017.
C220: =IF(nome_empregado="","",nome_empregado) -> Tício | H220: =IF(B6="","",B6) -> 
C221: AVALIADO | H221: AVALIADOR

Sheet 6ª Etapa
A1: FICHA DE AVALIAÇÃO DE DESEMPENHO
A2: =IFERROR(CONCATENATE("6ª ETAPA: de ",DAY(L2),"/",MONTH(L2),"/",YEAR(L2)," a ",DAY(M2),"/",MONTH(M2),"/",YEAR(M2)),"") -> 6ª ETAPA: de 18/3/2014 a 16/6/2014 | L2: =data_5+1 -> 2014-03-18 | M2: =data_6 -> 2014-06-16
A4: Empregado: | B4: =IF(nome_empregado="","",nome_empregado) -> Tício | F4: Início do Exercício: | H4: =IF(EXERCÍCIO="","",EXERCÍCIO) -> 2012-12-15 | I4: Matrícula: | J4: =IF(matrícula="","",matrícula) -> 0
A5: Cargo: | B5: =IF(CARGO="","",CARGO) -> Assistente | F5: Lotação: | I5: RG/CPF: | J5: =IF(rg="","",rg) -> 
A6: Avaliador: | F6: Função: | I6: Data: | J6: 2017-06-13
A8: FATORES DE DESEMPENHO
A10: ASSIDUIDADE | B10: Refere-se à frequência com que o Empregado comparece ao Trabalho. A ausência injustificada do local de trabalho acarretará redução da nota, sendo que serão computadas como ocorrências neste quesito as faltas superiores a 60 (sessenta) minutos, ocorridas num mesmo dia, conforme critérios estabelecidos:
B14: Relatório de ocorrências:
F20: Quantidade de ocorrências: | I20: Pontuação:
F21: 1 ocorrência | I21: =IFERROR(IF(J6="","",INDEX(FATORES_PONT,MATCH(F21,Graduação_assiduidade,))),"") -> 9
A23: PONTUALIDADE | B23: Refere-se ao cumprimento do horário de trabalho estabelecido. Serão computados como ocorrência neste quesito os atrasos ou saídas antecipadas não superiores a 60 (sessenta) minutos, ocorridas num mesmo dia, sem justificativa e fora do previsto na CLT, conforme critérios estabelecidos:
B26: Relatório de ocorrências:
F32: Quantidade de ocorrências: | I32: Pontuação:
F33: Sem ocorrências | I33: =IFERROR(IF(J6="","",INDEX(FATORES_PONT,MATCH(F33,graduação_pontualidade,))),"") -> 10
A35: DISCIPLINA | B35: Refere-se ao cumprimento de normas internas do Conselho, como Regulamento de Pessoal, e respeito à hierarquia. São consideradas ocorrências:
B37: Situações: | J37: Quantidade:
B38: a) Alteração do horário de intervalo de almoço sem autorização prévia ou posterior justificativa aceita pelo superior imediato; | J38: 1
B40: b) Descumprimento do intervalo intrajornada mínimo de 60 minutos para os empregados com carga diária superior a 6 horas ou de 15 minutos para os empregados com carga diária entre 4 e 6 horas;
B42: c) Realização de horas extras sem autorização prévia ou posterior justificativa do superior imediato;
B44: d) Realização de compensação de jornada sem autorização prévia;
B46: e) Ausência da sede do Conselho, durante o expediente, sem comunicação ao superior imediato ou a outra pessoa de mesma hierarquia;
B48: f) Ocorrência de descumprimento do Regulamento de Pessoal;
B50: g) Ocorrência de descumprimento de orientações da chefia imediata ou desrespeito à hierarquia; | J50: 1
B53: Relatório de ocorrências:
E59: Graduação: | I59: Pontuação:
E60: =IF(COUNTA(DIS_Q6)=0,"",INDEX(graduação_disciplina,MATCH(DIS_O6,ocorrências_disciplina,1))) -> De 2 a 3 ocorrências | I60: =IFERROR(IF(J6="","",INDEX(FATORES_PONT,MATCH(E60,graduação_disciplina,))),"") -> 7
A62: INICIATIVA | B62: Refere-se ao comportamento proativo, com adoção de providências em situações não definidas pelo superior ou não previstas no(s) manual(is) de normas e procedimentos. São atitudes consideradas para a avaliação:
B65: Ocorrências: | J65: Avaliação:
B66: a) Busca atividades para ocupação do tempo, se houver momentos de baixa demanda; | J66: Atende
B68: b) Quando necessário, identifica atividades prioritárias com resolução pendente, atendendo ou auxiliando no atendimento dessas questõe | J68: Atende
B70: c) Contribui para a melhoria do trabalho, identificando problemas existentes e potenciais, apresentando ideias e propondo sugestões; | J70: Não atente
B72: d) É participativo e demostra interesse e engajamento nas atividades de reuniões, capacitações, eventos, entre outros; | J72: Atende
B74: e) Demonstra iniciativa para resolver imprevistos, buscando soluções em situações adversas; | J74: Atende
B76: f) Demonstra receptividade e adaptabilidade frente à implantação de mudanças; | J76: Atende
B79: Relatório de ocorrências:
E85: Graduação: | I85: Pontuação:
E86: =IF(COUNTA(INI_Q6)=0,"",INDEX(graduação_iniciativa,MATCH(INI_O6,ocorrências_iniciativa,))) -> Atende às expectativas em todos os fatores | I86: =IFERROR(IF(J6="","",INDEX(FATORES_PONT,MATCH(E86,graduação_iniciativa,))),"") -> 10
A88: PRODUTIVIDADE | B88: Refere-se à análise do volume e qualidade de trabalho conforme resultados esperados para o cargo. São atitudes consideradas para a avaliação:
B90: Atitudes: | J90: Avaliação:
B91: a) Realiza um volume de trabalho compatível com o esperado, considerando o histórico habitual; | J91: Atende
B93: b) Apresenta um trabalho com qualidade satisfatória, evitando retrabalhos; | J93: Não atende
B95: c) Cumpre os prazos estabelecidos, entregando as tarefas sob a sua responsabilidade no tempo previsto, evitando acúmulos nas demandas; | J95: Não atende
B97: d) Estrutura e sistematiza as atividades para melhor utilização dos recursos. Estabelece prioridades e organiza suas atividades; | J97: Atende
B99: e) Desempenha os procedimentos e atividades com eficiência e técnicas adequadas; | J99: Atende
B101: f) Executa suas tarefas com foco e equilíbrio, evitando distrações e dispersões; | J101: Atende
B104: Relatório de ocorrências:
E110: Graduação: | I110: Pontuação:
E111: =IF(COUNTA(PRO_Q6)=0,"",INDEX(graduação_produtividade,MATCH(PRO_O6,ocorrências_produtividade,))) -> Atende às expectativas em 4 fatores | I111: =IFERROR(IF(J6="","",INDEX(FATORES_PONT,MATCH(E111,graduação_produtividade,))),"") -> 7
A113: RESPONSABILIDADE | B113: Refere-se à análise quanto ao comprometimento com as tarefas delegadas, o grau de segurança que transmite aos superiores e zelo pelos recursos disponibilizados. São atitudes consideradas para a avaliação:
B116: Atitudes: | J116: Avaliação:
B117: a) Colabora com a conservação do patrimônio público e utilização dos materiais; | J117: Atende
B119: b) Diante de questões além de sua competência, realiza o encaminhamento interno necessário, possibilitando continuidade no atendimento e na resolução adequados; | J119: Não atende
B121: c) Avisa ao superior sobre situações adversas relacionadas ao andamento do trabalho. | J121: Não atende
B123: d) Demonstra organização e planejamento no cumprimento de suas atividades; | J123: Não atende
B125: e) Apresenta autonomia nas decisões relativas às funções desenvolvidas, demonstrando comprometimento com o trabalho; | J125: Atende
B127: f) Transmite segurança no desempenho de suas funções, cumprindo suas tarefas de acordo com as instruções recebidas; | J127: Atende
B130: Relatório de ocorrências:
E136: Graduação: | I136: Pontuação:
E137: =IF(COUNTA(RES_Q6)=0,"",INDEX(graduação_responsabilidade,MATCH(RES_O6,ocorrências_responsabilidade,))) -> Atende às expectativas em 3 fatores | I137: =IFERROR(IF(J6="","",INDEX(FATORES_PONT,MATCH(E137,graduação_responsabilidade,))),"") -> 5
A139: COMPORTAMENTO | B139: Refere-se à postura e sigilo sobre assuntos reservados e confidenciais , ao comportamento e conhecimento disciplinar e ético. São atitudes consideradas para a avaliação:
B142: Atitudes: | J142: Avaliação:
B143: a) Trata informações e documentos com o grau de reserva ou sigilo necessários; | J143: Atende
B145: b) Atua com ética e profissionalismo, demonstrando postura equilibrada e adequada ao ambiente de trabalho. | J145: Atende
B147: c) É receptivo em relação aos apontamentos e sugestões de melhoria feitas acerca de sua postura e desempenho do trabalho; | J147: Não atende
B149: d) Trata a todos de forma solícita, gentil e respeitosa; | J149: Não atende
B151: e) Difunde conhecimentos, ideias, soluções e boas práticas; | J151: Não atende
B153: f) Contribui para um melhor ambiente de trabalho, apresentando um bom relacionamento interpessoal e harmonia na convivência com os diversos perfis profissionais e pessoais, e em situações adversas. | J153: Não atende
B156: Relatório de ocorrências:
E162: Graduação: | I162: Pontuação:
E163: =IF(COUNTA(COM_Q6)=0,"",INDEX(graduação_comportamento,MATCH(COM_O6,ocorrências_comportamento,))) -> Atende às expectativas em 2 fatores | I163: =IFERROR(IF(J6="","",INDEX(FATORES_PONT,MATCH(E163,graduação_comportamento,))),"") -> 3
A165: DESENVOLVIMENTO | B165: Refere-se à análise quanto a potencialidade para aprendizagem e aplicação do conhecimento. São atitudes consideradas para a avaliação:
B167: Atitudes: | J167: Avaliação:
B168: a) Tem domínio sobre as atividades, normativas, procedimentos e processos da área em que atua, assegurando corretas orientações para a sua equipe e sociedade; | J168: Atende
B170: b) Demonstra interesse em absorver novos conhecimentos e no treinamento para novas tarefas, procedimentos e processos; | J170: Atende
B172: c) Comunica-se de forma clara e eficiente, atentando para a qualidade da linguagem e da informação transmitida; | J172: Não atende
B174: d) Busca aperfeiçoamento no exercício de suas atribuições, atualizando-se continuamente no que diz respeito aos dispositivos legais e habilidades específicas necessários ao desenvolvimento de suas atividades; | J174: Não atende
B176: e) Demonstra senso crítico em relação às tarefas de rotina, buscando o aperfeiçoamento técnico e lógico dos procedimentos realizados; | J176: Não atende
B178: f) Desempenha suas atividades com atenção, demonstrando conhecimento e memória de trabalho. | J178: Não atende
B181: Relatório de ocorrências:
E187: Graduação: | I187: Pontuação:
E188: =IF(COUNTA(DES_Q6)=0,"",INDEX(GRADUAÇÃ0_DESENVOLVIMENTO,MATCH(DES_O6,ocorrências_DESENVOLVIMENTO,))) -> Atende às expectativas em 2 fatores | I188: =IFERROR(IF(J6="","",INDEX(FATORES_PONT,MATCH(E188,GRADUAÇÃ0_DESENVOLVIMENTO,))),"") -> 3
A190: GRADUAÇÕES
A192: FATORES | C192: PONTUAÇÃO | D192: PESO | E192: NOTA | G192: CONCEITOS
A193: ASSIDUIDADE | C193: =I21 -> 9 | D193: 0.8 | E193: =IFERROR(C193*D193,"") -> 7.2 | G193: Insatisfatório | H193: até 29,9 | I193: Desempenho ruim.
A194: PONTUALIDADE | C194: =I33 -> 10 | D194: 0.8 | E194: 8 | G194: Regular | H194: 30 a 49,9 | I194: Desempenho abaixo da média.
A195: DISCIPLINA | C195: =I60 -> 7 | D195: 1.4 | E195: 9.8 | G195: Bom | H195: 50 a 69,9 | I195: Desempenho satisfaz.
A196: INICIATIVA | C196: =I86 -> 10 | D196: 1.4 | E196: 14 | G196: Muito bom | H196: 70 a 89,9 | I196: Desempenho acima da média.
A197: PRODUTIVIDADE | C197: =I111 -> 7 | D197: 1.4 | E197: 9.8 | G197: Excelente | H197: 90 a 100 | I197: Desempenho exemplar.
A198: RESPONSABILIDADE | C198: =I137 -> 5 | D198: 1.4 | E198: 7
A199: COMPORTAMENTO | C199: =I163 -> 3 | D199: 1.4 | E199: 4.2 | G199: Resultado: | I199: Conceito:
A200: DESENVOLVIMENTO | C200: =I188 -> 3 | D200: 1.4 | E200: 4.2 | G200: =E201 -> 64.2 | I200: =IF(G200="","",IF(E201>mbom,G197,IF(E201>bom,G196,IF(E201>reg,G195,IF(E201>insat,G194,IF(E201>=0,G193,"")))))) -> Bom
C201: TOTAIS: | D201: =IF(SUM(D193:D200)=0,"",SUM(D193:D200)) -> 10 | E201: =IF(SUM(E193:E200)=0,"",SUM(E193:E200)) -> 64.2
A203: PARECER DO AVALIADOR
B215: Ciente do conteúdo da avaliação.
B216: =IFERROR(CONCATENATE("Porto Alegre, ",dataav_6),"") -> Porto Alegre, dia 13 de junho de 2017.
C220: =IF(nome_empregado="","",nome_empregado) -> Tício | H220: =IF(B6="","",B6) -> 
C221: AVALIADO | H221: AVALIADOR

Sheet 7ª Etapa
A1: FICHA DE AVALIAÇÃO DE DESEMPENHO
A2: =IFERROR(CONCATENATE("6ª ETAPA: de ",DAY(L2),"/",MONTH(L2),"/",YEAR(L2)," a ",DAY(M2),"/",MONTH(M2),"/",YEAR(M2)),"") -> 6ª ETAPA: de 17/6/2014 a 15/9/2014 | L2: =data_6+1 -> 2014-06-17 | M2: =data_7 -> 2014-09-15
A4: Empregado: | B4: =IF(nome_empregado="","",nome_empregado) -> Tício | F4: Início do Exercício: | H4: =IF(EXERCÍCIO="","",EXERCÍCIO) -> 2012-12-15 | I4: Matrícula: | J4: =IF(matrícula="","",matrícula) -> 0
A5: Cargo: | B5: =IF(CARGO="","",CARGO) -> Assistente | F5: Lotação: | I5: RG/CPF: | J5: =IF(rg="","",rg) -> 
A6: Avaliador: | F6: Função: | I6: Data: | J6: 2017-06-13
A8: FATORES DE DESEMPENHO
A10: ASSIDUIDADE | B10: Refere-se à frequência com que o Empregado comparece ao Trabalho. A ausência injustificada do local de trabalho acarretará redução da nota, sendo que serão computadas como ocorrências neste quesito as faltas superiores a 60 (sessenta) minutos, ocorridas num mesmo dia, conforme critérios estabelecidos:
B14: Relatório de ocorrências:
F20: Quantidade de ocorrências: | I20: Pontuação:
F21: 3 ocorrências | I21: =IFERROR(IF(J6="","",INDEX(FATORES_PONT,MATCH(F21,Graduação_assiduidade,))),"") -> 5
A23: PONTUALIDADE | B23: Refere-se ao cumprimento do horário de trabalho estabelecido. Serão computados como ocorrência neste quesito os atrasos ou saídas antecipadas não superiores a 60 (sessenta) minutos, ocorridas num mesmo dia, sem justificativa e fora do previsto na CLT, conforme critérios estabelecidos:
B26: Relatório de ocorrências:
F32: Quantidade de ocorrências: | I32: Pontuação:
F33: Até 30 minutos | I33: =IFERROR(IF(J6="","",INDEX(FATORES_PONT,MATCH(F33,graduação_pontualidade,))),"") -> 9
A35: DISCIPLINA | B35: Refere-se ao cumprimento de normas internas do Conselho, como Regulamento de Pessoal, e respeito à hierarquia. São consideradas ocorrências:
B37: Situações: | J37: Quantidade:
B38: a) Alteração do horário de intervalo de almoço sem autorização prévia ou posterior justificativa aceita pelo superior imediato; | J38: 1
B40: b) Descumprimento do intervalo intrajornada mínimo de 60 minutos para os empregados com carga diária superior a 6 horas ou de 15 minutos para os empregados com carga diária entre 4 e 6 horas; | J40: 6
B42: c) Realização de horas extras sem autorização prévia ou posterior justificativa do superior imediato;
B44: d) Realização de compensação de jornada sem autorização prévia;
B46: e) Ausência da sede do Conselho, durante o expediente, sem comunicação ao superior imediato ou a outra pessoa de mesma hierarquia;
B48: f) Ocorrência de descumprimento do Regulamento de Pessoal;
B50: g) Ocorrência de descumprimento de orientações da chefia imediata ou desrespeito à hierarquia; | J50: 1
B53: Relatório de ocorrências:
E59: Graduação: | I59: Pontuação:
E60: =IF(COUNTA(DIS_Q7)=0,"",INDEX(graduação_disciplina,MATCH(DIS_O7,ocorrências_disciplina,1))) -> De 8 a 9 ocorrências | I60: =IFERROR(IF(J6="","",INDEX(FATORES_PONT,MATCH(E60,graduação_disciplina,))),"") -> 1
A62: INICIATIVA | B62: Refere-se ao comportamento proativo, com adoção de providências em situações não definidas pelo superior ou não previstas no(s) manual(is) de normas e procedimentos. São atitudes consideradas para a avaliação:
B65: Ocorrências: | J65: Avaliação:
B66: a) Busca atividades para ocupação do tempo, se houver momentos de baixa demanda; | J66: Atende
B68: b) Quando necessário, identifica atividades prioritárias com resolução pendente, atendendo ou auxiliando no atendimento dessas questõe | J68: Não atede
B70: c) Contribui para a melhoria do trabalho, identificando problemas existentes e potenciais, apresentando ideias e propondo sugestões; | J70: Atende
B72: d) É participativo e demostra interesse e engajamento nas atividades de reuniões, capacitações, eventos, entre outros; | J72: Atende
B74: e) Demonstra iniciativa para resolver imprevistos, buscando soluções em situações adversas; | J74: Atende
B76: f) Demonstra receptividade e adaptabilidade frente à implantação de mudanças; | J76: Atende
B79: Relatório de ocorrências:
E85: Graduação: | I85: Pontuação:
E86: =IF(COUNTA(INI_Q7)=0,"",INDEX(graduação_iniciativa,MATCH(INI_O7,ocorrências_iniciativa,))) -> Atende às expectativas em todos os fatores | I86: =IFERROR(IF(J6="","",INDEX(FATORES_PONT,MATCH(E86,graduação_iniciativa,))),"") -> 10
A88: PRODUTIVIDADE | B88: Refere-se à análise do volume e qualidade de trabalho conforme resultados esperados para o cargo. São atitudes consideradas para a avaliação:
B90: Atitudes: | J90: Avaliação:
B91: a) Realiza um volume de trabalho compatível com o esperado, considerando o histórico habitual; | J91: Atende
B93: b) Apresenta um trabalho com qualidade satisfatória, evitando retrabalhos; | J93: Atende
B95: c) Cumpre os prazos estabelecidos, entregando as tarefas sob a sua responsabilidade no tempo previsto, evitando acúmulos nas demandas; | J95: Atende
B97: d) Estrutura e sistematiza as atividades para melhor utilização dos recursos. Estabelece prioridades e organiza suas atividades; | J97: Atende
B99: e) Desempenha os procedimentos e atividades com eficiência e técnicas adequadas; | J99: Atende
B101: f) Executa suas tarefas com foco e equilíbrio, evitando distrações e dispersões; | J101: Atende
B104: Relatório de ocorrências:
E110: Graduação: | I110: Pontuação:
E111: =IF(COUNTA(PRO_Q7)=0,"",INDEX(graduação_produtividade,MATCH(PRO_O7,ocorrências_produtividade,))) -> Atende às expectativas em todos os fatores | I111: =IFERROR(IF(J6="","",INDEX(FATORES_PONT,MATCH(E111,graduação_produtividade,))),"") -> 10
A113: RESPONSABILIDADE | B113: Refere-se à análise quanto ao comprometimento com as tarefas delegadas, o grau de segurança que transmite aos superiores e zelo pelos recursos disponibilizados. São atitudes consideradas para a avaliação:
B116: Atitudes: | J116: Avaliação:
B117: a) Colabora com a conservação do patrimônio público e utilização dos materiais; | J117: Atende
B119: b) Diante de questões além de sua competência, realiza o encaminhamento interno necessário, possibilitando continuidade no atendimento e na resolução adequados; | J119: Atende
B121: c) Avisa ao superior sobre situações adversas relacionadas ao andamento do trabalho. | J121: Atende
B123: d) Demonstra organização e planejamento no cumprimento de suas atividades; | J123: Não atende
B125: e) Apresenta autonomia nas decisões relativas às funções desenvolvidas, demonstrando comprometimento com o trabalho; | J125: Atende
B127: f) Transmite segurança no desempenho de suas funções, cumprindo suas tarefas de acordo com as instruções recebidas; | J127: Atende
B130: Relatório de ocorrências:
E136: Graduação: | I136: Pontuação:
E137: =IF(COUNTA(RES_Q7)=0,"",INDEX(graduação_responsabilidade,MATCH(RES_O7,ocorrências_responsabilidade,))) -> Atende às expectativas em 5 fatores | I137: =IFERROR(IF(J6="","",INDEX(FATORES_PONT,MATCH(E137,graduação_responsabilidade,))),"") -> 9
A139: COMPORTAMENTO | B139: Refere-se à postura e sigilo sobre assuntos reservados e confidenciais , ao comportamento e conhecimento disciplinar e ético. São atitudes consideradas para a avaliação:
B142: Atitudes: | J142: Avaliação:
B143: a) Trata informações e documentos com o grau de reserva ou sigilo necessários; | J143: Atende
B145: b) Atua com ética e profissionalismo, demonstrando postura equilibrada e adequada ao ambiente de trabalho. | J145: Atende
B147: c) É receptivo em relação aos apontamentos e sugestões de melhoria feitas acerca de sua postura e desempenho do trabalho; | J147: Atende
B149: d) Trata a todos de forma solícita, gentil e respeitosa; | J149: Atende
B151: e) Difunde conhecimentos, ideias, soluções e boas práticas; | J151: Atende
B153: f) Contribui para um melhor ambiente de trabalho, apresentando um bom relacionamento interpessoal e harmonia na convivência com os diversos perfis profissionais e pessoais, e em situações adversas. | J153: Não atende
B156: Relatório de ocorrências:
E162: Graduação: | I162: Pontuação:
E163: =IF(COUNTA(COM_Q7)=0,"",INDEX(graduação_comportamento,MATCH(COM_O7,ocorrências_comportamento,))) -> Atende às expectativas em 5 fatores | I163: =IFERROR(IF(J6="","",INDEX(FATORES_PONT,MATCH(E163,graduação_comportamento,))),"") -> 9
A165: DESENVOLVIMENTO | B165: Refere-se à análise quanto a potencialidade para aprendizagem e aplicação do conhecimento. São atitudes consideradas para a avaliação:
B167: Atitudes: | J167: Avaliação:
B168: a) Tem domínio sobre as atividades, normativas, procedimentos e processos da área em que atua, assegurando corretas orientações para a sua equipe e sociedade; | J168: Atende
B170: b) Demonstra interesse em absorver novos conhecimentos e no treinamento para novas tarefas, procedimentos e processos; | J170: Atende
B172: c) Comunica-se de forma clara e eficiente, atentando para a qualidade da linguagem e da informação transmitida; | J172: Atende
B174: d) Busca aperfeiçoamento no exercício de suas atribuições, atualizando-se continuamente no que diz respeito aos dispositivos legais e habilidades específicas necessários ao desenvolvimento de suas atividades; | J174: Atende
B176: e) Demonstra senso crítico em relação às tarefas de rotina, buscando o aperfeiçoamento técnico e lógico dos procedimentos realizados; | J176: Não atende
B178: f) Desempenha suas atividades com atenção, demonstrando conhecimento e memória de trabalho. | J178: Não atende
B181: Relatório de ocorrências:
E187: Graduação: | I187: Pontuação:
E188: =IF(COUNTA(DES_Q7)=0,"",INDEX(GRADUAÇÃ0_DESENVOLVIMENTO,MATCH(DES_O7,ocorrências_DESENVOLVIMENTO,))) -> Atende às expectativas em 4 fatores | I188: =IFERROR(IF(J6="","",INDEX(FATORES_PONT,MATCH(E188,GRADUAÇÃ0_DESENVOLVIMENTO,))),"") -> 7
A190: GRADUAÇÕES
A192: FATORES | C192: PONTUAÇÃO | D192: PESO | E192: NOTA | G192: CONCEITOS
A193: ASSIDUIDADE | C193: =I21 -> 5 | D193: 0.8 | E193: =IFERROR(C193*D193,"") -> 4 | G193: Insatisfatório | H193: até 29,9 | I193: Desempenho ruim.
A194: PONTUALIDADE | C194: =I33 -> 9 | D194: 0.8 | E194: 7.2 | G194: Regular | H194: 30 a 49,9 | I194: Desempenho abaixo da média.
A195: DISCIPLINA | C195: =I60 -> 1 | D195: 1.4 | E195: 1.4 | G195: Bom | H195: 50 a 69,9 | I195: Desempenho satisfaz.
A196: INICIATIVA | C196: =I86 -> 10 | D196: 1.4 | E196: 14 | G196: Muito bom | H196: 70 a 89,9 | I196: Desempenho acima da média.
A197: PRODUTIVIDADE | C197: =I111 -> 10 | D197: 1.4 | E197: 14 | G197: Excelente | H197: 90 a 100 | I197: Desempenho exemplar.
A198: RESPONSABILIDADE | C198: =I137 -> 9 | D198: 1.4 | E198: 12.6
A199: COMPORTAMENTO | C199: =I163 -> 9 | D199: 1.4 | E199: 12.6 | G199: Resultado: | I199: Conceito:
A200: DESENVOLVIMENTO | C200: =I188 -> 7 | D200: 1.4 | E200: 9.8 | G200: =E201 -> 75.6 | I200: =IF(G200="","",IF(E201>mbom,G197,IF(E201>bom,G196,IF(E201>reg,G195,IF(E201>insat,G194,IF(E201>=0,G193,"")))))) -> Muito bom
C201: TOTAIS: | D201: =IF(SUM(D193:D200)=0,"",SUM(D193:D200)) -> 10 | E201: =IF(SUM(E193:E200)=0,"",SUM(E193:E200)) -> 75.6
A203: PARECER DO AVALIADOR
B215: Ciente do conteúdo da avaliação.
B216: =IFERROR(CONCATENATE("Porto Alegre, ",dataav_6),"") -> Porto Alegre, dia 13 de junho de 2017.
C220: =IF(nome_empregado="","",nome_empregado) -> Tício | H220: =IF(B6="","",B6) -> 
C221: AVALIADO | H221: AVALIADOR

Sheet 8ª Etapa
A1: FICHA DE AVALIAÇÃO DE DESEMPENHO
A2: =IFERROR(CONCATENATE("6ª ETAPA: de ",DAY(L2),"/",MONTH(L2),"/",YEAR(L2)," a ",DAY(M2),"/",MONTH(M2),"/",YEAR(M2)),"") -> 6ª ETAPA: de 16/9/2014 a 15/12/2014 | L2: =data_7+1 -> 2014-09-16 | M2: =data_8 -> 2014-12-15
A4: Empregado: | B4: =IF(nome_empregado="","",nome_empregado) -> Tício | F4: Início do Exercício: | H4: =IF(EXERCÍCIO="","",EXERCÍCIO) -> 2012-12-15 | I4: Matrícula: | J4: =IF(matrícula="","",matrícula) -> 0
A5: Cargo: | B5: =IF(CARGO="","",CARGO) -> Assistente | F5: Lotação: | I5: RG/CPF: | J5: =IF(rg="","",rg) -> 
A6: Avaliador: | F6: Função: | I6: Data: | J6: 2017-06-13
A8: FATORES DE DESEMPENHO
A10: ASSIDUIDADE | B10: Refere-se à frequência com que o Empregado comparece ao Trabalho. A ausência injustificada do local de trabalho acarretará redução da nota, sendo que serão computadas como ocorrências neste quesito as faltas superiores a 60 (sessenta) minutos, ocorridas num mesmo dia, conforme critérios estabelecidos:
B14: Relatório de ocorrências:
F20: Quantidade de ocorrências: | I20: Pontuação:
F21: Sem ocorrências | I21: =IFERROR(IF(J6="","",INDEX(FATORES_PONT,MATCH(F21,Graduação_assiduidade,))),"") -> 10
A23: PONTUALIDADE | B23: Refere-se ao cumprimento do horário de trabalho estabelecido. Serão computados como ocorrência neste quesito os atrasos ou saídas antecipadas não superiores a 60 (sessenta) minutos, ocorridas num mesmo dia, sem justificativa e fora do previsto na CLT, conforme critérios estabelecidos:
B26: Relatório de ocorrências:
F32: Quantidade de ocorrências: | I32: Pontuação:
F33: De 121 minutos até 240 minutos | I33: =IFERROR(IF(J6="","",INDEX(FATORES_PONT,MATCH(F33,graduação_pontualidade,))),"") -> 5
A35: DISCIPLINA | B35: Refere-se ao cumprimento de normas internas do Conselho, como Regulamento de Pessoal, e respeito à hierarquia. São consideradas ocorrências:
B37: Situações: | J37: Quantidade:
B38: a) Alteração do horário de intervalo de almoço sem autorização prévia ou posterior justificativa aceita pelo superior imediato; | J38: 1
B40: b) Descumprimento do intervalo intrajornada mínimo de 60 minutos para os empregados com carga diária superior a 6 horas ou de 15 minutos para os empregados com carga diária entre 4 e 6 horas; | J40: 7
B42: c) Realização de horas extras sem autorização prévia ou posterior justificativa do superior imediato;
B44: d) Realização de compensação de jornada sem autorização prévia;
B46: e) Ausência da sede do Conselho, durante o expediente, sem comunicação ao superior imediato ou a outra pessoa de mesma hierarquia;
B48: f) Ocorrência de descumprimento do Regulamento de Pessoal;
B50: g) Ocorrência de descumprimento de orientações da chefia imediata ou desrespeito à hierarquia; | J50: 1
B53: Relatório de ocorrências:
E59: Graduação: | I59: Pontuação:
E60: =IF(COUNTA(DIS_Q8)=0,"",INDEX(graduação_disciplina,MATCH(DIS_O8,ocorrências_disciplina,1))) -> De 8 a 9 ocorrências | I60: =IFERROR(IF(J6="","",INDEX(FATORES_PONT,MATCH(E60,graduação_disciplina,))),"") -> 1
A62: INICIATIVA | B62: Refere-se ao comportamento proativo, com adoção de providências em situações não definidas pelo superior ou não previstas no(s) manual(is) de normas e procedimentos. São atitudes consideradas para a avaliação:
B65: Ocorrências: | J65: Avaliação:
B66: a) Busca atividades para ocupação do tempo, se houver momentos de baixa demanda; | J66: Atende
B68: b) Quando necessário, identifica atividades prioritárias com resolução pendente, atendendo ou auxiliando no atendimento dessas questõe | J68: Atende
B70: c) Contribui para a melhoria do trabalho, identificando problemas existentes e potenciais, apresentando ideias e propondo sugestões; | J70: Atende
B72: d) É participativo e demostra interesse e engajamento nas atividades de reuniões, capacitações, eventos, entre outros; | J72: Não atente
B74: e) Demonstra iniciativa para resolver imprevistos, buscando soluções em situações adversas; | J74: Atende
B76: f) Demonstra receptividade e adaptabilidade frente à implantação de mudanças; | J76: Atende
B79: Relatório de ocorrências:
E85: Graduação: | I85: Pontuação:
E86: =IF(COUNTA(INI_Q8)=0,"",INDEX(graduação_iniciativa,MATCH(INI_O8,ocorrências_iniciativa,))) -> Atende às expectativas em todos os fatores | I86: =IFERROR(IF(J6="","",INDEX(FATORES_PONT,MATCH(E86,graduação_iniciativa,))),"") -> 10
A88: PRODUTIVIDADE | B88: Refere-se à análise do volume e qualidade de trabalho conforme resultados esperados para o cargo. São atitudes consideradas para a avaliação:
B90: Atitudes: | J90: Avaliação:
B91: a) Realiza um volume de trabalho compatível com o esperado, considerando o histórico habitual; | J91: Atende
B93: b) Apresenta um trabalho com qualidade satisfatória, evitando retrabalhos; | J93: Não atende
B95: c) Cumpre os prazos estabelecidos, entregando as tarefas sob a sua responsabilidade no tempo previsto, evitando acúmulos nas demandas; | J95: Não atende
B97: d) Estrutura e sistematiza as atividades para melhor utilização dos recursos. Estabelece prioridades e organiza suas atividades; | J97: Atende
B99: e) Desempenha os procedimentos e atividades com eficiência e técnicas adequadas; | J99: Atende
B101: f) Executa suas tarefas com foco e equilíbrio, evitando distrações e dispersões; | J101: Atende
B104: Relatório de ocorrências:
E110: Graduação: | I110: Pontuação:
E111: =IF(COUNTA(PRO_Q8)=0,"",INDEX(graduação_produtividade,MATCH(PRO_O8,ocorrências_produtividade,))) -> Atende às expectativas em 4 fatores | I111: =IFERROR(IF(J6="","",INDEX(FATORES_PONT,MATCH(E111,graduação_produtividade,))),"") -> 7
A113: RESPONSABILIDADE | B113: Refere-se à análise quanto ao comprometimento com as tarefas delegadas, o grau de segurança que transmite aos superiores e zelo pelos recursos disponibilizados. São atitudes consideradas para a avaliação:
B116: Atitudes: | J116: Avaliação:
B117: a) Colabora com a conservação do patrimônio público e utilização dos materiais; | J117: Atende
B119: b) Diante de questões além de sua competência, realiza o encaminhamento interno necessário, possibilitando continuidade no atendimento e na resolução adequados; | J119: Atende
B121: c) Avisa ao superior sobre situações adversas relacionadas ao andamento do trabalho. | J121: Não atende
B123: d) Demonstra organização e planejamento no cumprimento de suas atividades; | J123: Não atende
B125: e) Apresenta autonomia nas decisões relativas às funções desenvolvidas, demonstrando comprometimento com o trabalho; | J125: Atende
B127: f) Transmite segurança no desempenho de suas funções, cumprindo suas tarefas de acordo com as instruções recebidas; | J127: Atende
B130: Relatório de ocorrências:
E136: Graduação: | I136: Pontuação:
E137: =IF(COUNTA(RES_Q8)=0,"",INDEX(graduação_responsabilidade,MATCH(RES_O8,ocorrências_responsabilidade,))) -> Atende às expectativas em 4 fatores | I137: =IFERROR(IF(J6="","",INDEX(FATORES_PONT,MATCH(E137,graduação_responsabilidade,))),"") -> 7
A139: COMPORTAMENTO | B139: Refere-se à postura e sigilo sobre assuntos reservados e confidenciais , ao comportamento e conhecimento disciplinar e ético. São atitudes consideradas para a avaliação:
B142: Atitudes: | J142: Avaliação:
B143: a) Trata informações e documentos com o grau de reserva ou sigilo necessários; | J143: Atende
B145: b) Atua com ética e profissionalismo, demonstrando postura equilibrada e adequada ao ambiente de trabalho. | J145: Atende
B147: c) É receptivo em relação aos apontamentos e sugestões de melhoria feitas acerca de sua postura e desempenho do trabalho; | J147: Não atende
B149: d) Trata a todos de forma solícita, gentil e respeitosa; | J149: Atende
B151: e) Difunde conhecimentos, ideias, soluções e boas práticas; | J151: Não atende
B153: f) Contribui para um melhor ambiente de trabalho, apresentando um bom relacionamento interpessoal e harmonia na convivência com os diversos perfis profissionais e pessoais, e em situações adversas. | J153: Não atende
B156: Relatório de ocorrências:
E162: Graduação: | I162: Pontuação:
E163: =IF(COUNTA(COM_Q8)=0,"",INDEX(graduação_comportamento,MATCH(COM_O8,ocorrências_comportamento,))) -> Atende às expectativas em 3 fatores | I163: =IFERROR(IF(J6="","",INDEX(FATORES_PONT,MATCH(E163,graduação_comportamento,))),"") -> 5
A165: DESENVOLVIMENTO | B165: Refere-se à análise quanto a potencialidade para aprendizagem e aplicação do conhecimento. São atitudes consideradas para a avaliação:
B167: Atitudes: | J167: Avaliação:
B168: a) Tem domínio sobre as atividades, normativas, procedimentos e processos da área em que atua, assegurando corretas orientações para a sua equipe e sociedade; | J168: Atende
B170: b) Demonstra interesse em absorver novos conhecimentos e no treinamento para novas tarefas, procedimentos e processos; | J170: Atende
B172: c) Comunica-se de forma clara e eficiente, atentando para a qualidade da linguagem e da informação transmitida; | J172: Não atende
B174: d) Busca aperfeiçoamento no exercício de suas atribuições, atualizando-se continuamente no que diz respeito aos dispositivos legais e habilidades específicas necessários ao desenvolvimento de suas atividades; | J174: Atende
B176: e) Demonstra senso crítico em relação às tarefas de rotina, buscando o aperfeiçoamento técnico e lógico dos procedimentos realizados; | J176: Não atende
B178: f) Desempenha suas atividades com atenção, demonstrando conhecimento e memória de trabalho. | J178: Não atende
B181: Relatório de ocorrências:
E187: Graduação: | I187: Pontuação:
E188: =IF(COUNTA(DES_Q8)=0,"",INDEX(GRADUAÇÃ0_DESENVOLVIMENTO,MATCH(DES_O8,ocorrências_DESENVOLVIMENTO,))) -> Atende às expectativas em 3 fatores | I188: =IFERROR(IF(J6="","",INDEX(FATORES_PONT,MATCH(E188,GRADUAÇÃ0_DESENVOLVIMENTO,))),"") -> 5
A190: GRADUAÇÕES
A192: FATORES | C192: PONTUAÇÃO | D192: PESO | E192: NOTA | G192: CONCEITOS
A193: ASSIDUIDADE | C193: =I21 -> 10 | D193: 0.8 | E193: =IFERROR(C193*D193,"") -> 8 | G193: Insatisfatório | H193: até 29,9 | I193: Desempenho ruim.
A194: PONTUALIDADE | C194: =I33 -> 5 | D194: 0.8 | E194: 4 | G194: Regular | H194: 30 a 49,9 | I194: Desempenho abaixo da média.
A195: DISCIPLINA | C195: =I60 -> 1 | D195: 1.4 | E195: 1.4 | G195: Bom | H195: 50 a 69,9 | I195: Desempenho satisfaz.
A196: INICIATIVA | C196: =I86 -> 10 | D196: 1.4 | E196: 14 | G196: Muito bom | H196: 70 a 89,9 | I196: Desempenho acima da média.
A197: PRODUTIVIDADE | C197: =I111 -> 7 | D197: 1.4 | E197: 9.8 | G197: Excelente | H197: 90 a 100 | I197: Desempenho exemplar.
A198: RESPONSABILIDADE | C198: =I137 -> 7 | D198: 1.4 | E198: 9.8
A199: COMPORTAMENTO | C199: =I163 -> 5 | D199: 1.4 | E199: 7 | G199: Resultado: | I199: Conceito:
A200: DESENVOLVIMENTO | C200: =I188 -> 5 | D200: 1.4 | E200: 7 | G200: =E201 -> 61 | I200: =IF(G200="","",IF(E201>mbom,G197,IF(E201>bom,G196,IF(E201>reg,G195,IF(E201>insat,G194,IF(E201>=0,G193,"")))))) -> Bom
C201: TOTAIS: | D201: =IF(SUM(D193:D200)=0,"",SUM(D193:D200)) -> 10 | E201: =IF(SUM(E193:E200)=0,"",SUM(E193:E200)) -> 61
A203: PARECER DO AVALIADOR
B215: Ciente do conteúdo da avaliação.
B216: =IFERROR(CONCATENATE("Porto Alegre, ",dataav_6),"") -> Porto Alegre, dia 13 de junho de 2017.
C220: =IF(nome_empregado="","",nome_empregado) -> Tício | H220: =IF(B6="","",B6) -> 
C221: AVALIADO | H221: AVALIADOR

Sheet 9ª Etapa
A1: FICHA DE AVALIAÇÃO DE DESEMPENHO
A2: =IFERROR(CONCATENATE("6ª ETAPA: de ",DAY(L2),"/",MONTH(L2),"/",YEAR(L2)," a ",DAY(M2),"/",MONTH(M2),"/",YEAR(M2)),"") -> 6ª ETAPA: de 16/12/2014 a 16/3/2015 | L2: =data_8+1 -> 2014-12-16 | M2: =data_9 -> 2015-03-16
A4: Empregado: | B4: =IF(nome_empregado="","",nome_empregado) -> Tício | F4: Início do Exercício: | H4: =IF(EXERCÍCIO="","",EXERCÍCIO) -> 2012-12-15 | I4: Matrícula: | J4: =IF(matrícula="","",matrícula) -> 0
A5: Cargo: | B5: =IF(CARGO="","",CARGO) -> Assistente | F5: Lotação: | I5: RG/CPF: | J5: =IF(rg="","",rg) -> 
A6: Avaliador: | F6: Função: | I6: Data: | J6: 2017-06-13
A8: FATORES DE DESEMPENHO
A10: ASSIDUIDADE | B10: Refere-se à frequência com que o Empregado comparece ao Trabalho. A ausência injustificada do local de trabalho acarretará redução da nota, sendo que serão computadas como ocorrências neste quesito as faltas superiores a 60 (sessenta) minutos, ocorridas num mesmo dia, conforme critérios estabelecidos:
B14: Relatório de ocorrências:
F20: Quantidade de ocorrências: | I20: Pontuação:
F21: 4 ocorrências | I21: =IFERROR(IF(J6="","",INDEX(FATORES_PONT,MATCH(F21,Graduação_assiduidade,))),"") -> 3
A23: PONTUALIDADE | B23: Refere-se ao cumprimento do horário de trabalho estabelecido. Serão computados como ocorrência neste quesito os atrasos ou saídas antecipadas não superiores a 60 (sessenta) minutos, ocorridas num mesmo dia, sem justificativa e fora do previsto na CLT, conforme critérios estabelecidos:
B26: Relatório de ocorrências:
F32: Quantidade de ocorrências: | I32: Pontuação:
F33: Sem ocorrências | I33: =IFERROR(IF(J6="","",INDEX(FATORES_PONT,MATCH(F33,graduação_pontualidade,))),"") -> 10
A35: DISCIPLINA | B35: Refere-se ao cumprimento de normas internas do Conselho, como Regulamento de Pessoal, e respeito à hierarquia. São consideradas ocorrências:
B37: Situações: | J37: Quantidade:
B38: a) Alteração do horário de intervalo de almoço sem autorização prévia ou posterior justificativa aceita pelo superior imediato; | J38: 1
B40: b) Descumprimento do intervalo intrajornada mínimo de 60 minutos para os empregados com carga diária superior a 6 horas ou de 15 minutos para os empregados com carga diária entre 4 e 6 horas; | J40: 4
B42: c) Realização de horas extras sem autorização prévia ou posterior justificativa do superior imediato;
B44: d) Realização de compensação de jornada sem autorização prévia;
B46: e) Ausência da sede do Conselho, durante o expediente, sem comunicação ao superior imediato ou a outra pessoa de mesma hierarquia;
B48: f) Ocorrência de descumprimento do Regulamento de Pessoal;
B50: g) Ocorrência de descumprimento de orientações da chefia imediata ou desrespeito à hierarquia; | J50: 1
B53: Relatório de ocorrências:
E59: Graduação: | I59: Pontuação:
E60: =IF(COUNTA(DIS_Q9)=0,"",INDEX(graduação_disciplina,MATCH(DIS_O9,ocorrências_disciplina,1))) -> De 6 a 7 ocorrências | I60: =IFERROR(IF(J6="","",INDEX(FATORES_PONT,MATCH(E60,graduação_disciplina,))),"") -> 3
A62: INICIATIVA | B62: Refere-se ao comportamento proativo, com adoção de providências em situações não definidas pelo superior ou não previstas no(s) manual(is) de normas e procedimentos. São atitudes consideradas para a avaliação:
B65: Ocorrências: | J65: Avaliação:
B66: a) Busca atividades para ocupação do tempo, se houver momentos de baixa demanda; | J66: Atende
B68: b) Quando necessário, identifica atividades prioritárias com resolução pendente, atendendo ou auxiliando no atendimento dessas questõe | J68: Atende
B70: c) Contribui para a melhoria do trabalho, identificando problemas existentes e potenciais, apresentando ideias e propondo sugestões; | J70: Atende
B72: d) É participativo e demostra interesse e engajamento nas atividades de reuniões, capacitações, eventos, entre outros; | J72: Atende
B74: e) Demonstra iniciativa para resolver imprevistos, buscando soluções em situações adversas; | J74: Atende
B76: f) Demonstra receptividade e adaptabilidade frente à implantação de mudanças; | J76: Atende
B79: Relatório de ocorrências:
E85: Graduação: | I85: Pontuação:
E86: =IF(COUNTA(INI_Q9)=0,"",INDEX(graduação_iniciativa,MATCH(INI_O9,ocorrências_iniciativa,))) -> Atende às expectativas em todos os fatores | I86: =IFERROR(IF(J6="","",INDEX(FATORES_PONT,MATCH(E86,graduação_iniciativa,))),"") -> 10
A88: PRODUTIVIDADE | B88: Refere-se à análise do volume e qualidade de trabalho conforme resultados esperados para o cargo. São atitudes consideradas para a avaliação:
B90: Atitudes: | J90: Avaliação:
B91: a) Realiza um volume de trabalho compatível com o esperado, considerando o histórico habitual; | J91: Atende
B93: b) Apresenta um trabalho com qualidade satisfatória, evitando retrabalhos; | J93: Atende
B95: c) Cumpre os prazos estabelecidos, entregando as tarefas sob a sua responsabilidade no tempo previsto, evitando acúmulos nas demandas; | J95: Atende
B97: d) Estrutura e sistematiza as atividades para melhor utilização dos recursos. Estabelece prioridades e organiza suas atividades; | J97: Atende
B99: e) Desempenha os procedimentos e atividades com eficiência e técnicas adequadas; | J99: Atende
B101: f) Executa suas tarefas com foco e equilíbrio, evitando distrações e dispersões; | J101: Atende
B104: Relatório de ocorrências:
E110: Graduação: | I110: Pontuação:
E111: =IF(COUNTA(PRO_Q9)=0,"",INDEX(graduação_produtividade,MATCH(PRO_O9,ocorrências_produtividade,))) -> Atende às expectativas em todos os fatores | I111: =IFERROR(IF(J6="","",INDEX(FATORES_PONT,MATCH(E111,graduação_produtividade,))),"") -> 10
A113: RESPONSABILIDADE | B113: Refere-se à análise quanto ao comprometimento com as tarefas delegadas, o grau de segurança que transmite aos superiores e zelo pelos recursos disponibilizados. São atitudes consideradas para a avaliação:
B116: Atitudes: | J116: Avaliação:
B117: a) Colabora com a conservação do patrimônio público e utilização dos materiais; | J117: Atende
B119: b) Diante de questões além de sua competência, realiza o encaminhamento interno necessário, possibilitando continuidade no atendimento e na resolução adequados; | J119: Atende
B121: c) Avisa ao superior sobre situações adversas relacionadas ao andamento do trabalho. | J121: Atende
B123: d) Demonstra organização e planejamento no cumprimento de suas atividades; | J123: Atende
B125: e) Apresenta autonomia nas decisões relativas às funções desenvolvidas, demonstrando comprometimento com o trabalho; | J125: Atende
B127: f) Transmite segurança no desempenho de suas funções, cumprindo suas tarefas de acordo com as instruções recebidas; | J127: Atende
B130: Relatório de ocorrências:
E136: Graduação: | I136: Pontuação:
E137: =IF(COUNTA(RES_Q9)=0,"",INDEX(graduação_responsabilidade,MATCH(RES_O9,ocorrências_responsabilidade,))) -> Atende às expectativas em todos os fatores | I137: =IFERROR(IF(J6="","",INDEX(FATORES_PONT,MATCH(E137,graduação_responsabilidade,))),"") -> 10
A139: COMPORTAMENTO | B139: Refere-se à postura e sigilo sobre assuntos reservados e confidenciais , ao comportamento e conhecimento disciplinar e ético. São atitudes consideradas para a avaliação:
B142: Atitudes: | J142: Avaliação:
B143: a) Trata informações e documentos com o grau de reserva ou sigilo necessários; | J143: Atende
B145: b) Atua com ética e profissionalismo, demonstrando postura equilibrada e adequada ao ambiente de trabalho. | J145: Atende
B147: c) É receptivo em relação aos apontamentos e sugestões de melhoria feitas acerca de sua postura e desempenho do trabalho; | J147: Atende
B149: d) Trata a todos de forma solícita, gentil e respeitosa; | J149: Atende
B151: e) Difunde conhecimentos, ideias, soluções e boas práticas; | J151: Não atende
B153: f) Contribui para um melhor ambiente de trabalho, apresentando um bom relacionamento interpessoal e harmonia na convivência com os diversos perfis profissionais e pessoais, e em situações adversas. | J153: Não atende
B156: Relatório de ocorrências:
E162: Graduação: | I162: Pontuação:
E163: =IF(COUNTA(COM_Q9)=0,"",INDEX(graduação_comportamento,MATCH(COM_O9,ocorrências_comportamento,))) -> Atende às expectativas em 4 fatores | I163: =IFERROR(IF(J6="","",INDEX(FATORES_PONT,MATCH(E163,graduação_comportamento,))),"") -> 7
A165: DESENVOLVIMENTO | B165: Refere-se à análise quanto a potencialidade para aprendizagem e aplicação do conhecimento. São atitudes consideradas para a avaliação:
B167: Atitudes: | J167: Avaliação:
B168: a) Tem domínio sobre as atividades, normativas, procedimentos e processos da área em que atua, assegurando corretas orientações para a sua equipe e sociedade; | J168: Atende
B170: b) Demonstra interesse em absorver novos conhecimentos e no treinamento para novas tarefas, procedimentos e processos; | J170: Atende
B172: c) Comunica-se de forma clara e eficiente, atentando para a qualidade da linguagem e da informação transmitida; | J172: Não atende
B174: d) Busca aperfeiçoamento no exercício de suas atribuições, atualizando-se continuamente no que diz respeito aos dispositivos legais e habilidades específicas necessários ao desenvolvimento de suas atividades; | J174: Atende
B176: e) Demonstra senso crítico em relação às tarefas de rotina, buscando o aperfeiçoamento técnico e lógico dos procedimentos realizados; | J176: Atende
B178: f) Desempenha suas atividades com atenção, demonstrando conhecimento e memória de trabalho. | J178: Atende
B181: Relatório de ocorrências:
E187: Graduação: | I187: Pontuação:
E188: =IF(COUNTA(DES_Q9)=0,"",INDEX(GRADUAÇÃ0_DESENVOLVIMENTO,MATCH(DES_O9,ocorrências_DESENVOLVIMENTO,))) -> Atende às expectativas em 5 fatores | I188: =IFERROR(IF(J6="","",INDEX(FATORES_PONT,MATCH(E188,GRADUAÇÃ0_DESENVOLVIMENTO,))),"") -> 9
A190: GRADUAÇÕES
A192: FATORES | C192: PONTUAÇÃO | D192: PESO | E192: NOTA | G192: CONCEITOS
A193: ASSIDUIDADE | C193: =I21 -> 3 | D193: 0.8 | E193: =IFERROR(C193*D193,"") -> 2.4 | G193: Insatisfatório | H193: até 29,9 | I193: Desempenho ruim.
A194: PONTUALIDADE | C194: =I33 -> 10 | D194: 0.8 | E194: 8 | G194: Regular | H194: 30 a 49,9 | I194: Desempenho abaixo da média.
A195: DISCIPLINA | C195: =I60 -> 3 | D195: 1.4 | E195: 4.2 | G195: Bom | H195: 50 a 69,9 | I195: Desempenho satisfaz.
A196: INICIATIVA | C196: =I86 -> 10 | D196: 1.4 | E196: 14 | G196: Muito bom | H196: 70 a 89,9 | I196: Desempenho acima da média.
A197: PRODUTIVIDADE | C197: =I111 -> 10 | D197: 1.4 | E197: 14 | G197: Excelente | H197: 90 a 100 | I197: Desempenho exemplar.
A198: RESPONSABILIDADE | C198: =I137 -> 10 | D198: 1.4 | E198: 14
A199: COMPORTAMENTO | C199: =I163 -> 7 | D199: 1.4 | E199: 9.8 | G199: Resultado: | I199: Conceito:
A200: DESENVOLVIMENTO | C200: =I188 -> 9 | D200: 1.4 | E200: 12.6 | G200: =E201 -> 79 | I200: =IF(G200="","",IF(E201>mbom,G197,IF(E201>bom,G196,IF(E201>reg,G195,IF(E201>insat,G194,IF(E201>=0,G193,"")))))) -> Muito bom
C201: TOTAIS: | D201: =IF(SUM(D193:D200)=0,"",SUM(D193:D200)) -> 10 | E201: =IF(SUM(E193:E200)=0,"",SUM(E193:E200)) -> 79
A203: PARECER DO AVALIADOR
B215: Ciente do conteúdo da avaliação.
B216: =IFERROR(CONCATENATE("Porto Alegre, ",dataav_6),"") -> Porto Alegre, dia 13 de junho de 2017.
C220: =IF(nome_empregado="","",nome_empregado) -> Tício | H220: =IF(B6="","",B6) -> 
C221: AVALIADO | H221: AVALIADOR

Sheet 10ª Etapa
A1: FICHA DE AVALIAÇÃO DE DESEMPENHO
A2: =IFERROR(CONCATENATE("6ª ETAPA: de ",DAY(L2),"/",MONTH(L2),"/",YEAR(L2)," a ",DAY(M2),"/",MONTH(M2),"/",YEAR(M2)),"") -> 6ª ETAPA: de 17/3/2015 a 15/6/2015 | L2: =data_9+1 -> 2015-03-17 | M2: =data_10 -> 2015-06-15
A4: Empregado: | B4: =IF(nome_empregado="","",nome_empregado) -> Tício | F4: Início do Exercício: | H4: =IF(EXERCÍCIO="","",EXERCÍCIO) -> 2012-12-15 | I4: Matrícula: | J4: =IF(matrícula="","",matrícula) -> 0
A5: Cargo: | B5: =IF(CARGO="","",CARGO) -> Assistente | F5: Lotação: | I5: RG/CPF: | J5: =IF(rg="","",rg) -> 
A6: Avaliador: | F6: Função: | I6: Data: | J6: 2017-06-13
A8: FATORES DE DESEMPENHO
A10: ASSIDUIDADE | B10: Refere-se à frequência com que o Empregado comparece ao Trabalho. A ausência injustificada do local de trabalho acarretará redução da nota, sendo que serão computadas como ocorrências neste quesito as faltas superiores a 60 (sessenta) minutos, ocorridas num mesmo dia, conforme critérios estabelecidos:
B14: Relatório de ocorrências:
F20: Quantidade de ocorrências: | I20: Pontuação:
F21: Sem ocorrências | I21: =IFERROR(IF(J6="","",INDEX(FATORES_PONT,MATCH(F21,Graduação_assiduidade,))),"") -> 10
A23: PONTUALIDADE | B23: Refere-se ao cumprimento do horário de trabalho estabelecido. Serão computados como ocorrência neste quesito os atrasos ou saídas antecipadas não superiores a 60 (sessenta) minutos, ocorridas num mesmo dia, sem justificativa e fora do previsto na CLT, conforme critérios estabelecidos:
B26: Relatório de ocorrências:
F32: Quantidade de ocorrências: | I32: Pontuação:
F33: Até 30 minutos | I33: =IFERROR(IF(J6="","",INDEX(FATORES_PONT,MATCH(F33,graduação_pontualidade,))),"") -> 9
A35: DISCIPLINA | B35: Refere-se ao cumprimento de normas internas do Conselho, como Regulamento de Pessoal, e respeito à hierarquia. São consideradas ocorrências:
B37: Situações: | J37: Quantidade:
B38: a) Alteração do horário de intervalo de almoço sem autorização prévia ou posterior justificativa aceita pelo superior imediato; | J38: 0
B40: b) Descumprimento do intervalo intrajornada mínimo de 60 minutos para os empregados com carga diária superior a 6 horas ou de 15 minutos para os empregados com carga diária entre 4 e 6 horas;
B42: c) Realização de horas extras sem autorização prévia ou posterior justificativa do superior imediato;
B44: d) Realização de compensação de jornada sem autorização prévia;
B46: e) Ausência da sede do Conselho, durante o expediente, sem comunicação ao superior imediato ou a outra pessoa de mesma hierarquia;
B48: f) Ocorrência de descumprimento do Regulamento de Pessoal;
B50: g) Ocorrência de descumprimento de orientações da chefia imediata ou desrespeito à hierarquia;
B53: Relatório de ocorrências:
E59: Graduação: | I59: Pontuação:
E60: =IF(COUNTA(DIS_Q10)=0,"",INDEX(graduação_disciplina,MATCH(DIS_O10,ocorrências_disciplina,1))) -> Sem ocorrências | I60: =IFERROR(IF(J6="","",INDEX(FATORES_PONT,MATCH(E60,graduação_disciplina,))),"") -> 10
A62: INICIATIVA | B62: Refere-se ao comportamento proativo, com adoção de providências em situações não definidas pelo superior ou não previstas no(s) manual(is) de normas e procedimentos. São atitudes consideradas para a avaliação:
B65: Ocorrências: | J65: Avaliação:
B66: a) Busca atividades para ocupação do tempo, se houver momentos de baixa demanda; | J66: Atende
B68: b) Quando necessário, identifica atividades prioritárias com resolução pendente, atendendo ou auxiliando no atendimento dessas questõe | J68: Não atende
B70: c) Contribui para a melhoria do trabalho, identificando problemas existentes e potenciais, apresentando ideias e propondo sugestões; | J70: Atende
B72: d) É participativo e demostra interesse e engajamento nas atividades de reuniões, capacitações, eventos, entre outros; | J72: Atende
B74: e) Demonstra iniciativa para resolver imprevistos, buscando soluções em situações adversas; | J74: Atende
B76: f) Demonstra receptividade e adaptabilidade frente à implantação de mudanças; | J76: Atende
B79: Relatório de ocorrências:
E85: Graduação: | I85: Pontuação:
E86: =IF(COUNTA(INI_Q10)=0,"",INDEX(graduação_iniciativa,MATCH(INI_O10,ocorrências_iniciativa,))) -> Atende às expectativas em 5 fatores | I86: =IFERROR(IF(J6="","",INDEX(FATORES_PONT,MATCH(E86,graduação_iniciativa,))),"") -> 9
A88: PRODUTIVIDADE | B88: Refere-se à análise do volume e qualidade de trabalho conforme resultados esperados para o cargo. São atitudes consideradas para a avaliação:
B90: Atitudes: | J90: Avaliação:
B91: a) Realiza um volume de trabalho compatível com o esperado, considerando o histórico habitual; | J91: Atende
B93: b) Apresenta um trabalho com qualidade satisfatória, evitando retrabalhos; | J93: Não atende
B95: c) Cumpre os prazos estabelecidos, entregando as tarefas sob a sua responsabilidade no tempo previsto, evitando acúmulos nas demandas; | J95: Não atende
B97: d) Estrutura e sistematiza as atividades para melhor utilização dos recursos. Estabelece prioridades e organiza suas atividades; | J97: Atende
B99: e) Desempenha os procedimentos e atividades com eficiência e técnicas adequadas; | J99: Atende
B101: f) Executa suas tarefas com foco e equilíbrio, evitando distrações e dispersões; | J101: Atende
B104: Relatório de ocorrências:
E110: Graduação: | I110: Pontuação:
E111: =IF(COUNTA(PRO_Q10)=0,"",INDEX(graduação_produtividade,MATCH(PRO_O10,ocorrências_produtividade,))) -> Atende às expectativas em 4 fatores | I111: =IFERROR(IF(J6="","",INDEX(FATORES_PONT,MATCH(E111,graduação_produtividade,))),"") -> 7
A113: RESPONSABILIDADE | B113: Refere-se à análise quanto ao comprometimento com as tarefas delegadas, o grau de segurança que transmite aos superiores e zelo pelos recursos disponibilizados. São atitudes consideradas para a avaliação:
B116: Atitudes: | J116: Avaliação:
B117: a) Colabora com a conservação do patrimônio público e utilização dos materiais; | J117: Atende
B119: b) Diante de questões além de sua competência, realiza o encaminhamento interno necessário, possibilitando continuidade no atendimento e na resolução adequados; | J119: Atende
B121: c) Avisa ao superior sobre situações adversas relacionadas ao andamento do trabalho. | J121: Atende
B123: d) Demonstra organização e planejamento no cumprimento de suas atividades; | J123: Não atende
B125: e) Apresenta autonomia nas decisões relativas às funções desenvolvidas, demonstrando comprometimento com o trabalho; | J125: Atende
B127: f) Transmite segurança no desempenho de suas funções, cumprindo suas tarefas de acordo com as instruções recebidas; | J127: Atende
B130: Relatório de ocorrências:
E136: Graduação: | I136: Pontuação:
E137: =IF(COUNTA(RES_Q10)=0,"",INDEX(graduação_responsabilidade,MATCH(RES_O10,ocorrências_responsabilidade,))) -> Atende às expectativas em 5 fatores | I137: =IFERROR(IF(J6="","",INDEX(FATORES_PONT,MATCH(E137,graduação_responsabilidade,))),"") -> 9
A139: COMPORTAMENTO | B139: Refere-se à postura e sigilo sobre assuntos reservados e confidenciais , ao comportamento e conhecimento disciplinar e ético. São atitudes consideradas para a avaliação:
B142: Atitudes: | J142: Avaliação:
B143: a) Trata informações e documentos com o grau de reserva ou sigilo necessários; | J143: Atende
B145: b) Atua com ética e profissionalismo, demonstrando postura equilibrada e adequada ao ambiente de trabalho. | J145: Atende
B147: c) É receptivo em relação aos apontamentos e sugestões de melhoria feitas acerca de sua postura e desempenho do trabalho; | J147: Atende
B149: d) Trata a todos de forma solícita, gentil e respeitosa; | J149: Atende
B151: e) Difunde conhecimentos, ideias, soluções e boas práticas; | J151: Não atende
B153: f) Contribui para um melhor ambiente de trabalho, apresentando um bom relacionamento interpessoal e harmonia na convivência com os diversos perfis profissionais e pessoais, e em situações adversas. | J153: Não atende
B156: Relatório de ocorrências:
E162: Graduação: | I162: Pontuação:
E163: =IF(COUNTA(COM_Q10)=0,"",INDEX(graduação_comportamento,MATCH(COM_O10,ocorrências_comportamento,))) -> Atende às expectativas em 4 fatores | I163: =IFERROR(IF(J6="","",INDEX(FATORES_PONT,MATCH(E163,graduação_comportamento,))),"") -> 7
A165: DESENVOLVIMENTO | B165: Refere-se à análise quanto a potencialidade para aprendizagem e aplicação do conhecimento. São atitudes consideradas para a avaliação:
B167: Atitudes: | J167: Avaliação:
B168: a) Tem domínio sobre as atividades, normativas, procedimentos e processos da área em que atua, assegurando corretas orientações para a sua equipe e sociedade; | J168: Atende
B170: b) Demonstra interesse em absorver novos conhecimentos e no treinamento para novas tarefas, procedimentos e processos; | J170: Atende
B172: c) Comunica-se de forma clara e eficiente, atentando para a qualidade da linguagem e da informação transmitida; | J172: Atende
B174: d) Busca aperfeiçoamento no exercício de suas atribuições, atualizando-se continuamente no que diz respeito aos dispositivos legais e habilidades específicas necessários ao desenvolvimento de suas atividades; | J174: Atende
B176: e) Demonstra senso crítico em relação às tarefas de rotina, buscando o aperfeiçoamento técnico e lógico dos procedimentos realizados; | J176: Não atende
B178: f) Desempenha suas atividades com atenção, demonstrando conhecimento e memória de trabalho. | J178: Não atende
B181: Relatório de ocorrências:
E187: Graduação: | I187: Pontuação:
E188: =IF(COUNTA(DES_Q10)=0,"",INDEX(GRADUAÇÃ0_DESENVOLVIMENTO,MATCH(DES_O10,ocorrências_DESENVOLVIMENTO,))) -> Atende às expectativas em 4 fatores | I188: =IFERROR(IF(J6="","",INDEX(FATORES_PONT,MATCH(E188,GRADUAÇÃ0_DESENVOLVIMENTO,))),"") -> 7
A190: GRADUAÇÕES
A192: FATORES | C192: PONTUAÇÃO | D192: PESO | E192: NOTA | G192: CONCEITOS
A193: ASSIDUIDADE | C193: =I21 -> 10 | D193: 0.8 | E193: =IFERROR(C193*D193,"") -> 8 | G193: Insatisfatório | H193: até 29,9 | I193: Desempenho ruim.
A194: PONTUALIDADE | C194: =I33 -> 9 | D194: 0.8 | E194: 7.2 | G194: Regular | H194: 30 a 49,9 | I194: Desempenho abaixo da média.
A195: DISCIPLINA | C195: =I60 -> 10 | D195: 1.4 | E195: 14 | G195: Bom | H195: 50 a 69,9 | I195: Desempenho satisfaz.
A196: INICIATIVA | C196: =I86 -> 9 | D196: 1.4 | E196: 12.6 | G196: Muito bom | H196: 70 a 89,9 | I196: Desempenho acima da média.
A197: PRODUTIVIDADE | C197: =I111 -> 7 | D197: 1.4 | E197: 9.8 | G197: Excelente | H197: 90 a 100 | I197: Desempenho exemplar.
A198: RESPONSABILIDADE | C198: =I137 -> 9 | D198: 1.4 | E198: 12.6
A199: COMPORTAMENTO | C199: =I163 -> 7 | D199: 1.4 | E199: 9.8 | G199: Resultado: | I199: Conceito:
A200: DESENVOLVIMENTO | C200: =I188 -> 7 | D200: 1.4 | E200: 9.8 | G200: =E201 -> 83.8 | I200: =IF(G200="","",IF(E201>mbom,G197,IF(E201>bom,G196,IF(E201>reg,G195,IF(E201>insat,G194,IF(E201>=0,G193,"")))))) -> Muito bom
C201: TOTAIS: | D201: =IF(SUM(D193:D200)=0,"",SUM(D193:D200)) -> 10 | E201: =IF(SUM(E193:E200)=0,"",SUM(E193:E200)) -> 83.8
A203: PARECER DO AVALIADOR
B215: Ciente do conteúdo da avaliação.
B216: =IFERROR(CONCATENATE("Porto Alegre, ",dataav_6),"") -> Porto Alegre, dia 13 de junho de 2017.
C220: =IF(nome_empregado="","",nome_empregado) -> Tício | H220: =IF(B6="","",B6) -> 
C221: AVALIADO | H221: AVALIADOR

Sheet 11ª Etapa
A1: FICHA DE AVALIAÇÃO DE DESEMPENHO
A2: =IFERROR(CONCATENATE("6ª ETAPA: de ",DAY(L2),"/",MONTH(L2),"/",YEAR(L2)," a ",DAY(M2),"/",MONTH(M2),"/",YEAR(M2)),"") -> 6ª ETAPA: de 16/6/2015 a 15/9/2015 | L2: =data_10+1 -> 2015-06-16 | M2: =data_11 -> 2015-09-15
A4: Empregado: | B4: =IF(nome_empregado="","",nome_empregado) -> Tício | F4: Início do Exercício: | H4: =IF(EXERCÍCIO="","",EXERCÍCIO) -> 2012-12-15 | I4: Matrícula: | J4: =IF(matrícula="","",matrícula) -> 0
A5: Cargo: | B5: =IF(CARGO="","",CARGO) -> Assistente | F5: Lotação: | I5: RG/CPF: | J5: =IF(rg="","",rg) -> 
A6: Avaliador: | F6: Função: | I6: Data: | J6: 2017-06-13
A8: FATORES DE DESEMPENHO
A10: ASSIDUIDADE | B10: Refere-se à frequência com que o Empregado comparece ao Trabalho. A ausência injustificada do local de trabalho acarretará redução da nota, sendo que serão computadas como ocorrências neste quesito as faltas superiores a 60 (sessenta) minutos, ocorridas num mesmo dia, conforme critérios estabelecidos:
B14: Relatório de ocorrências:
F20: Quantidade de ocorrências: | I20: Pontuação:
F21: 3 ocorrências | I21: =IFERROR(IF(J6="","",INDEX(FATORES_PONT,MATCH(F21,Graduação_assiduidade,))),"") -> 5
A23: PONTUALIDADE | B23: Refere-se ao cumprimento do horário de trabalho estabelecido. Serão computados como ocorrência neste quesito os atrasos ou saídas antecipadas não superiores a 60 (sessenta) minutos, ocorridas num mesmo dia, sem justificativa e fora do previsto na CLT, conforme critérios estabelecidos:
B26: Relatório de ocorrências:
F32: Quantidade de ocorrências: | I32: Pontuação:
F33: De 121 minutos até 240 minutos | I33: =IFERROR(IF(J6="","",INDEX(FATORES_PONT,MATCH(F33,graduação_pontualidade,))),"") -> 5
A35: DISCIPLINA | B35: Refere-se ao cumprimento de normas internas do Conselho, como Regulamento de Pessoal, e respeito à hierarquia. São consideradas ocorrências:
B37: Situações: | J37: Quantidade:
B38: a) Alteração do horário de intervalo de almoço sem autorização prévia ou posterior justificativa aceita pelo superior imediato; | J38: 1
B40: b) Descumprimento do intervalo intrajornada mínimo de 60 minutos para os empregados com carga diária superior a 6 horas ou de 15 minutos para os empregados com carga diária entre 4 e 6 horas;
B42: c) Realização de horas extras sem autorização prévia ou posterior justificativa do superior imediato;
B44: d) Realização de compensação de jornada sem autorização prévia;
B46: e) Ausência da sede do Conselho, durante o expediente, sem comunicação ao superior imediato ou a outra pessoa de mesma hierarquia;
B48: f) Ocorrência de descumprimento do Regulamento de Pessoal;
B50: g) Ocorrência de descumprimento de orientações da chefia imediata ou desrespeito à hierarquia; | J50: 1
B53: Relatório de ocorrências:
E59: Graduação: | I59: Pontuação:
E60: =IF(COUNTA(DIS_Q11)=0,"",INDEX(graduação_disciplina,MATCH(DIS_O11,ocorrências_disciplina,1))) -> De 2 a 3 ocorrências | I60: =IFERROR(IF(J6="","",INDEX(FATORES_PONT,MATCH(E60,graduação_disciplina,))),"") -> 7
A62: INICIATIVA | B62: Refere-se ao comportamento proativo, com adoção de providências em situações não definidas pelo superior ou não previstas no(s) manual(is) de normas e procedimentos. São atitudes consideradas para a avaliação:
B65: Ocorrências: | J65: Avaliação:
B66: a) Busca atividades para ocupação do tempo, se houver momentos de baixa demanda; | J66: Atende
B68: b) Quando necessário, identifica atividades prioritárias com resolução pendente, atendendo ou auxiliando no atendimento dessas questõe | J68: Atende
B70: c) Contribui para a melhoria do trabalho, identificando problemas existentes e potenciais, apresentando ideias e propondo sugestões; | J70: Atende
B72: d) É participativo e demostra interesse e engajamento nas atividades de reuniões, capacitações, eventos, entre outros; | J72: Não atende
B74: e) Demonstra iniciativa para resolver imprevistos, buscando soluções em situações adversas; | J74: Atende
B76: f) Demonstra receptividade e adaptabilidade frente à implantação de mudanças; | J76: Atende
B79: Relatório de ocorrências:
E85: Graduação: | I85: Pontuação:
E86: =IF(COUNTA(INI_Q11)=0,"",INDEX(graduação_iniciativa,MATCH(INI_O11,ocorrências_iniciativa,))) -> Atende às expectativas em 5 fatores | I86: =IFERROR(IF(J6="","",INDEX(FATORES_PONT,MATCH(E86,graduação_iniciativa,))),"") -> 9
A88: PRODUTIVIDADE | B88: Refere-se à análise do volume e qualidade de trabalho conforme resultados esperados para o cargo. São atitudes consideradas para a avaliação:
B90: Atitudes: | J90: Avaliação:
B91: a) Realiza um volume de trabalho compatível com o esperado, considerando o histórico habitual; | J91: Atende
B93: b) Apresenta um trabalho com qualidade satisfatória, evitando retrabalhos; | J93: Atende
B95: c) Cumpre os prazos estabelecidos, entregando as tarefas sob a sua responsabilidade no tempo previsto, evitando acúmulos nas demandas; | J95: Atende
B97: d) Estrutura e sistematiza as atividades para melhor utilização dos recursos. Estabelece prioridades e organiza suas atividades; | J97: Atende
B99: e) Desempenha os procedimentos e atividades com eficiência e técnicas adequadas; | J99: Atende
B101: f) Executa suas tarefas com foco e equilíbrio, evitando distrações e dispersões; | J101: Atende
B104: Relatório de ocorrências:
E110: Graduação: | I110: Pontuação:
E111: =IF(COUNTA(PRO_Q11)=0,"",INDEX(graduação_produtividade,MATCH(PRO_O11,ocorrências_produtividade,))) -> Atende às expectativas em todos os fatores | I111: =IFERROR(IF(J6="","",INDEX(FATORES_PONT,MATCH(E111,graduação_produtividade,))),"") -> 10
A113: RESPONSABILIDADE | B113: Refere-se à análise quanto ao comprometimento com as tarefas delegadas, o grau de segurança que transmite aos superiores e zelo pelos recursos disponibilizados. São atitudes consideradas para a avaliação:
B116: Atitudes: | J116: Avaliação:
B117: a) Colabora com a conservação do patrimônio público e utilização dos materiais; | J117: Atende
B119: b) Diante de questões além de sua competência, realiza o encaminhamento interno necessário, possibilitando continuidade no atendimento e na resolução adequados; | J119: Atende
B121: c) Avisa ao superior sobre situações adversas relacionadas ao andamento do trabalho. | J121: Atende
B123: d) Demonstra organização e planejamento no cumprimento de suas atividades; | J123: Não atende
B125: e) Apresenta autonomia nas decisões relativas às funções desenvolvidas, demonstrando comprometimento com o trabalho; | J125: Atende
B127: f) Transmite segurança no desempenho de suas funções, cumprindo suas tarefas de acordo com as instruções recebidas; | J127: Atende
B130: Relatório de ocorrências:
E136: Graduação: | I136: Pontuação:
E137: =IF(COUNTA(RES_Q11)=0,"",INDEX(graduação_responsabilidade,MATCH(RES_O11,ocorrências_responsabilidade,))) -> Atende às expectativas em 5 fatores | I137: =IFERROR(IF(J6="","",INDEX(FATORES_PONT,MATCH(E137,graduação_responsabilidade,))),"") -> 9
A139: COMPORTAMENTO | B139: Refere-se à postura e sigilo sobre assuntos reservados e confidenciais , ao comportamento e conhecimento disciplinar e ético. São atitudes consideradas para a avaliação:
B142: Atitudes: | J142: Avaliação:
B143: a) Trata informações e documentos com o grau de reserva ou sigilo necessários; | J143: Atende
B145: b) Atua com ética e profissionalismo, demonstrando postura equilibrada e adequada ao ambiente de trabalho. | J145: Atende
B147: c) É receptivo em relação aos apontamentos e sugestões de melhoria feitas acerca de sua postura e desempenho do trabalho; | J147: Não atende
B149: d) Trata a todos de forma solícita, gentil e respeitosa; | J149: Atende
B151: e) Difunde conhecimentos, ideias, soluções e boas práticas; | J151: Atende
B153: f) Contribui para um melhor ambiente de trabalho, apresentando um bom relacionamento interpessoal e harmonia na convivência com os diversos perfis profissionais e pessoais, e em situações adversas. | J153: Não atende
B156: Relatório de ocorrências:
E162: Graduação: | I162: Pontuação:
E163: =IF(COUNTA(COM_Q11)=0,"",INDEX(graduação_comportamento,MATCH(COM_O11,ocorrências_comportamento,))) -> Atende às expectativas em 4 fatores | I163: =IFERROR(IF(J6="","",INDEX(FATORES_PONT,MATCH(E163,graduação_comportamento,))),"") -> 7
A165: DESENVOLVIMENTO | B165: Refere-se à análise quanto a potencialidade para aprendizagem e aplicação do conhecimento. São atitudes consideradas para a avaliação:
B167: Atitudes: | J167: Avaliação:
B168: a) Tem domínio sobre as atividades, normativas, procedimentos e processos da área em que atua, assegurando corretas orientações para a sua equipe e sociedade; | J168: Atende
B170: b) Demonstra interesse em absorver novos conhecimentos e no treinamento para novas tarefas, procedimentos e processos; | J170: Atende
B172: c) Comunica-se de forma clara e eficiente, atentando para a qualidade da linguagem e da informação transmitida; | J172: Atende
B174: d) Busca aperfeiçoamento no exercício de suas atribuições, atualizando-se continuamente no que diz respeito aos dispositivos legais e habilidades específicas necessários ao desenvolvimento de suas atividades; | J174: Atende
B176: e) Demonstra senso crítico em relação às tarefas de rotina, buscando o aperfeiçoamento técnico e lógico dos procedimentos realizados; | J176: Não atende
B178: f) Desempenha suas atividades com atenção, demonstrando conhecimento e memória de trabalho. | J178: Não atende
B181: Relatório de ocorrências:
E187: Graduação: | I187: Pontuação:
E188: =IF(COUNTA(DES_Q11)=0,"",INDEX(GRADUAÇÃ0_DESENVOLVIMENTO,MATCH(DES_O11,ocorrências_DESENVOLVIMENTO,))) -> Atende às expectativas em 4 fatores | I188: =IFERROR(IF(J6="","",INDEX(FATORES_PONT,MATCH(E188,GRADUAÇÃ0_DESENVOLVIMENTO,))),"") -> 7
A190: GRADUAÇÕES
A192: FATORES | C192: PONTUAÇÃO | D192: PESO | E192: NOTA | G192: CONCEITOS
A193: ASSIDUIDADE | C193: =I21 -> 5 | D193: 0.8 | E193: =IFERROR(C193*D193,"") -> 4 | G193: Insatisfatório | H193: até 29,9 | I193: Desempenho ruim.
A194: PONTUALIDADE | C194: =I33 -> 5 | D194: 0.8 | E194: 4 | G194: Regular | H194: 30 a 49,9 | I194: Desempenho abaixo da média.
A195: DISCIPLINA | C195: =I60 -> 7 | D195: 1.4 | E195: 9.8 | G195: Bom | H195: 50 a 69,9 | I195: Desempenho satisfaz.
A196: INICIATIVA | C196: =I86 -> 9 | D196: 1.4 | E196: 12.6 | G196: Muito bom | H196: 70 a 89,9 | I196: Desempenho acima da média.
A197: PRODUTIVIDADE | C197: =I111 -> 10 | D197: 1.4 | E197: 14 | G197: Excelente | H197: 90 a 100 | I197: Desempenho exemplar.
A198: RESPONSABILIDADE | C198: =I137 -> 9 | D198: 1.4 | E198: 12.6
A199: COMPORTAMENTO | C199: =I163 -> 7 | D199: 1.4 | E199: 9.8 | G199: Resultado: | I199: Conceito:
A200: DESENVOLVIMENTO | C200: =I188 -> 7 | D200: 1.4 | E200: 9.8 | G200: =E201 -> 76.6 | I200: =IF(G200="","",IF(E201>mbom,G197,IF(E201>bom,G196,IF(E201>reg,G195,IF(E201>insat,G194,IF(E201>=0,G193,"")))))) -> Muito bom
C201: TOTAIS: | D201: =IF(SUM(D193:D200)=0,"",SUM(D193:D200)) -> 10 | E201: =IF(SUM(E193:E200)=0,"",SUM(E193:E200)) -> 76.6
A203: PARECER DO AVALIADOR
B215: Ciente do conteúdo da avaliação.
B216: =IFERROR(CONCATENATE("Porto Alegre, ",dataav_6),"") -> Porto Alegre, dia 13 de junho de 2017.
C220: =IF(nome_empregado="","",nome_empregado) -> Tício | H220: =IF(B6="","",B6) -> 
C221: AVALIADO | H221: AVALIADOR

Sheet 12ª Etapa
A1: FICHA DE AVALIAÇÃO DE DESEMPENHO
A2: =IFERROR(CONCATENATE("6ª ETAPA: de ",DAY(L2),"/",MONTH(L2),"/",YEAR(L2)," a ",DAY(M2),"/",MONTH(M2),"/",YEAR(M2)),"") -> 6ª ETAPA: de 16/9/2015 a 15/12/2015 | L2: =data_11+1 -> 2015-09-16 | M2: =data_12 -> 2015-12-15
A4: Empregado: | B4: =IF(nome_empregado="","",nome_empregado) -> Tício | F4: Início do Exercício: | H4: =IF(EXERCÍCIO="","",EXERCÍCIO) -> 2012-12-15 | I4: Matrícula: | J4: =IF(matrícula="","",matrícula) -> 0
A5: Cargo: | B5: =IF(CARGO="","",CARGO) -> Assistente | F5: Lotação: | I5: RG/CPF: | J5: =IF(rg="","",rg) -> 
A6: Avaliador: | F6: Função: | I6: Data: | J6: 2017-06-13
A8: FATORES DE DESEMPENHO
A10: ASSIDUIDADE | B10: Refere-se à frequência com que o Empregado comparece ao Trabalho. A ausência injustificada do local de trabalho acarretará redução da nota, sendo que serão computadas como ocorrências neste quesito as faltas superiores a 60 (sessenta) minutos, ocorridas num mesmo dia, conforme critérios estabelecidos:
B14: Relatório de ocorrências:
F20: Quantidade de ocorrências: | I20: Pontuação:
F21: 1 ocorrência | I21: =IFERROR(IF(J6="","",INDEX(FATORES_PONT,MATCH(F21,Graduação_assiduidade,))),"") -> 9
A23: PONTUALIDADE | B23: Refere-se ao cumprimento do horário de trabalho estabelecido. Serão computados como ocorrência neste quesito os atrasos ou saídas antecipadas não superiores a 60 (sessenta) minutos, ocorridas num mesmo dia, sem justificativa e fora do previsto na CLT, conforme critérios estabelecidos:
B26: Relatório de ocorrências:
F32: Quantidade de ocorrências: | I32: Pontuação:
F33: De 31 minutos até 120 minutos | I33: =IFERROR(IF(J6="","",INDEX(FATORES_PONT,MATCH(F33,graduação_pontualidade,))),"") -> 7
A35: DISCIPLINA | B35: Refere-se ao cumprimento de normas internas do Conselho, como Regulamento de Pessoal, e respeito à hierarquia. São consideradas ocorrências:
B37: Situações: | J37: Quantidade:
B38: a) Alteração do horário de intervalo de almoço sem autorização prévia ou posterior justificativa aceita pelo superior imediato; | J38: 1
B40: b) Descumprimento do intervalo intrajornada mínimo de 60 minutos para os empregados com carga diária superior a 6 horas ou de 15 minutos para os empregados com carga diária entre 4 e 6 horas; | J40: 6
B42: c) Realização de horas extras sem autorização prévia ou posterior justificativa do superior imediato; | J42: 2
B44: d) Realização de compensação de jornada sem autorização prévia; | J44: 1
B46: e) Ausência da sede do Conselho, durante o expediente, sem comunicação ao superior imediato ou a outra pessoa de mesma hierarquia;
B48: f) Ocorrência de descumprimento do Regulamento de Pessoal;
B50: g) Ocorrência de descumprimento de orientações da chefia imediata ou desrespeito à hierarquia; | J50: 1
B53: Relatório de ocorrências:
E59: Graduação: | I59: Pontuação:
E60: =IF(COUNTA(DIS_Q12)=0,"",INDEX(graduação_disciplina,MATCH(DIS_O12,ocorrências_disciplina,1))) -> A partir de 10 ocorrências | I60: =IFERROR(IF(J6="","",INDEX(FATORES_PONT,MATCH(E60,graduação_disciplina,))),"") -> 0
A62: INICIATIVA | B62: Refere-se ao comportamento proativo, com adoção de providências em situações não definidas pelo superior ou não previstas no(s) manual(is) de normas e procedimentos. São atitudes consideradas para a avaliação:
B65: Ocorrências: | J65: Avaliação:
B66: a) Busca atividades para ocupação do tempo, se houver momentos de baixa demanda; | J66: Atende
B68: b) Quando necessário, identifica atividades prioritárias com resolução pendente, atendendo ou auxiliando no atendimento dessas questõe | J68: Atende
B70: c) Contribui para a melhoria do trabalho, identificando problemas existentes e potenciais, apresentando ideias e propondo sugestões; | J70: Atende
B72: d) É participativo e demostra interesse e engajamento nas atividades de reuniões, capacitações, eventos, entre outros; | J72: Atende
B74: e) Demonstra iniciativa para resolver imprevistos, buscando soluções em situações adversas; | J74: Atende
B76: f) Demonstra receptividade e adaptabilidade frente à implantação de mudanças; | J76: Atende
B79: Relatório de ocorrências:
E85: Graduação: | I85: Pontuação:
E86: =IF(COUNTA(INI_Q12)=0,"",INDEX(graduação_iniciativa,MATCH(INI_O12,ocorrências_iniciativa,))) -> Atende às expectativas em todos os fatores | I86: =IFERROR(IF(J6="","",INDEX(FATORES_PONT,MATCH(E86,graduação_iniciativa,))),"") -> 10
A88: PRODUTIVIDADE | B88: Refere-se à análise do volume e qualidade de trabalho conforme resultados esperados para o cargo. São atitudes consideradas para a avaliação:
B90: Atitudes: | J90: Avaliação:
B91: a) Realiza um volume de trabalho compatível com o esperado, considerando o histórico habitual; | J91: Atende
B93: b) Apresenta um trabalho com qualidade satisfatória, evitando retrabalhos; | J93: Não atende
B95: c) Cumpre os prazos estabelecidos, entregando as tarefas sob a sua responsabilidade no tempo previsto, evitando acúmulos nas demandas; | J95: Não atende
B97: d) Estrutura e sistematiza as atividades para melhor utilização dos recursos. Estabelece prioridades e organiza suas atividades; | J97: Atende
B99: e) Desempenha os procedimentos e atividades com eficiência e técnicas adequadas; | J99: Atende
B101: f) Executa suas tarefas com foco e equilíbrio, evitando distrações e dispersões; | J101: Atende
B104: Relatório de ocorrências:
E110: Graduação: | I110: Pontuação:
E111: =IF(COUNTA(PRO_Q12)=0,"",INDEX(graduação_produtividade,MATCH(PRO_O12,ocorrências_produtividade,))) -> Atende às expectativas em 4 fatores | I111: =IFERROR(IF(J6="","",INDEX(FATORES_PONT,MATCH(E111,graduação_produtividade,))),"") -> 7
A113: RESPONSABILIDADE | B113: Refere-se à análise quanto ao comprometimento com as tarefas delegadas, o grau de segurança que transmite aos superiores e zelo pelos recursos disponibilizados. São atitudes consideradas para a avaliação:
B116: Atitudes: | J116: Avaliação:
B117: a) Colabora com a conservação do patrimônio público e utilização dos materiais; | J117: Atende
B119: b) Diante de questões além de sua competência, realiza o encaminhamento interno necessário, possibilitando continuidade no atendimento e na resolução adequados; | J119: Atende
B121: c) Avisa ao superior sobre situações adversas relacionadas ao andamento do trabalho. | J121: Não atende
B123: d) Demonstra organização e planejamento no cumprimento de suas atividades; | J123: Não atende
B125: e) Apresenta autonomia nas decisões relativas às funções desenvolvidas, demonstrando comprometimento com o trabalho; | J125: Não atende
B127: f) Transmite segurança no desempenho de suas funções, cumprindo suas tarefas de acordo com as instruções recebidas; | J127: Atende
B130: Relatório de ocorrências:
E136: Graduação: | I136: Pontuação:
E137: =IF(COUNTA(RES_Q12)=0,"",INDEX(graduação_responsabilidade,MATCH(RES_O12,ocorrências_responsabilidade,))) -> Atende às expectativas em 3 fatores | I137: =IFERROR(IF(J6="","",INDEX(FATORES_PONT,MATCH(E137,graduação_responsabilidade,))),"") -> 5
A139: COMPORTAMENTO | B139: Refere-se à postura e sigilo sobre assuntos reservados e confidenciais , ao comportamento e conhecimento disciplinar e ético. São atitudes consideradas para a avaliação:
B142: Atitudes: | J142: Avaliação:
B143: a) Trata informações e documentos com o grau de reserva ou sigilo necessários; | J143: Atende
B145: b) Atua com ética e profissionalismo, demonstrando postura equilibrada e adequada ao ambiente de trabalho. | J145: Atende
B147: c) É receptivo em relação aos apontamentos e sugestões de melhoria feitas acerca de sua postura e desempenho do trabalho; | J147: Não atende
B149: d) Trata a todos de forma solícita, gentil e respeitosa; | J149: Atende
B151: e) Difunde conhecimentos, ideias, soluções e boas práticas; | J151: Não atende
B153: f) Contribui para um melhor ambiente de trabalho, apresentando um bom relacionamento interpessoal e harmonia na convivência com os diversos perfis profissionais e pessoais, e em situações adversas. | J153: Não atende
B156: Relatório de ocorrências:
E162: Graduação: | I162: Pontuação:
E163: =IF(COUNTA(COM_Q12)=0,"",INDEX(graduação_comportamento,MATCH(COM_O12,ocorrências_comportamento,))) -> Atende às expectativas em 3 fatores | I163: =IFERROR(IF(J6="","",INDEX(FATORES_PONT,MATCH(E163,graduação_comportamento,))),"") -> 5
A165: DESENVOLVIMENTO | B165: Refere-se à análise quanto a potencialidade para aprendizagem e aplicação do conhecimento. São atitudes consideradas para a avaliação:
B167: Atitudes: | J167: Avaliação:
B168: a) Tem domínio sobre as atividades, normativas, procedimentos e processos da área em que atua, assegurando corretas orientações para a sua equipe e sociedade; | J168: Atende
B170: b) Demonstra interesse em absorver novos conhecimentos e no treinamento para novas tarefas, procedimentos e processos; | J170: Atende
B172: c) Comunica-se de forma clara e eficiente, atentando para a qualidade da linguagem e da informação transmitida; | J172: Não atende
B174: d) Busca aperfeiçoamento no exercício de suas atribuições, atualizando-se continuamente no que diz respeito aos dispositivos legais e habilidades específicas necessários ao desenvolvimento de suas atividades; | J174: Não atende
B176: e) Demonstra senso crítico em relação às tarefas de rotina, buscando o aperfeiçoamento técnico e lógico dos procedimentos realizados; | J176: Não atende
B178: f) Desempenha suas atividades com atenção, demonstrando conhecimento e memória de trabalho. | J178: Não atende
B181: Relatório de ocorrências:
E187: Graduação: | I187: Pontuação:
E188: =IF(COUNTA(DES_Q12)=0,"",INDEX(GRADUAÇÃ0_DESENVOLVIMENTO,MATCH(DES_O12,ocorrências_DESENVOLVIMENTO,))) -> Atende às expectativas em 2 fatores | I188: =IFERROR(IF(J6="","",INDEX(FATORES_PONT,MATCH(E188,GRADUAÇÃ0_DESENVOLVIMENTO,))),"") -> 3
A190: GRADUAÇÕES
A192: FATORES | C192: PONTUAÇÃO | D192: PESO | E192: NOTA | G192: CONCEITOS
A193: ASSIDUIDADE | C193: =I21 -> 9 | D193: 0.8 | E193: =IFERROR(C193*D193,"") -> 7.2 | G193: Insatisfatório | H193: até 29,9 | I193: Desempenho ruim.
A194: PONTUALIDADE | C194: =I33 -> 7 | D194: 0.8 | E194: 5.6 | G194: Regular | H194: 30 a 49,9 | I194: Desempenho abaixo da média.
A195: DISCIPLINA | C195: =I60 -> 0 | D195: 1.4 | E195: 0 | G195: Bom | H195: 50 a 69,9 | I195: Desempenho satisfaz.
A196: INICIATIVA | C196: =I86 -> 10 | D196: 1.4 | E196: 14 | G196: Muito bom | H196: 70 a 89,9 | I196: Desempenho acima da média.
A197: PRODUTIVIDADE | C197: =I111 -> 7 | D197: 1.4 | E197: 9.8 | G197: Excelente | H197: 90 a 100 | I197: Desempenho exemplar.
A198: RESPONSABILIDADE | C198: =I137 -> 5 | D198: 1.4 | E198: 7
A199: COMPORTAMENTO | C199: =I163 -> 5 | D199: 1.4 | E199: 7 | G199: Resultado: | I199: Conceito:
A200: DESENVOLVIMENTO | C200: =I188 -> 3 | D200: 1.4 | E200: 4.2 | G200: =E201 -> 54.8 | I200: =IF(G200="","",IF(E201>mbom,G197,IF(E201>bom,G196,IF(E201>reg,G195,IF(E201>insat,G194,IF(E201>=0,G193,"")))))) -> Bom
C201: TOTAIS: | D201: =IF(SUM(D193:D200)=0,"",SUM(D193:D200)) -> 10 | E201: =IF(SUM(E193:E200)=0,"",SUM(E193:E200)) -> 54.8
A203: PARECER DO AVALIADOR
B215: Ciente do conteúdo da avaliação.
B216: =IFERROR(CONCATENATE("Porto Alegre, ",dataav_6),"") -> Porto Alegre, dia 13 de junho de 2017.
C220: =IF(nome_empregado="","",nome_empregado) -> Tício | H220: =IF(B6="","",B6) -> 
C221: AVALIADO | H221: AVALIADOR

Sheet GRÁFICOS
B2: DESEMPENHO GERAL (POR RESULTADO - NOTAS)
B21: DESEMPENHO ESPECÍFICO (POR PONTUAÇÃO)
B44: DESEMPENHO ESPECÍFICO (POR PONTUAÇÃO)
